Workbook

Sheet Survivalexp RAW October 2017
A1: Survival experiment | L1: Averages/Stdev Technical replicates
A2: Subject: | C2: Anaerobic survival after aerobic inoculation of recombinant strains | L2: Averages/stdev Biological replicates
C3: DeBont+Gluconic Acid - Kanamycin only in 2213-/A/APR
A4: Inoculation date | C4: 2017-09-30 | D4: Started with high OD600: no oxygen present at time of inoculation
A5: Inoculation OD600 | C5: 15 | D5: DH5α 2213F - inoculated at 1.5 (grew worse o/48h)
A6: Inoculated | C6: Blank | D6: KT2440 WT | E6: 2213F - | G6: 2213F A | I6: 2213F APR
E7: p+0 | F7: p+3 | G7: p+0 | H7: p+3 | I7: p+0 | K7: p+3
A8: T1 | B8: 01okt17
A9: Sample | B9: Dilution: | D9: 10^0 | I9: AVERAGE | J9: STDEV | K9: 10^-1 | P9: AVERAGE | Q9: STDEV | R9: 10^-2 | W9: AVERAGE | X9: STDEV | Y9: 10^-3 | AD9: AVERAGE | AE9: STDEV | AF9: 10^-4 | AK9: AVERAGE | AL9: STDEV | AM9: 10^-5 | AR9: AVERAGE | AS9: STDEV | AT9: 10^-6 | AY9: AVERAGE | AZ9: STDEV | BA9: 10^-7 | BF9: AVERAGE | BG9: STDEV
A10: Blank | B10: 1 | D10: 0 | E10: 0 | F10: 0 | G10: 0 | H10: 0 | I10: =AVERAGE(D10:H10) -> 0 | J10: =STDEV(D10:H10) -> 0 | K10: 0 | L10: 0 | M10: 0 | N10: 0 | O10: 0 | P10: =AVERAGE(K10:O10) -> 0 | Q10: =STDEV(K10:O10) -> 0 | R10: 0 | S10: 0 | T10: 0 | U10: 0 | V10: 0 | W10: =AVERAGE(R10:V10) -> 0 | X10: =STDEV(R10:V10) -> 0 | Y10: 0 | Z10: 0 | AA10: 0 | AB10: 0 | AC10: 0 | AD10: =AVERAGE(Y10:AC10) -> 0 | AE10: =STDEV(Y10:AC10) -> 0 | AF10: 0 | AG10: 0 | AH10: 0 | AI10: 0 | AJ10: 0 | AK10: =AVERAGE(AF10:AJ10) -> 0 | AL10: =STDEV(AF10:AJ10) -> 0 | AM10: 0 | AN10: 0 | AO10: 0 | AP10: 0 | AQ10: 0 | AR10: =AVERAGE(AM10:AQ10) -> 0 | AS10: =STDEV(AM10:AQ10) -> 0 | AT10: 0 | AU10: 0 | AV10: 0 | AW10: 0 | AX10: 0 | AY10: =AVERAGE(AT10:AX10) -> 0 | AZ10: =STDEV(AT10:AX10) -> 0 | BA10: 0 | BB10: 0 | BC10: 0 | BD10: 0 | BE10: 0 | BF10: =AVERAGE(BA10:BE10) -> 0 | BG10: =STDEV(BA10:BE10) -> 0
B11: 2 | D11: 0 | E11: 0 | F11: 0 | G11: 0 | H11: 0 | I11: =AVERAGE(D11:H11) -> 0 | J11: =STDEV(D11:H11) -> 0 | K11: 0 | L11: 0 | M11: 0 | N11: 0 | O11: 0 | P11: =AVERAGE(K11:O11) -> 0 | Q11: =STDEV(K11:O11) -> 0 | R11: 0 | S11: 0 | T11: 0 | U11: 0 | V11: 0 | W11: =AVERAGE(R11:V11) -> 0 | X11: =STDEV(R11:V11) -> 0 | Y11: 0 | Z11: 0 | AA11: 0 | AB11: 0 | AC11: 0 | AD11: =AVERAGE(Y11:AC11) -> 0 | AE11: =STDEV(Y11:AC11) -> 0 | AF11: 0 | AG11: 0 | AH11: 0 | AI11: 0 | AJ11: 0 | AK11: =AVERAGE(AF11:AJ11) -> 0 | AL11: =STDEV(AF11:AJ11) -> 0 | AM11: 0 | AN11: 0 | AO11: 0 | AP11: 0 | AQ11: 0 | AR11: =AVERAGE(AM11:AQ11) -> 0 | AS11: =STDEV(AM11:AQ11) -> 0 | AT11: 0 | AU11: 0 | AV11: 0 | AW11: 0 | AX11: 0 | AY11: =AVERAGE(AT11:AX11) -> 0 | AZ11: =STDEV(AT11:AX11) -> 0 | BA11: 0 | BB11: 0 | BC11: 0 | BD11: 0 | BE11: 0 | BF11: =AVERAGE(BA11:BE11) -> 0 | BG11: =STDEV(BA11:BE11) -> 0
B12: 3 | D12: 0 | E12: 0 | F12: 0 | G12: 0 | H12: 0 | I12: =AVERAGE(D12:H12) -> 0 | J12: =STDEV(D12:H12) -> 0 | K12: 0 | L12: 0 | M12: 0 | N12: 0 | O12: 0 | P12: =AVERAGE(K12:O12) -> 0 | Q12: =STDEV(K12:O12) -> 0 | R12: 0 | S12: 0 | T12: 0 | U12: 0 | V12: 0 | W12: =AVERAGE(R12:V12) -> 0 | X12: =STDEV(R12:V12) -> 0 | Y12: 0 | Z12: 0 | AA12: 0 | AB12: 0 | AC12: 0 | AD12: =AVERAGE(Y12:AC12) -> 0 | AE12: =STDEV(Y12:AC12) -> 0 | AF12: 0 | AG12: 0 | AH12: 0 | AI12: 0 | AJ12: 0 | AK12: =AVERAGE(AF12:AJ12) -> 0 | AL12: =STDEV(AF12:AJ12) -> 0 | AM12: 0 | AN12: 0 | AO12: 0 | AP12: 0 | AQ12: 0 | AR12: =AVERAGE(AM12:AQ12) -> 0 | AS12: =STDEV(AM12:AQ12) -> 0 | AT12: 0 | AU12: 0 | AV12: 0 | AW12: 0 | AX12: 0 | AY12: =AVERAGE(AT12:AX12) -> 0 | AZ12: =STDEV(AT12:AX12) -> 0 | BA12: 0 | BB12: 0 | BC12: 0 | BD12: 0 | BE12: 0 | BF12: =AVERAGE(BA12:BE12) -> 0 | BG12: =STDEV(BA12:BE12) -> 0
I13: =AVERAGE(I10:I12) -> 0 | P13: =AVERAGE(P10:P12) -> 0 | W13: =AVERAGE(W10:W12) -> 0 | AD13: =AVERAGE(AD10:AD12) -> 0 | AK13: =AVERAGE(AK10:AK12) -> 0 | AR13: =AVERAGE(AR10:AR12) -> 0 | AY13: =AVERAGE(AY10:AY12) -> 0 | BF13: =AVERAGE(BF10:BF12) -> 0
I14: =SUM(J10:J12) -> 0 | P14: =SUM(Q10:Q12) -> 0 | W14: =SUM(X10:X12) -> 0 | AD14: =SUM(AE10:AE12) -> 0 | AK14: =SUM(AL10:AL12) -> 0 | AR14: =SUM(AS10:AS12) -> 0 | AY14: =SUM(AZ10:AZ12) -> 0 | BF14: =SUM(BG10:BG12) -> 0
A15: DH5α - | B15: 1 | D15: NA | E15: NA | F15: NA | G15: NA | H15: NA | I15: =AVERAGE(D15:H15) ->  | J15: =STDEV(D15:H15) ->  | K15: NA | L15: NA | M15: NA | N15: NA | O15: NA | P15: =AVERAGE(K15:O15) ->  | Q15: =STDEV(K15:O15) ->  | R15: NA | S15: NA | T15: NA | U15: NA | V15: NA | W15: =AVERAGE(R15:V15) ->  | X15: =STDEV(R15:V15) ->  | Y15: 55 | Z15: 53 | AA15: 56 | AB15: 51 | AC15: 50 | AD15: =AVERAGE(Y15:AC15) -> 53 | AE15: =STDEV(Y15:AC15) -> 3 | AF15: 0 | AG15: 0 | AH15: 0 | AI15: 0 | AJ15: 0 | AK15: =AVERAGE(AF15:AJ15) -> 0 | AL15: =STDEV(AF15:AJ15) -> 0 | AM15: 0 | AN15: 0 | AO15: 0 | AP15: 0 | AQ15: 0 | AR15: =AVERAGE(AM15:AQ15) -> 0 | AS15: =STDEV(AM15:AQ15) -> 0 | AT15: 0 | AU15: 0 | AV15: 0 | AW15: 0 | AX15: 0 | AY15: =AVERAGE(AT15:AX15) -> 0 | AZ15: =STDEV(AT15:AX15) -> 0 | BA15: 0 | BB15: 0 | BC15: 0 | BD15: 0 | BE15: 0 | BF15: =AVERAGE(BA15:BE15) -> 0 | BG15: =STDEV(BA15:BE15) -> 0
B16: 2 | D16: NA | E16: NA | F16: NA | G16: NA | H16: NA | I16: =AVERAGE(D16:H16) ->  | J16: =STDEV(D16:H16) ->  | K16: NA | L16: NA | M16: NA | N16: NA | O16: NA | P16: =AVERAGE(K16:O16) ->  | Q16: =STDEV(K16:O16) ->  | R16: NA | S16: NA | T16: NA | U16: NA | V16: NA | W16: =AVERAGE(R16:V16) ->  | X16: =STDEV(R16:V16) ->  | Y16: 104 | Z16: 100 | AA16: 122 | AB16: 100 | AC16: 86 | AD16: =AVERAGE(Y16:AC16) -> 102 | AE16: =STDEV(Y16:AC16) -> 13 | AF16: 14 | AG16: 12 | AH16: 12 | AI16: 8 | AJ16: 12 | AK16: =AVERAGE(AF16:AJ16) -> 12 | AL16: =STDEV(AF16:AJ16) -> 2 | AM16: 0 | AN16: 0 | AO16: 0 | AP16: 0 | AQ16: 0 | AR16: =AVERAGE(AM16:AQ16) -> 0 | AS16: =STDEV(AM16:AQ16) -> 0 | AT16: 0 | AU16: 0 | AV16: 0 | AW16: 0 | AX16: 0 | AY16: =AVERAGE(AT16:AX16) -> 0 | AZ16: =STDEV(AT16:AX16) -> 0 | BA16: 0 | BB16: 0 | BC16: 0 | BD16: 0 | BE16: 0 | BF16: =AVERAGE(BA16:BE16) -> 0 | BG16: =STDEV(BA16:BE16) -> 0
B17: 3 | D17: NA | E17: NA | F17: NA | G17: NA | H17: NA | I17: =AVERAGE(D17:H17) ->  | J17: =STDEV(D17:H17) ->  | K17: NA | L17: NA | M17: NA | N17: NA | O17: NA | P17: =AVERAGE(K17:O17) ->  | Q17: =STDEV(K17:O17) ->  | R17: NA | S17: NA | T17: NA | U17: NA | V17: NA | W17: =AVERAGE(R17:V17) ->  | X17: =STDEV(R17:V17) ->  | Y17: 58 | Z17: 53 | AA17: 49 | AB17: 51 | AC17: 43 | AD17: =AVERAGE(Y17:AC17) -> 51 | AE17: =STDEV(Y17:AC17) -> 5 | AF17: 0 | AG17: 0 | AH17: 0 | AI17: 0 | AJ17: 0 | AK17: =AVERAGE(AF17:AJ17) -> 0 | AL17: =STDEV(AF17:AJ17) -> 0 | AM17: 0 | AN17: 0 | AO17: 0 | AP17: 0 | AQ17: 0 | AR17: =AVERAGE(AM17:AQ17) -> 0 | AS17: =STDEV(AM17:AQ17) -> 0 | AT17: 0 | AU17: 0 | AV17: 0 | AW17: 0 | AX17: 0 | AY17: =AVERAGE(AT17:AX17) -> 0 | AZ17: =STDEV(AT17:AX17) -> 0 | BA17: 0 | BB17: 0 | BC17: 0 | BD17: 0 | BE17: 0 | BF17: =AVERAGE(BA17:BE17) -> 0 | BG17: =STDEV(BA17:BE17) -> 0
I18: =AVERAGE(I15:I17) ->  | P18: =AVERAGE(P15:P17) ->  | W18: =AVERAGE(W15:W17) ->  | AD18: =AVERAGE(AD15:AD17) -> 69 | AK18: =AVERAGE(AK15:AK17) -> 4 | AR18: =AVERAGE(AR15:AR17) -> 0 | AY18: =AVERAGE(AY15:AY17) -> 0 | BF18: =AVERAGE(BF15:BF17) -> 0
I19: =SUM(J15:J17) ->  | P19: =SUM(Q15:Q17) ->  | W19: =SUM(X15:X17) ->  | AD19: =SUM(AE15:AE17) -> 21 | AK19: =SUM(AL15:AL17) -> 2 | AR19: =SUM(AS15:AS17) -> 0 | AY19: =SUM(AZ15:AZ17) -> 0 | BF19: =SUM(BG15:BG17) -> 0
A20: WT | B20: 1 | D20: NA | E20: NA | F20: NA | G20: NA | H20: NA | I20: =AVERAGE(D20:H20) ->  | J20: =STDEV(D20:H20) ->  | K20: NA | L20: NA | M20: NA | N20: NA | O20: NA | P20: =AVERAGE(K20:O20) ->  | Q20: =STDEV(K20:O20) ->  | R20: NA | S20: NA | T20: NA | U20: NA | V20: NA | W20: =AVERAGE(R20:V20) ->  | X20: =STDEV(R20:V20) ->  | Y20: NA | Z20: NA | AA20: NA | AB20: NA | AC20: NA | AD20: =AVERAGE(Y20:AC20) ->  | AE20: =STDEV(Y20:AC20) ->  | AF20: NA | AG20: NA | AH20: NA | AI20: NA | AJ20: NA | AK20: =AVERAGE(AF20:AJ20) ->  | AL20: =STDEV(AF20:AJ20) ->  | AM20: 4 | AN20: NA | AO20: NA | AP20: NA | AQ20: 5 | AR20: =AVERAGE(AM20:AQ20) -> 5 | AS20: =STDEV(AM20:AQ20) -> 1 | AT20: 1 | AU20: 1 | AV20: 0 | AW20: 0 | AX20: 2 | AY20: =AVERAGE(AT20:AX20) -> 1 | AZ20: =STDEV(AT20:AX20) -> 1 | BA20: 0 | BB20: 0 | BC20: 0 | BD20: 0 | BE20: 0 | BF20: =AVERAGE(BA20:BE20) -> 0 | BG20: =STDEV(BA20:BE20) -> 0
B21: 2 | D21: NA | E21: NA | F21: NA | G21: NA | H21: NA | I21: =AVERAGE(D21:H21) ->  | J21: =STDEV(D21:H21) ->  | K21: NA | L21: NA | M21: NA | N21: NA | O21: NA | P21: =AVERAGE(K21:O21) ->  | Q21: =STDEV(K21:O21) ->  | R21: NA | S21: NA | T21: NA | U21: NA | V21: NA | W21: =AVERAGE(R21:V21) ->  | X21: =STDEV(R21:V21) ->  | Y21: NA | Z21: NA | AA21: NA | AB21: NA | AC21: NA | AD21: =AVERAGE(Y21:AC21) ->  | AE21: =STDEV(Y21:AC21) ->  | AF21: 52 | AG21: 31 | AH21: 29 | AI21: 37 | AJ21: 42 | AK21: =AVERAGE(AF21:AJ21) -> 38 | AL21: =STDEV(AF21:AJ21) -> 9 | AM21: 6 | AN21: 10 | AO21: 6 | AP21: 13 | AQ21: 7 | AR21: =AVERAGE(AM21:AQ21) -> 8 | AS21: =STDEV(AM21:AQ21) -> 3 | AT21: 1 | AU21: 0 | AV21: 1 | AW21: 0 | AX21: 2 | AY21: =AVERAGE(AT21:AX21) -> 1 | AZ21: =STDEV(AT21:AX21) -> 1 | BA21: 0 | BB21: 0 | BC21: 0 | BD21: 0 | BE21: 1 | BF21: =AVERAGE(BA21:BE21) -> 0 | BG21: =STDEV(BA21:BE21) -> 0
B22: 3 | D22: NA | E22: NA | F22: NA | G22: NA | H22: NA | I22: =AVERAGE(D22:H22) ->  | J22: =STDEV(D22:H22) ->  | K22: NA | L22: NA | M22: NA | N22: NA | O22: NA | P22: =AVERAGE(K22:O22) ->  | Q22: =STDEV(K22:O22) ->  | R22: NA | S22: NA | T22: NA | U22: NA | V22: NA | W22: =AVERAGE(R22:V22) ->  | X22: =STDEV(R22:V22) ->  | Y22: NA | Z22: NA | AA22: NA | AB22: NA | AC22: NA | AD22: =AVERAGE(Y22:AC22) ->  | AE22: =STDEV(Y22:AC22) ->  | AF22: 34 | AG22: 35 | AH22: 32 | AI22: 33 | AJ22: 26 | AK22: =AVERAGE(AF22:AJ22) -> 32 | AL22: =STDEV(AF22:AJ22) -> 4 | AM22: 6 | AN22: 4 | AO22: 7 | AP22: 18 | AQ22: 11 | AR22: =AVERAGE(AM22:AQ22) -> 9 | AS22: =STDEV(AM22:AQ22) -> 6 | AT22: 1 | AU22: 0 | AV22: 0 | AW22: 0 | AX22: 0 | AY22: =AVERAGE(AT22:AX22) -> 0 | AZ22: =STDEV(AT22:AX22) -> 0 | BA22: 0 | BB22: 0 | BC22: 0 | BD22: 0 | BE22: 0 | BF22: =AVERAGE(BA22:BE22) -> 0 | BG22: =STDEV(BA22:BE22) -> 0
A23: average | I23: =AVERAGE(I20:I22) ->  | P23: =AVERAGE(P20:P22) ->  | W23: =AVERAGE(W20:W22) ->  | AD23: =AVERAGE(AD20:AD22) ->  | AK23: =AVERAGE(AK20:AK22) ->  | AR23: =AVERAGE(AR20:AR22) -> 7 | AY23: =AVERAGE(AY20:AY22) -> 1 | BF23: =AVERAGE(BF20:BF22) -> 0
A24: stdev | I24: =SUM(J20:J22) ->  | P24: =SUM(Q20:Q22) ->  | W24: =SUM(X20:X22) ->  | AD24: =SUM(AE20:AE22) ->  | AK24: =SUM(AL20:AL22) ->  | AR24: =SUM(AS20:AS22) -> 9 | AY24: =SUM(AZ20:AZ22) -> 2 | BF24: =SUM(BG20:BG22) -> 0
A25: 2213F - | B25: 1 | D25: NA | E25: NA | F25: NA | G25: NA | H25: NA | I25: =AVERAGE(D25:H25) ->  | J25: =STDEV(D25:H25) ->  | K25: NA | L25: NA | M25: NA | N25: NA | O25: NA | P25: =AVERAGE(K25:O25) ->  | Q25: =STDEV(K25:O25) ->  | R25: NA | S25: NA | T25: NA | U25: NA | V25: NA | W25: =AVERAGE(R25:V25) ->  | X25: =STDEV(R25:V25) ->  | Y25: NA | Z25: NA | AA25: NA | AB25: NA | AC25: NA | AD25: =AVERAGE(Y25:AC25) ->  | AE25: =STDEV(Y25:AC25) ->  | AF25: 27 | AG25: 22 | AH25: 19 | AI25: 26 | AJ25: 22 | AK25: =AVERAGE(AF25:AJ25) -> 23 | AL25: =STDEV(AF25:AJ25) -> 3 | AM25: 3 | AN25: 7 | AO25: 3 | AP25: 2 | AQ25: 6 | AR25: =AVERAGE(AM25:AQ25) -> 4 | AS25: =STDEV(AM25:AQ25) -> 2 | AT25: 0 | AU25: 2 | AV25: 3 | AW25: 2 | AX25: 1 | AY25: =AVERAGE(AT25:AX25) -> 2 | AZ25: =STDEV(AT25:AX25) -> 1 | BA25: 1 | BB25: 0 | BC25: 1 | BD25: 0 | BE25: 0 | BF25: =AVERAGE(BA25:BE25) -> 0 | BG25: =STDEV(BA25:BE25) -> 1
A26: p+0 | B26: 2 | D26: NA | E26: NA | F26: NA | G26: NA | H26: NA | I26: =AVERAGE(D26:H26) ->  | J26: =STDEV(D26:H26) ->  | K26: NA | L26: NA | M26: NA | N26: NA | O26: NA | P26: =AVERAGE(K26:O26) ->  | Q26: =STDEV(K26:O26) ->  | R26: NA | S26: NA | T26: NA | U26: NA | V26: NA | W26: =AVERAGE(R26:V26) ->  | X26: =STDEV(R26:V26) ->  | Y26: NA | Z26: NA | AA26: NA | AB26: NA | AC26: NA | AD26: =AVERAGE(Y26:AC26) ->  | AE26: =STDEV(Y26:AC26) ->  | AF26: 95 | AG26: 115 | AH26: 114 | AI26: 126 | AJ26: 113 | AK26: =AVERAGE(AF26:AJ26) -> 113 | AL26: =STDEV(AF26:AJ26) -> 11 | AM26: 18 | AN26: 15 | AO26: 21 | AP26: 32 | AQ26: 17 | AR26: =AVERAGE(AM26:AQ26) -> 21 | AS26: =STDEV(AM26:AQ26) -> 7 | AT26: 1 | AU26: 8 | AV26: 6 | AW26: 2 | AX26: 0 | AY26: =AVERAGE(AT26:AX26) -> 3 | AZ26: =STDEV(AT26:AX26) -> 3 | BA26: 0 | BB26: 0 | BC26: 0 | BD26: 0 | BE26: 0 | BF26: =AVERAGE(BA26:BE26) -> 0 | BG26: =STDEV(BA26:BE26) -> 0
B27: 3 | D27: NA | E27: NA | F27: NA | G27: NA | H27: NA | I27: =AVERAGE(D27:H27) ->  | J27: =STDEV(D27:H27) ->  | K27: NA | L27: NA | M27: NA | N27: NA | O27: NA | P27: =AVERAGE(K27:O27) ->  | Q27: =STDEV(K27:O27) ->  | R27: NA | S27: NA | T27: NA | U27: NA | V27: NA | W27: =AVERAGE(R27:V27) ->  | X27: =STDEV(R27:V27) ->  | Y27: 122 | Z27: 114 | AA27: NA | AB27: 137 | AC27: 114 | AD27: =AVERAGE(Y27:AC27) -> 122 | AE27: =STDEV(Y27:AC27) -> 11 | AF27: 25 | AG27: 16 | AH27: 8 | AI27: 14 | AJ27: 20 | AK27: =AVERAGE(AF27:AJ27) -> 17 | AL27: =STDEV(AF27:AJ27) -> 6 | AM27: 4 | AN27: 0 | AO27: 0 | AP27: 5 | AQ27: 3 | AR27: =AVERAGE(AM27:AQ27) -> 2 | AS27: =STDEV(AM27:AQ27) -> 2 | AT27: 0 | AU27: 1 | AV27: 0 | AW27: 1 | AX27: 0 | AY27: =AVERAGE(AT27:AX27) -> 0 | AZ27: =STDEV(AT27:AX27) -> 1 | BA27: 1 | BB27: 0 | BC27: 0 | BD27: 0 | BE27: 0 | BF27: =AVERAGE(BA27:BE27) -> 0 | BG27: =STDEV(BA27:BE27) -> 0
A28: average | I28: =AVERAGE(I25:I27) ->  | P28: =AVERAGE(P25:P27) ->  | W28: =AVERAGE(W25:W27) ->  | AD28: =AVERAGE(AD25:AD27) ->  | AK28: =AVERAGE(AK25:AK27) -> 51 | AR28: =AVERAGE(AR25:AR27) -> 9 | AY28: =AVERAGE(AY25:AY27) -> 2 | BF28: =AVERAGE(BF25:BF27) -> 0
A29: stdev | I29: =SUM(J25:J27) ->  | P29: =SUM(Q25:Q27) ->  | W29: =SUM(X25:X27) ->  | AD29: =SUM(AE25:AE27) ->  | AK29: =SUM(AL25:AL27) -> 21 | AR29: =SUM(AS25:AS27) -> 11 | AY29: =SUM(AZ25:AZ27) -> 5 | BF29: =SUM(BG25:BG27) -> 1
A30: p+3 | B30: 1 | D30: NA | E30: NA | F30: NA | G30: NA | H30: NA | I30: =AVERAGE(D30:H30) ->  | J30: =STDEV(D30:H30) ->  | K30: NA | L30: NA | M30: NA | N30: NA | O30: NA | P30: =AVERAGE(K30:O30) ->  | Q30: =STDEV(K30:O30) ->  | R30: NA | S30: NA | T30: NA | U30: NA | V30: NA | W30: =AVERAGE(R30:V30) ->  | X30: =STDEV(R30:V30) ->  | Y30: NA | Z30: NA | AA30: NA | AB30: NA | AC30: NA | AD30: =AVERAGE(Y30:AC30) ->  | AE30: =STDEV(Y30:AC30) ->  | AF30: 16 | AG30: 23 | AH30: 24 | AI30: 22 | AJ30: 23 | AK30: 22 | AL30: =STDEV(AF30:AJ30) -> 3 | AM30: 3 | AN30: 5 | AO30: 2 | AP30: 4 | AQ30: 4 | AR30: =AVERAGE(AM30:AQ30) -> 4 | AS30: =STDEV(AM30:AQ30) -> 1 | AT30: 0 | AU30: 0 | AV30: 0 | AW30: 0 | AX30: 0 | AY30: =AVERAGE(AT30:AX30) -> 0 | AZ30: =STDEV(AT30:AX30) -> 0 | BA30: 0 | BB30: 0 | BC30: 0 | BD30: 0 | BE30: 0 | BF30: =AVERAGE(BA30:BE30) -> 0 | BG30: =STDEV(BA30:BE30) -> 0
B31: 2 | D31: NA | E31: NA | F31: NA | G31: NA | H31: NA | I31: =AVERAGE(D31:H31) ->  | J31: =STDEV(D31:H31) ->  | K31: NA | L31: NA | M31: NA | N31: NA | O31: NA | P31: =AVERAGE(K31:O31) ->  | Q31: =STDEV(K31:O31) ->  | R31: NA | S31: NA | T31: NA | U31: NA | V31: NA | W31: =AVERAGE(R31:V31) ->  | X31: =STDEV(R31:V31) ->  | Y31: 75 | Z31: 68 | AA31: 63 | AB31: 88 | AC31: 76 | AD31: =AVERAGE(Y31:AC31) -> 74 | AE31: =STDEV(Y31:AC31) -> 9 | AF31: 7 | AG31: 13 | AH31: 10 | AI31: 11 | AJ31: 13 | AK31: =AVERAGE(AF31:AJ31) -> 11 | AL31: =STDEV(AF31:AJ31) -> 2 | AM31: 0 | AN31: 0 | AO31: 0 | AP31: 0 | AQ31: 1 | AR31: =AVERAGE(AM31:AQ31) -> 0 | AS31: =STDEV(AM31:AQ31) -> 0 | AT31: 0 | AU31: 0 | AV31: 0 | AW31: 0 | AX31: 0 | AY31: =AVERAGE(AT31:AX31) -> 0 | AZ31: =STDEV(AT31:AX31) -> 0 | BA31: 0 | BB31: 0 | BC31: 0 | BD31: 0 | BE31: 0 | BF31: =AVERAGE(BA31:BE31) -> 0 | BG31: =STDEV(BA31:BE31) -> 0
B32: 3 | D32: NA | E32: NA | F32: NA | G32: NA | H32: NA | I32: =AVERAGE(D32:H32) ->  | J32: =STDEV(D32:H32) ->  | K32: NA | L32: NA | M32: NA | N32: NA | O32: NA | P32: =AVERAGE(K32:O32) ->  | Q32: =STDEV(K32:O32) ->  | R32: NA | S32: NA | T32: NA | U32: NA | V32: NA | W32: =AVERAGE(R32:V32) ->  | X32: =STDEV(R32:V32) ->  | Y32: 62 | Z32: 78 | AA32: 72 | AB32: 86 | AC32: 88 | AD32: =AVERAGE(Y32:AC32) -> 77 | AE32: =STDEV(Y32:AC32) -> 11 | AF32: 5 | AG32: 9 | AH32: 6 | AI32: 9 | AJ32: 4 | AK32: =AVERAGE(AF32:AJ32) -> 7 | AL32: =STDEV(AF32:AJ32) -> 2 | AM32: 0 | AN32: 2 | AO32: 3 | AP32: 0 | AQ32: 3 | AR32: =AVERAGE(AM32:AQ32) -> 2 | AS32: =STDEV(AM32:AQ32) -> 2 | AT32: 0 | AU32: 0 | AV32: 0 | AW32: 0 | AX32: 0 | AY32: =AVERAGE(AT32:AX32) -> 0 | AZ32: =STDEV(AT32:AX32) -> 0 | BA32: 0 | BB32: 0 | BC32: 0 | BD32: 0 | BE32: 0 | BF32: =AVERAGE(BA32:BE32) -> 0 | BG32: =STDEV(BA32:BE32) -> 0
A33: average | I33: =AVERAGE(I30:I32) ->  | P33: =AVERAGE(P30:P32) ->  | W33: =AVERAGE(W30:W32) ->  | AD33: =AVERAGE(AD30:AD32) ->  | AK33: =AVERAGE(AK30:AK32) -> 13 | AR33: =AVERAGE(AR30:AR32) -> 2 | AY33: =AVERAGE(AY30:AY32) -> 0 | BF33: =AVERAGE(BF30:BF32) -> 0
A34: stdev | I34: =SUM(J30:J32) ->  | P34: =SUM(Q30:Q32) ->  | W34: =SUM(X30:X32) ->  | AD34: =SUM(AE30:AE32) ->  | AK34: =SUM(AL30:AL32) -> 8 | AR34: =SUM(AS30:AS32) -> 3 | AY34: =SUM(AZ30:AZ32) -> 0 | BF34: =SUM(BG30:BG32) -> 0
A35: 2213F A | B35: 1 | D35: NA | E35: NA | F35: NA | G35: NA | H35: NA | I35: =AVERAGE(D35:H35) ->  | J35: =STDEV(D35:H35) ->  | K35: NA | L35: NA | M35: NA | N35: NA | O35: NA | P35: =AVERAGE(K35:O35) ->  | Q35: =STDEV(K35:O35) ->  | R35: NA | S35: NA | T35: NA | U35: NA | V35: NA | W35: =AVERAGE(R35:V35) ->  | X35: =STDEV(R35:V35) ->  | Y35: 29 | Z35: 25 | AA35: 30 | AB35: 33 | AC35: 23 | AD35: =AVERAGE(Y35:AC35) -> 28 | AE35: =STDEV(Y35:AC35) -> 4 | AF35: 3 | AG35: 1 | AH35: 6 | AI35: 6 | AJ35: 4 | AK35: =AVERAGE(AF35:AJ35) -> 4 | AL35: =STDEV(AF35:AJ35) -> 2 | AM35: 1 | AN35: 0 | AO35: 0 | AP35: 0 | AQ35: 0 | AR35: =AVERAGE(AM35:AQ35) -> 0 | AS35: =STDEV(AM35:AQ35) -> 0 | AT35: 0 | AU35: 0 | AV35: 0 | AW35: 0 | AX35: 0 | AY35: =AVERAGE(AT35:AX35) -> 0 | AZ35: =STDEV(AT35:AX35) -> 0 | BA35: 0 | BB35: 0 | BC35: 0 | BD35: 0 | BE35: 0 | BF35: =AVERAGE(BA35:BE35) -> 0 | BG35: =STDEV(BA35:BE35) -> 0
A36: p+0 | B36: 2 | D36: NA | E36: NA | F36: NA | G36: NA | H36: NA | I36: =AVERAGE(D36:H36) ->  | J36: =STDEV(D36:H36) ->  | K36: NA | L36: NA | M36: NA | N36: NA | O36: NA | P36: =AVERAGE(K36:O36) ->  | Q36: =STDEV(K36:O36) ->  | R36: NA | S36: NA | T36: NA | U36: NA | V36: NA | W36: =AVERAGE(R36:V36) ->  | X36: =STDEV(R36:V36) ->  | Y36: 45 | Z36: 61 | AA36: 73 | AB36: 64 | AC36: 56 | AD36: =AVERAGE(Y36:AC36) -> 60 | AE36: =STDEV(Y36:AC36) -> 10 | AF36: 5 | AG36: 8 | AH36: 11 | AI36: 7 | AJ36: 10 | AK36: =AVERAGE(AF36:AJ36) -> 8 | AL36: =STDEV(AF36:AJ36) -> 2 | AM36: 1 | AN36: 1 | AO36: 0 | AP36: 4 | AQ36: 1 | AR36: =AVERAGE(AM36:AQ36) -> 1 | AS36: =STDEV(AM36:AQ36) -> 2 | AT36: 0 | AU36: 0 | AV36: 0 | AW36: 0 | AX36: 0 | AY36: =AVERAGE(AT36:AX36) -> 0 | AZ36: =STDEV(AT36:AX36) -> 0 | BA36: 0 | BB36: 0 | BC36: 0 | BD36: 0 | BE36: 0 | BF36: =AVERAGE(BA36:BE36) -> 0 | BG36: =STDEV(BA36:BE36) -> 0
B37: 3 | D37: NA | E37: NA | F37: NA | G37: NA | H37: NA | I37: =AVERAGE(D37:H37) ->  | J37: =STDEV(D37:H37) ->  | K37: NA | L37: NA | M37: NA | N37: NA | O37: NA | P37: =AVERAGE(K37:O37) ->  | Q37: =STDEV(K37:O37) ->  | R37: NA | S37: NA | T37: NA | U37: NA | V37: NA | W37: =AVERAGE(R37:V37) ->  | X37: =STDEV(R37:V37) ->  | Y37: 57 | Z37: 60 | AA37: 98 | AB37: 76 | AC37: 51 | AD37: =AVERAGE(Y37:AC37) -> 68 | AE37: =STDEV(Y37:AC37) -> 19 | AF37: 11 | AG37: 6 | AH37: 13 | AI37: 15 | AJ37: 4 | AK37: =AVERAGE(AF37:AJ37) -> 10 | AL37: =STDEV(AF37:AJ37) -> 5 | AM37: 1 | AN37: 12 | AO37: 4 | AP37: 2 | AQ37: 7 | AR37: =AVERAGE(AM37:AQ37) -> 5 | AS37: =STDEV(AM37:AQ37) -> 4 | AT37: 0 | AU37: 0 | AV37: 0 | AW37: 0 | AX37: 0 | AY37: =AVERAGE(AT37:AX37) -> 0 | AZ37: =STDEV(AT37:AX37) -> 0 | BA37: 0 | BB37: 0 | BC37: 0 | BD37: 0 | BE37: 0 | BF37: =AVERAGE(BA37:BE37) -> 0 | BG37: =STDEV(BA37:BE37) -> 0
A38: average | I38: =AVERAGE(I35:I37) ->  | P38: =AVERAGE(P35:P37) ->  | W38: =AVERAGE(W35:W37) ->  | AD38: =AVERAGE(AD35:AD37) -> 52 | AK38: =AVERAGE(AK35:AK37) -> 7 | AR38: =AVERAGE(AR35:AR37) -> 2 | AY38: =AVERAGE(AY35:AY37) -> 0 | BF38: =AVERAGE(BF35:BF37) -> 0
A39: stdev | I39: =SUM(J35:J37) ->  | P39: =SUM(Q35:Q37) ->  | W39: =SUM(X35:X37) ->  | AD39: =SUM(AE35:AE37) -> 33 | AK39: =SUM(AL35:AL37) -> 9 | AR39: =SUM(AS35:AS37) -> 6 | AY39: =SUM(AZ35:AZ37) -> 0 | BF39: =SUM(BG35:BG37) -> 0
A40: p+3 | B40: 1 | D40: NA | E40: NA | F40: NA | G40: NA | H40: NA | I40: =AVERAGE(D40:H40) ->  | J40: =STDEV(D40:H40) ->  | K40: NA | L40: NA | M40: NA | N40: NA | O40: NA | P40: =AVERAGE(K40:O40) ->  | Q40: =STDEV(K40:O40) ->  | R40: NA | S40: NA | T40: NA | U40: NA | V40: NA | W40: =AVERAGE(R40:V40) ->  | X40: =STDEV(R40:V40) ->  | Y40: 46 | Z40: 61 | AA40: 57 | AB40: 55 | AC40: 80 | AD40: =AVERAGE(Y40:AC40) -> 60 | AE40: =STDEV(Y40:AC40) -> 13 | AF40: 10 | AG40: 8 | AH40: 11 | AI40: 8 | AJ40: 9 | AK40: =AVERAGE(AF40:AJ40) -> 9 | AL40: =STDEV(AF40:AJ40) -> 1 | AM40: 0 | AN40: 1 | AO40: 0 | AP40: 0 | AQ40: 2 | AR40: =AVERAGE(AM40:AQ40) -> 1 | AS40: =STDEV(AM40:AQ40) -> 1 | AT40: 0 | AU40: 0 | AV40: 0 | AW40: 0 | AX40: 0 | AY40: =AVERAGE(AT40:AX40) -> 0 | AZ40: =STDEV(AT40:AX40) -> 0 | BA40: 0 | BB40: 0 | BC40: 0 | BD40: 1 | BE40: 0 | BF40: =AVERAGE(BA40:BE40) -> 0 | BG40: =STDEV(BA40:BE40) -> 0
B41: 2 | D41: NA | E41: NA | F41: NA | G41: NA | H41: NA | I41: =AVERAGE(D41:H41) ->  | J41: =STDEV(D41:H41) ->  | K41: NA | L41: NA | M41: NA | N41: NA | O41: NA | P41: =AVERAGE(K41:O41) ->  | Q41: =STDEV(K41:O41) ->  | R41: NA | S41: NA | T41: NA | U41: NA | V41: NA | W41: =AVERAGE(R41:V41) ->  | X41: =STDEV(R41:V41) ->  | Y41: 51 | Z41: 58 | AA41: 51 | AB41: 57 | AC41: 43 | AD41: =AVERAGE(Y41:AC41) -> 52 | AE41: =STDEV(Y41:AC41) -> 6 | AF41: 9 | AG41: 8 | AH41: 5 | AI41: 8 | AJ41: 8 | AK41: =AVERAGE(AF41:AJ41) -> 8 | AL41: =STDEV(AF41:AJ41) -> 2 | AM41: 1 | AN41: 1 | AO41: 1 | AP41: 0 | AQ41: 3 | AR41: =AVERAGE(AM41:AQ41) -> 1 | AS41: =STDEV(AM41:AQ41) -> 1 | AT41: 0 | AU41: 0 | AV41: 0 | AW41: 0 | AX41: 0 | AY41: =AVERAGE(AT41:AX41) -> 0 | AZ41: =STDEV(AT41:AX41) -> 0 | BA41: 0 | BB41: 0 | BC41: 0 | BD41: 2 | BE41: 1 | BF41: =AVERAGE(BA41:BE41) -> 1 | BG41: =STDEV(BA41:BE41) -> 1
B42: 3 | D42: NA | E42: NA | F42: NA | G42: NA | H42: NA | I42: =AVERAGE(D42:H42) ->  | J42: =STDEV(D42:H42) ->  | K42: NA | L42: NA | M42: NA | N42: NA | O42: NA | P42: =AVERAGE(K42:O42) ->  | Q42: =STDEV(K42:O42) ->  | R42: NA | S42: NA | T42: NA | U42: NA | V42: NA | W42: =AVERAGE(R42:V42) ->  | X42: =STDEV(R42:V42) ->  | Y42: 37 | Z42: 35 | AA42: 39 | AB42: 36 | AC42: 35 | AD42: =AVERAGE(Y42:AC42) -> 36 | AE42: =STDEV(Y42:AC42) -> 2 | AF42: 3 | AG42: 8 | AH42: 3 | AI42: 6 | AJ42: 3 | AK42: =AVERAGE(AF42:AJ42) -> 5 | AL42: =STDEV(AF42:AJ42) -> 2 | AM42: 0 | AN42: 1 | AO42: 0 | AP42: 0 | AQ42: 0 | AR42: =AVERAGE(AM42:AQ42) -> 0 | AS42: =STDEV(AM42:AQ42) -> 0 | AT42: 0 | AU42: 0 | AV42: 0 | AW42: 0 | AX42: 0 | AY42: =AVERAGE(AT42:AX42) -> 0 | AZ42: =STDEV(AT42:AX42) -> 0 | BA42: 0 | BB42: 0 | BC42: 0 | BD42: 1 | BE42: 2 | BF42: =AVERAGE(BA42:BE42) -> 1 | BG42: =STDEV(BA42:BE42) -> 1
A43: average | I43: =AVERAGE(I40:I42) ->  | P43: =AVERAGE(P40:P42) ->  | W43: =AVERAGE(W40:W42) ->  | AD43: =AVERAGE(AD40:AD42) -> 49 | AK43: =AVERAGE(AK40:AK42) -> 7 | AR43: =AVERAGE(AR40:AR42) -> 1 | AY43: =AVERAGE(AY40:AY42) -> 0 | BF43: =AVERAGE(BF40:BF42) -> 0
A44: stdev | I44: =SUM(J40:J42) ->  | P44: =SUM(Q40:Q42) ->  | W44: =SUM(X40:X42) ->  | AD44: =SUM(AE40:AE42) -> 20 | AK44: =SUM(AL40:AL42) -> 5 | AR44: =SUM(AS40:AS42) -> 2 | AY44: =SUM(AZ40:AZ42) -> 0 | BF44: =SUM(BG40:BG42) -> 2
A45: 2213F APR | B45: 1 | D45: NA | E45: NA | F45: NA | G45: NA | H45: NA | I45: =AVERAGE(D45:H45) ->  | J45: =STDEV(D45:H45) ->  | K45: NA | L45: NA | M45: NA | N45: NA | O45: NA | P45: =AVERAGE(K45:O45) ->  | Q45: =STDEV(K45:O45) ->  | R45: NA | S45: NA | T45: NA | U45: NA | V45: NA | W45: =AVERAGE(R45:V45) ->  | X45: =STDEV(R45:V45) ->  | Y45: NA | Z45: NA | AA45: NA | AB45: NA | AC45: NA | AD45: =AVERAGE(Y45:AC45) ->  | AE45: =STDEV(Y45:AC45) ->  | AF45: 13 | AG45: NA | AH45: NA | AI45: 22 | AJ45: 22 | AK45: =AVERAGE(AF45:AJ45) -> 19 | AL45: =STDEV(AF45:AJ45) -> 5 | AM45: 3 | AN45: NA | AO45: NA | AP45: NA | AQ45: 3 | AR45: =AVERAGE(AM45:AQ45) -> 3 | AS45: =STDEV(AM45:AQ45) -> 0 | AT45: 0 | AU45: 0 | AV45: 0 | AW45: 0 | AX45: 0 | AY45: =AVERAGE(AT45:AX45) -> 0 | AZ45: =STDEV(AT45:AX45) -> 0 | BA45: 0 | BB45: 0 | BC45: 0 | BD45: 0 | BE45: 0 | BF45: =AVERAGE(BA45:BE45) -> 0 | BG45: =STDEV(BA45:BE45) -> 0
A46: p+0 | B46: 2 | D46: NA | E46: NA | F46: NA | G46: NA | H46: NA | I46: =AVERAGE(D46:H46) ->  | J46: =STDEV(D46:H46) ->  | K46: NA | L46: NA | M46: NA | N46: NA | O46: NA | P46: =AVERAGE(K46:O46) ->  | Q46: =STDEV(K46:O46) ->  | R46: NA | S46: NA | T46: NA | U46: NA | V46: NA | W46: =AVERAGE(R46:V46) ->  | X46: =STDEV(R46:V46) ->  | Y46: 49 | Z46: 72 | AA46: 125 | AB46: 69 | AC46: 60 | AD46: =AVERAGE(Y46:AC46) -> 75 | AE46: =STDEV(Y46:AC46) -> 29 | AF46: 12 | AG46: 12 | AH46: 15 | AI46: 16 | AJ46: 14 | AK46: =AVERAGE(AF46:AJ46) -> 14 | AL46: =STDEV(AF46:AJ46) -> 2 | AM46: 2 | AN46: 0 | AO46: 6 | AP46: 0 | AQ46: 1 | AR46: =AVERAGE(AM46:AQ46) -> 2 | AS46: =STDEV(AM46:AQ46) -> 2 | AT46: 0 | AU46: 0 | AV46: 0 | AW46: 0 | AX46: 0 | AY46: =AVERAGE(AT46:AX46) -> 0 | AZ46: =STDEV(AT46:AX46) -> 0 | BA46: 0 | BB46: 0 | BC46: 2 | BD46: 0 | BE46: 0 | BF46: =AVERAGE(BA46:BE46) -> 0 | BG46: =STDEV(BA46:BE46) -> 1
B47: 3 | D47: NA | E47: NA | F47: NA | G47: NA | H47: NA | I47: =AVERAGE(D47:H47) ->  | J47: =STDEV(D47:H47) ->  | K47: NA | L47: NA | M47: NA | N47: NA | O47: NA | P47: =AVERAGE(K47:O47) ->  | Q47: =STDEV(K47:O47) ->  | R47: NA | S47: NA | T47: NA | U47: NA | V47: NA | W47: =AVERAGE(R47:V47) ->  | X47: =STDEV(R47:V47) ->  | Y47: 69 | Z47: 73 | AA47: 82 | AB47: 75 | AC47: 77 | AD47: =AVERAGE(Y47:AC47) -> 75 | AE47: =STDEV(Y47:AC47) -> 5 | AF47: 11 | AG47: 13 | AH47: 12 | AI47: 15 | AJ47: 17 | AK47: =AVERAGE(AF47:AJ47) -> 14 | AL47: =STDEV(AF47:AJ47) -> 2 | AM47: 3 | AN47: 0 | AO47: 0 | AP47: 0 | AQ47: 0 | AR47: =AVERAGE(AM47:AQ47) -> 1 | AS47: =STDEV(AM47:AQ47) -> 1 | AT47: 0 | AU47: 0 | AV47: 0 | AW47: 0 | AX47: 0 | AY47: =AVERAGE(AT47:AX47) -> 0 | AZ47: =STDEV(AT47:AX47) -> 0 | BA47: 0 | BB47: 0 | BC47: 0 | BD47: 0 | BE47: 0 | BF47: =AVERAGE(BA47:BE47) -> 0 | BG47: =STDEV(BA47:BE47) -> 0
A48: average | I48: =AVERAGE(I45:I47) ->  | P48: =AVERAGE(P45:P47) ->  | W48: =AVERAGE(W45:W47) ->  | AD48: =AVERAGE(AD45:AD47) ->  | AK48: =AVERAGE(AK45:AK47) -> 15 | AR48: =AVERAGE(AR45:AR47) -> 2 | AY48: =AVERAGE(AY45:AY47) -> 0 | BF48: =AVERAGE(BF45:BF47) -> 0
A49: stdev | I49: =SUM(J45:J47) ->  | P49: =SUM(Q45:Q47) ->  | W49: =SUM(X45:X47) ->  | AD49: =SUM(AE45:AE47) ->  | AK49: =SUM(AL45:AL47) -> 9 | AR49: =SUM(AS45:AS47) -> 4 | AY49: =SUM(AZ45:AZ47) -> 0 | BF49: =SUM(BG45:BG47) -> 1
A50: p+3 | B50: 1 | D50: NA | E50: NA | F50: NA | G50: NA | H50: NA | I50: =AVERAGE(D50:H50) ->  | J50: =STDEV(D50:H50) ->  | K50: NA | L50: NA | M50: NA | N50: NA | O50: NA | P50: =AVERAGE(K50:O50) ->  | Q50: =STDEV(K50:O50) ->  | R50: NA | S50: NA | T50: NA | U50: NA | V50: NA | W50: =AVERAGE(R50:V50) ->  | X50: =STDEV(R50:V50) ->  | Y50: 63 | Z50: 78 | AA50: 71 | AB50: 63 | AC50: 55 | AD50: =AVERAGE(Y50:AC50) -> 66 | AE50: =STDEV(Y50:AC50) -> 9 | AF50: 11 | AG50: 8 | AH50: 6 | AI50: 15 | AJ50: 13 | AK50: =AVERAGE(AF50:AJ50) -> 11 | AL50: =STDEV(AF50:AJ50) -> 4 | AM50: 0 | AN50: 1 | AO50: 2 | AP50: 2 | AQ50: 0 | AR50: =AVERAGE(AM50:AQ50) -> 1 | AS50: =STDEV(AM50:AQ50) -> 1 | AT50: 0 | AU50: 0 | AV50: 0 | AW50: 0 | AX50: 0 | AY50: =AVERAGE(AT50:AX50) -> 0 | AZ50: =STDEV(AT50:AX50) -> 0 | BA50: 0 | BB50: 0 | BC50: 0 | BD50: 0 | BE50: 0 | BF50: =AVERAGE(BA50:BE50) -> 0 | BG50: =STDEV(BA50:BE50) -> 0
B51: 2 | D51: NA | E51: NA | F51: NA | G51: NA | H51: NA | I51: =AVERAGE(D51:H51) ->  | J51: =STDEV(D51:H51) ->  | K51: NA | L51: NA | M51: NA | N51: NA | O51: NA | P51: =AVERAGE(K51:O51) ->  | Q51: =STDEV(K51:O51) ->  | R51: NA | S51: NA | T51: NA | U51: NA | V51: NA | W51: =AVERAGE(R51:V51) ->  | X51: =STDEV(R51:V51) ->  | Y51: 21 | Z51: 21 | AA51: 23 | AB51: 19 | AC51: 21 | AD51: =AVERAGE(Y51:AC51) -> 21 | AE51: =STDEV(Y51:AC51) -> 1 | AF51: 1 | AG51: 2 | AH51: 1 | AI51: 2 | AJ51: 2 | AK51: =AVERAGE(AF51:AJ51) -> 2 | AL51: =STDEV(AF51:AJ51) -> 1 | AM51: 0 | AN51: 0 | AO51: 0 | AP51: 1 | AQ51: 1 | AR51: =AVERAGE(AM51:AQ51) -> 0 | AS51: =STDEV(AM51:AQ51) -> 1 | AT51: 0 | AU51: 0 | AV51: 0 | AW51: 0 | AX51: 0 | AY51: =AVERAGE(AT51:AX51) -> 0 | AZ51: =STDEV(AT51:AX51) -> 0 | BA51: 1 | BB51: 0 | BC51: 0 | BD51: 1 | BE51: 3 | BF51: =AVERAGE(BA51:BE51) -> 1 | BG51: =STDEV(BA51:BE51) -> 1
B52: 3 | D52: NA | E52: NA | F52: NA | G52: NA | H52: NA | I52: =AVERAGE(D52:H52) ->  | J52: =STDEV(D52:H52) ->  | K52: NA | L52: NA | M52: NA | N52: NA | O52: NA | P52: =AVERAGE(K52:O52) ->  | Q52: =STDEV(K52:O52) ->  | R52: NA | S52: NA | T52: NA | U52: NA | V52: NA | W52: =AVERAGE(R52:V52) ->  | X52: =STDEV(R52:V52) ->  | Y52: 122 | Z52: 111 | AA52: 101 | AB52: 107 | AC52: 96 | AD52: =AVERAGE(Y52:AC52) -> 107 | AE52: =STDEV(Y52:AC52) -> 10 | AF52: 17 | AG52: 21 | AH52: 18 | AI52: 21 | AJ52: 24 | AK52: =AVERAGE(AF52:AJ52) -> 20 | AL52: =STDEV(AF52:AJ52) -> 3 | AM52: 3 | AN52: 3 | AO52: 2 | AP52: 2 | AQ52: 1 | AR52: =AVERAGE(AM52:AQ52) -> 2 | AS52: =STDEV(AM52:AQ52) -> 1 | AT52: 1 | AU52: 0 | AV52: 0 | AW52: 0 | AX52: 1 | AY52: =AVERAGE(AT52:AX52) -> 0 | AZ52: =STDEV(AT52:AX52) -> 1 | BA52: 1 | BB52: 1 | BC52: 1 | BD52: 0 | BE52: 0 | BF52: =AVERAGE(BA52:BE52) -> 1 | BG52: =STDEV(BA52:BE52) -> 1
A53: average | I53: =AVERAGE(I50:I52) ->  | P53: =AVERAGE(P50:P52) ->  | W53: =AVERAGE(W50:W52) ->  | AD53: =AVERAGE(AD50:AD52) -> 65 | AK53: =AVERAGE(AK50:AK52) -> 11 | AR53: =AVERAGE(AR50:AR52) -> 1 | AY53: =AVERAGE(AY50:AY52) -> 0 | BF53: =AVERAGE(BF50:BF52) -> 1
A54: stdev | I54: =SUM(J50:J52) ->  | P54: =SUM(Q50:Q52) ->  | W54: =SUM(X50:X52) ->  | AD54: =SUM(AE50:AE52) -> 20 | AK54: =SUM(AL50:AL52) -> 7 | AR54: =SUM(AS50:AS52) -> 2 | AY54: =SUM(AZ50:AZ52) -> 1 | BF54: =SUM(BG50:BG52) -> 2
B57: 2017-10-04
A58: Sample | B58: Dilution: | D58: 1 | I58: AVERAGE | K58: =10^-1 -> 0.1 | P58: AVERAGE | R58: =10^-2 -> 0.01 | W58: AVERAGE | Y58: =10^-3 -> 1.00E-03 | AD58: AVERAGE | AF58: 10^-4 | AK58: AVERAGE | AM58: 10^-5 | AR58: AVERAGE | AT58: 10^-6 | AY58: AVERAGE | BA58: 10^-7 | BF58: AVERAGE
A59: Blank | B59: 1 | D59: 0 | E59: 0 | F59: 0 | G59: 0 | H59: 0 | I59: =AVERAGE(D59:H59) -> 0 | J59: =STDEV(D59:H59) -> 0 | K59: 0 | L59: 0 | M59: 0 | N59: 0 | O59: 0 | P59: =AVERAGE(K59:O59) -> 0 | Q59: =STDEV(K59:O59) -> 0 | R59: 0 | S59: 0 | T59: 0 | U59: 0 | V59: 0 | W59: =AVERAGE(R59:V59) -> 0 | X59: =STDEV(R59:V59) -> 0 | Y59: 0 | Z59: 0 | AA59: 0 | AB59: 0 | AC59: 0 | AD59: =AVERAGE(Y59:AC59) -> 0 | AE59: =STDEV(Y59:AC59) -> 0 | AF59: 0 | AG59: 0 | AH59: 0 | AI59: 0 | AJ59: 0 | AK59: =AVERAGE(AF59:AJ59) -> 0 | AL59: =STDEV(AF59:AJ59) -> 0 | AM59: 0 | AN59: 0 | AO59: 0 | AP59: 0 | AQ59: 0 | AR59: =AVERAGE(AM59:AQ59) -> 0 | AS59: =STDEV(AM59:AQ59) -> 0 | AT59: 0 | AU59: 0 | AV59: 0 | AW59: 0 | AX59: 0 | AY59: =AVERAGE(AT59:AX59) -> 0 | AZ59: =STDEV(AT59:AX59) -> 0 | BA59: 0 | BB59: 0 | BC59: 0 | BD59: 0 | BE59: 0 | BF59: =AVERAGE(BA59:BE59) -> 0 | BG59: =STDEV(BA59:BE59) -> 0
B60: 2 | D60: 0 | E60: 0 | F60: 0 | G60: 0 | H60: 0 | I60: =AVERAGE(D60:H60) -> 0 | J60: =STDEV(D60:H60) -> 0 | K60: 0 | L60: 0 | M60: 0 | N60: 0 | O60: 0 | P60: =AVERAGE(K60:O60) -> 0 | Q60: =STDEV(K60:O60) -> 0 | R60: 0 | S60: 0 | T60: 0 | U60: 0 | V60: 0 | W60: =AVERAGE(R60:V60) -> 0 | X60: =STDEV(R60:V60) -> 0 | Y60: 0 | Z60: 0 | AA60: 0 | AB60: 0 | AC60: 0 | AD60: =AVERAGE(Y60:AC60) -> 0 | AE60: =STDEV(Y60:AC60) -> 0 | AF60: 0 | AG60: 0 | AH60: 0 | AI60: 0 | AJ60: 0 | AK60: =AVERAGE(AF60:AJ60) -> 0 | AL60: =STDEV(AF60:AJ60) -> 0 | AM60: 0 | AN60: 0 | AO60: 0 | AP60: 0 | AQ60: 0 | AR60: =AVERAGE(AM60:AQ60) -> 0 | AS60: =STDEV(AM60:AQ60) -> 0 | AT60: 0 | AU60: 0 | AV60: 0 | AW60: 0 | AX60: 0 | AY60: =AVERAGE(AT60:AX60) -> 0 | AZ60: =STDEV(AT60:AX60) -> 0 | BA60: 0 | BB60: 0 | BC60: 0 | BD60: 0 | BE60: 0 | BF60: =AVERAGE(BA60:BE60) -> 0 | BG60: =STDEV(BA60:BE60) -> 0
B61: 3 | D61: 0 | E61: 0 | F61: 0 | G61: 0 | H61: 0 | I61: =AVERAGE(D61:H61) -> 0 | J61: =STDEV(D61:H61) -> 0 | K61: 0 | L61: 0 | M61: 0 | N61: 0 | O61: 0 | P61: =AVERAGE(K61:O61) -> 0 | Q61: =STDEV(K61:O61) -> 0 | R61: 0 | S61: 0 | T61: 0 | U61: 0 | V61: 0 | W61: =AVERAGE(R61:V61) -> 0 | X61: =STDEV(R61:V61) -> 0 | Y61: 0 | Z61: 0 | AA61: 0 | AB61: 0 | AC61: 0 | AD61: =AVERAGE(Y61:AC61) -> 0 | AE61: =STDEV(Y61:AC61) -> 0 | AF61: 0 | AG61: 0 | AH61: 0 | AI61: 0 | AJ61: 0 | AK61: =AVERAGE(AF61:AJ61) -> 0 | AL61: =STDEV(AF61:AJ61) -> 0 | AM61: 0 | AN61: 0 | AO61: 0 | AP61: 0 | AQ61: 0 | AR61: =AVERAGE(AM61:AQ61) -> 0 | AS61: =STDEV(AM61:AQ61) -> 0 | AT61: 0 | AU61: 0 | AV61: 0 | AW61: 0 | AX61: 0 | AY61: =AVERAGE(AT61:AX61) -> 0 | AZ61: =STDEV(AT61:AX61) -> 0 | BA61: 0 | BB61: 0 | BC61: 0 | BD61: 0 | BE61: 0 | BF61: =AVERAGE(BA61:BE61) -> 0 | BG61: =STDEV(BA61:BE61) -> 0
I62: =AVERAGE(I59:I61) -> 0 | P62: =AVERAGE(P59:P61) -> 0 | W62: =AVERAGE(W59:W61) -> 0 | AD62: =AVERAGE(AD59:AD61) -> 0 | AK62: =AVERAGE(AK59:AK61) -> 0 | AR62: =AVERAGE(AR59:AR61) -> 0 | AY62: =AVERAGE(AY59:AY61) -> 0 | BF62: =AVERAGE(BF59:BF61) -> 0
I63: =SUM(J59:J61) -> 0 | P63: =SUM(Q59:Q61) -> 0 | W63: =SUM(X59:X61) -> 0 | AD63: =SUM(AE59:AE61) -> 0 | AK63: =SUM(AL59:AL61) -> 0 | AR63: =SUM(AS59:AS61) -> 0 | AY63: =SUM(AZ59:AZ61) -> 0 | BF63: =SUM(BG59:BG61) -> 0
A64: DH5α - | B64: 1 | D64: NA | E64: NA | F64: NA | G64: NA | H64: NA | I64: =AVERAGE(D64:H64) ->  | J64: =STDEV(D64:H64) ->  | K64: NA | L64: NA | M64: NA | N64: NA | O64: NA | P64: =AVERAGE(K64:O64) ->  | Q64: =STDEV(K64:O64) ->  | R64: 66 | S64: 76 | T64: 83 | U64: 86 | V64: 72 | W64: =AVERAGE(R64:V64) -> 77 | X64: =STDEV(R64:V64) -> 8 | Y64: 0 | Z64: 0 | AA64: 0 | AB64: 0 | AC64: 0 | AD64: =AVERAGE(Y64:AC64) -> 0 | AE64: =STDEV(Y64:AC64) -> 0 | AF64: 0 | AG64: 0 | AH64: 0 | AI64: 0 | AJ64: 0 | AK64: =AVERAGE(AF64:AJ64) -> 0 | AL64: =STDEV(AF64:AJ64) -> 0 | AM64: 0 | AN64: 0 | AO64: 0 | AP64: 0 | AQ64: 0 | AR64: =AVERAGE(AM64:AQ64) -> 0 | AS64: =STDEV(AM64:AQ64) -> 0 | AT64: 0 | AU64: 0 | AV64: 0 | AW64: 0 | AX64: 0 | AY64: =AVERAGE(AT64:AX64) -> 0 | AZ64: =STDEV(AT64:AX64) -> 0 | BA64: 0 | BB64: 0 | BC64: 0 | BD64: 0 | BE64: 0 | BF64: =AVERAGE(BA64:BE64) -> 0 | BG64: =STDEV(BA64:BE64) -> 0
B65: 2 | D65: NA | E65: NA | F65: NA | G65: NA | H65: NA | I65: =AVERAGE(D65:H65) ->  | J65: =STDEV(D65:H65) ->  | K65: NA | L65: NA | M65: NA | N65: NA | O65: NA | P65: =AVERAGE(K65:O65) ->  | Q65: =STDEV(K65:O65) ->  | R65: 140 | S65: 95 | T65: 96 | U65: 112 | V65: 111 | W65: =AVERAGE(R65:V65) -> 111 | X65: =STDEV(R65:V65) -> 18 | Y65: 0 | Z65: 0 | AA65: 0 | AB65: 0 | AC65: 0 | AD65: =AVERAGE(Y65:AC65) -> 0 | AE65: =STDEV(Y65:AC65) -> 0 | AF65: 0 | AG65: 0 | AH65: 0 | AI65: 0 | AJ65: 0 | AK65: =AVERAGE(AF65:AJ65) -> 0 | AL65: =STDEV(AF65:AJ65) -> 0 | AM65: 0 | AN65: 0 | AO65: 0 | AP65: 0 | AQ65: 0 | AR65: =AVERAGE(AM65:AQ65) -> 0 | AS65: =STDEV(AM65:AQ65) -> 0 | AT65: 0 | AU65: 0 | AV65: 0 | AW65: 0 | AX65: 0 | AY65: =AVERAGE(AT65:AX65) -> 0 | AZ65: =STDEV(AT65:AX65) -> 0 | BA65: 0 | BB65: 0 | BC65: 0 | BD65: 0 | BE65: 0 | BF65: =AVERAGE(BA65:BE65) -> 0 | BG65: =STDEV(BA65:BE65) -> 0
B66: 3 | D66: NA | E66: NA | F66: NA | G66: NA | H66: NA | I66: =AVERAGE(D66:H66) ->  | J66: =STDEV(D66:H66) ->  | K66: NA | L66: NA | M66: NA | N66: NA | O66: NA | P66: =AVERAGE(K66:O66) ->  | Q66: =STDEV(K66:O66) ->  | R66: 32 | S66: 29 | T66: 40 | U66: 42 | V66: 40 | W66: =AVERAGE(R66:V66) -> 37 | X66: =STDEV(R66:V66) -> 6 | Y66: 0 | Z66: 0 | AA66: 0 | AB66: 0 | AC66: 0 | AD66: =AVERAGE(Y66:AC66) -> 0 | AE66: =STDEV(Y66:AC66) -> 0 | AF66: 0 | AG66: 0 | AH66: 0 | AI66: 0 | AJ66: 0 | AK66: =AVERAGE(AF66:AJ66) -> 0 | AL66: =STDEV(AF66:AJ66) -> 0 | AM66: 0 | AN66: 0 | AO66: 0 | AP66: 0 | AQ66: 0 | AR66: =AVERAGE(AM66:AQ66) -> 0 | AS66: =STDEV(AM66:AQ66) -> 0 | AT66: 0 | AU66: 0 | AV66: 0 | AW66: 0 | AX66: 0 | AY66: =AVERAGE(AT66:AX66) -> 0 | AZ66: =STDEV(AT66:AX66) -> 0 | BA66: 0 | BB66: 0 | BC66: 0 | BD66: 0 | BE66: 0 | BF66: =AVERAGE(BA66:BE66) -> 0 | BG66: =STDEV(BA66:BE66) -> 0
I67: =AVERAGE(I64:I66) ->  | P67: =AVERAGE(P64:P66) ->  | W67: =AVERAGE(W64:W66) -> 75 | AD67: =AVERAGE(AD64:AD66) -> 0 | AK67: =AVERAGE(AK64:AK66) -> 0 | AR67: =AVERAGE(AR64:AR66) -> 0 | AY67: =AVERAGE(AY64:AY66) -> 0 | BF67: =AVERAGE(BF64:BF66) -> 0
I68: =SUM(J64:J66) ->  | P68: =SUM(Q64:Q66) ->  | W68: =SUM(X64:X66) -> 32 | AD68: =SUM(AE64:AE66) -> 0 | AK68: =SUM(AL64:AL66) -> 0 | AR68: =SUM(AS64:AS66) -> 0 | AY68: =SUM(AZ64:AZ66) -> 0 | BF68: =SUM(BG64:BG66) -> 0
A69: WT | B69: 1 | D69: NA | E69: NA | F69: NA | G69: NA | H69: NA | I69: =AVERAGE(D69:H69) ->  | J69: =STDEV(D69:H69) ->  | K69: NA | L69: NA | M69: NA | N69: NA | O69: NA | P69: =AVERAGE(K69:O69) ->  | Q69: =STDEV(K69:O69) ->  | R69: 68 | S69: 60 | T69: 69 | U69: 79 | V69: 63 | W69: =AVERAGE(R69:V69) -> 68 | X69: =STDEV(R69:V69) -> 7 | Y69: 10 | Z69: 12 | AA69: 11 | AB69: 8 | AC69: 14 | AD69: =AVERAGE(Y69:AC69) -> 11 | AE69: =STDEV(Y69:AC69) -> 2 | AF69: 1 | AG69: 1 | AH69: 4 | AI69: 1 | AJ69: 1 | AK69: =AVERAGE(AF69:AJ69) -> 2 | AL69: =STDEV(AF69:AJ69) -> 1 | AM69: 0 | AN69: 0 | AO69: 0 | AP69: 0 | AQ69: 0 | AR69: =AVERAGE(AM69:AQ69) -> 0 | AS69: =STDEV(AM69:AQ69) -> 0 | AT69: 0 | AU69: 0 | AV69: 0 | AW69: 0 | AX69: 0 | AY69: =AVERAGE(AT69:AX69) -> 0 | AZ69: =STDEV(AT69:AX69) -> 0 | BA69: 0 | BB69: 0 | BC69: 0 | BD69: 0 | BE69: 0 | BF69: =AVERAGE(BA69:BE69) -> 0 | BG69: =STDEV(BA69:BE69) -> 0
B70: 2 | D70: NA | E70: NA | F70: NA | G70: NA | H70: NA | I70: =AVERAGE(D70:H70) ->  | J70: =STDEV(D70:H70) ->  | K70: NA | L70: NA | M70: NA | N70: NA | O70: NA | P70: =AVERAGE(K70:O70) ->  | Q70: =STDEV(K70:O70) ->  | R70: 81 | S70: 57 | T70: 68 | U70: 71 | V70: 64 | W70: =AVERAGE(R70:V70) -> 68 | X70: =STDEV(R70:V70) -> 9 | Y70: 14 | Z70: 17 | AA70: 13 | AB70: 9 | AC70: 9 | AD70: =AVERAGE(Y70:AC70) -> 12 | AE70: =STDEV(Y70:AC70) -> 3 | AF70: 2 | AG70: 2 | AH70: 3 | AI70: 2 | AJ70: 2 | AK70: =AVERAGE(AF70:AJ70) -> 2 | AL70: =STDEV(AF70:AJ70) -> 0 | AM70: 0 | AN70: 0 | AO70: 0 | AP70: 0 | AQ70: 1 | AR70: =AVERAGE(AM70:AQ70) -> 0 | AS70: =STDEV(AM70:AQ70) -> 0 | AT70: 0 | AU70: 0 | AV70: 0 | AW70: 0 | AX70: 0 | AY70: =AVERAGE(AT70:AX70) -> 0 | AZ70: =STDEV(AT70:AX70) -> 0 | BA70: 0 | BB70: 0 | BC70: 0 | BD70: 0 | BE70: 0 | BF70: =AVERAGE(BA70:BE70) -> 0 | BG70: =STDEV(BA70:BE70) -> 0
B71: 3 | D71: NA | E71: NA | F71: NA | G71: NA | H71: NA | I71: =AVERAGE(D71:H71) ->  | J71: =STDEV(D71:H71) ->  | K71: NA | L71: NA | M71: NA | N71: NA | O71: NA | P71: =AVERAGE(K71:O71) ->  | Q71: =STDEV(K71:O71) ->  | R71: 62 | S71: 74 | T71: 67 | U71: 60 | V71: 63 | W71: =AVERAGE(R71:V71) -> 65 | X71: =STDEV(R71:V71) -> 6 | Y71: 12 | Z71: 9 | AA71: 7 | AB71: 10 | AC71: 11 | AD71: =AVERAGE(Y71:AC71) -> 10 | AE71: =STDEV(Y71:AC71) -> 2 | AF71: 2 | AG71: 0 | AH71: 1 | AI71: 0 | AJ71: 1 | AK71: =AVERAGE(AF71:AJ71) -> 1 | AL71: =STDEV(AF71:AJ71) -> 1 | AM71: 0 | AN71: 0 | AO71: 0 | AP71: 0 | AQ71: 0 | AR71: =AVERAGE(AM71:AQ71) -> 0 | AS71: =STDEV(AM71:AQ71) -> 0 | AT71: 0 | AU71: 0 | AV71: 0 | AW71: 0 | AX71: 0 | AY71: =AVERAGE(AT71:AX71) -> 0 | AZ71: =STDEV(AT71:AX71) -> 0 | BA71: 0 | BB71: 0 | BC71: 0 | BD71: 0 | BE71: 0 | BF71: =AVERAGE(BA71:BE71) -> 0 | BG71: =STDEV(BA71:BE71) -> 0
A72: average | I72: =AVERAGE(I69:I71) ->  | P72: =AVERAGE(P69:P71) ->  | W72: =AVERAGE(W69:W71) -> 67 | AD72: =AVERAGE(AD69:AD71) -> 11 | AK72: =AVERAGE(AK69:AK71) -> 2 | AR72: =AVERAGE(AR69:AR71) -> 0 | AY72: =AVERAGE(AY69:AY71) -> 0 | BF72: =AVERAGE(BF69:BF71) -> 0
A73: stdev | I73: =SUM(J69:J71) ->  | P73: =SUM(Q69:Q71) ->  | W73: =SUM(X69:X71) -> 22 | AD73: =SUM(AE69:AE71) -> 8 | AK73: =SUM(AL69:AL71) -> 3 | AR73: =SUM(AS69:AS71) -> 0 | AY73: =SUM(AZ69:AZ71) -> 0 | BF73: =SUM(BG69:BG71) -> 0
A74: 2213F - | B74: 1 | D74: NA | E74: NA | F74: NA | G74: NA | H74: NA | I74: =AVERAGE(D74:H74) ->  | J74: =STDEV(D74:H74) ->  | K74: NA | L74: NA | M74: NA | N74: NA | O74: NA | P74: =AVERAGE(K74:O74) ->  | Q74: =STDEV(K74:O74) ->  | R74: 45 | S74: 47 | T74: 58 | U74: 46 | V74: 52 | W74: =AVERAGE(R74:V74) -> 50 | X74: =STDEV(R74:V74) -> 5 | Y74: 4 | Z74: 6 | AA74: 7 | AB74: 6 | AC74: 3 | AD74: =AVERAGE(Y74:AC74) -> 5 | AE74: =STDEV(Y74:AC74) -> 2 | AF74: 1 | AG74: 0 | AH74: 2 | AI74: 0 | AJ74: 0 | AK74: =AVERAGE(AF74:AJ74) -> 1 | AL74: =STDEV(AF74:AJ74) -> 1 | AM74: 0 | AN74: 0 | AO74: 0 | AP74: 0 | AQ74: 0 | AR74: =AVERAGE(AM74:AQ74) -> 0 | AS74: =STDEV(AM74:AQ74) -> 0 | AT74: 0 | AU74: 0 | AV74: 0 | AW74: 0 | AX74: 0 | AY74: =AVERAGE(AT74:AX74) -> 0 | AZ74: =STDEV(AT74:AX74) -> 0 | BA74: 0 | BB74: 0 | BC74: 0 | BD74: 0 | BE74: 0 | BF74: =AVERAGE(BA74:BE74) -> 0 | BG74: =STDEV(BA74:BE74) -> 0
A75: p+0 | B75: 2 | D75: NA | E75: NA | F75: NA | G75: NA | H75: NA | I75: =AVERAGE(D75:H75) ->  | J75: =STDEV(D75:H75) ->  | K75: NA | L75: NA | M75: NA | N75: NA | O75: NA | P75: =AVERAGE(K75:O75) ->  | Q75: =STDEV(K75:O75) ->  | R75: 77 | S75: 76 | T75: 80 | U75: 79 | V75: 76 | W75: =AVERAGE(R75:V75) -> 78 | X75: =STDEV(R75:V75) -> 2 | Y75: 8 | Z75: 13 | AA75: 12 | AB75: 6 | AC75: 20 | AD75: =AVERAGE(Y75:AC75) -> 12 | AE75: =STDEV(Y75:AC75) -> 5 | AF75: 2 | AG75: 1 | AH75: 0 | AI75: 1 | AJ75: 1 | AK75: =AVERAGE(AF75:AJ75) -> 1 | AL75: =STDEV(AF75:AJ75) -> 1 | AM75: 0 | AN75: 0 | AO75: 0 | AP75: 0 | AQ75: 0 | AR75: =AVERAGE(AM75:AQ75) -> 0 | AS75: =STDEV(AM75:AQ75) -> 0 | AT75: 0 | AU75: 0 | AV75: 0 | AW75: 0 | AX75: 0 | AY75: =AVERAGE(AT75:AX75) -> 0 | AZ75: =STDEV(AT75:AX75) -> 0 | BA75: 0 | BB75: 0 | BC75: 0 | BD75: 0 | BE75: 0 | BF75: =AVERAGE(BA75:BE75) -> 0 | BG75: =STDEV(BA75:BE75) -> 0
B76: 3 | D76: NA | E76: NA | F76: NA | G76: NA | H76: NA | I76: =AVERAGE(D76:H76) ->  | J76: =STDEV(D76:H76) ->  | K76: NA | L76: NA | M76: NA | N76: NA | O76: NA | P76: =AVERAGE(K76:O76) ->  | Q76: =STDEV(K76:O76) ->  | R76: 63 | S76: 45 | T76: 54 | U76: 65 | V76: 55 | W76: =AVERAGE(R76:V76) -> 56 | X76: =STDEV(R76:V76) -> 8 | Y76: 6 | Z76: 14 | AA76: 9 | AB76: 12 | AC76: 12 | AD76: =AVERAGE(Y76:AC76) -> 11 | AE76: =STDEV(Y76:AC76) -> 3 | AF76: 4 | AG76: 2 | AH76: 0 | AI76: 1 | AJ76: 1 | AK76: =AVERAGE(AF76:AJ76) -> 2 | AL76: =STDEV(AF76:AJ76) -> 2 | AM76: 0 | AN76: 0 | AO76: 0 | AP76: 0 | AQ76: 0 | AR76: =AVERAGE(AM76:AQ76) -> 0 | AS76: =STDEV(AM76:AQ76) -> 0 | AT76: 0 | AU76: 0 | AV76: 0 | AW76: 0 | AX76: 0 | AY76: =AVERAGE(AT76:AX76) -> 0 | AZ76: =STDEV(AT76:AX76) -> 0 | BA76: 0 | BB76: 0 | BC76: 0 | BD76: 0 | BE76: 0 | BF76: =AVERAGE(BA76:BE76) -> 0 | BG76: =STDEV(BA76:BE76) -> 0
A77: average | I77: =AVERAGE(I74:I76) ->  | P77: =AVERAGE(P74:P76) ->  | W77: =AVERAGE(W74:W76) -> 61 | AD77: =AVERAGE(AD74:AD76) -> 9 | AK77: =AVERAGE(AK74:AK76) -> 1 | AR77: =AVERAGE(AR74:AR76) -> 0 | AY77: =AVERAGE(AY74:AY76) -> 0 | BF77: =AVERAGE(BF74:BF76) -> 0
A78: stdev | I78: =SUM(J74:J76) ->  | P78: =SUM(Q74:Q76) ->  | W78: =SUM(X74:X76) -> 15 | AD78: =SUM(AE74:AE76) -> 10 | AK78: =SUM(AL74:AL76) -> 3 | AR78: =SUM(AS74:AS76) -> 0 | AY78: =SUM(AZ74:AZ76) -> 0 | BF78: =SUM(BG74:BG76) -> 0
A79: p+3 | B79: 1 | D79: NA | E79: NA | F79: NA | G79: NA | H79: NA | I79: =AVERAGE(D79:H79) ->  | J79: =STDEV(D79:H79) ->  | K79: 155 | L79: 137 | M79: 147 | N79: 153 | O79: 165 | P79: =AVERAGE(K79:O79) -> 151 | Q79: =STDEV(K79:O79) -> 10 | R79: 28 | S79: 35 | T79: 25 | U79: 28 | V79: 27 | W79: =AVERAGE(R79:V79) -> 29 | X79: =STDEV(R79:V79) -> 4 | Y79: 1 | Z79: 3 | AA79: 5 | AB79: 3 | AC79: 4 | AD79: =AVERAGE(Y79:AC79) -> 3 | AE79: =STDEV(Y79:AC79) -> 1 | AF79: 1 | AG79: 2 | AH79: 1 | AI79: 0 | AJ79: 0 | AK79: =AVERAGE(AF79:AJ79) -> 1 | AL79: =STDEV(AF79:AJ79) -> 1 | AM79: 0 | AN79: 0 | AO79: 0 | AP79: 0 | AQ79: 0 | AR79: =AVERAGE(AM79:AQ79) -> 0 | AS79: =STDEV(AM79:AQ79) -> 0 | AT79: 0 | AU79: 0 | AV79: 0 | AW79: 0 | AX79: 0 | AY79: =AVERAGE(AT79:AX79) -> 0 | AZ79: =STDEV(AT79:AX79) -> 0 | BA79: 0 | BB79: 0 | BC79: 0 | BD79: 0 | BE79: 0 | BF79: =AVERAGE(BA79:BE79) -> 0 | BG79: =STDEV(BA79:BE79) -> 0
B80: 2 | D80: NA | E80: NA | F80: NA | G80: NA | H80: NA | I80: =AVERAGE(D80:H80) ->  | J80: =STDEV(D80:H80) ->  | K80: 67 | L80: 69 | M80: 80 | N80: 77 | O80: 71 | P80: =AVERAGE(K80:O80) -> 73 | Q80: =STDEV(K80:O80) -> 5 | R80: 8 | S80: 16 | T80: 10 | U80: 15 | V80: 14 | W80: =AVERAGE(R80:V80) -> 13 | X80: =STDEV(R80:V80) -> 3 | Y80: 1 | Z80: 4 | AA80: 0 | AB80: 1 | AC80: 1 | AD80: =AVERAGE(Y80:AC80) -> 1 | AE80: =STDEV(Y80:AC80) -> 2 | AF80: 0 | AG80: 1 | AH80: 0 | AI80: 0 | AJ80: 0 | AK80: =AVERAGE(AF80:AJ80) -> 0 | AL80: =STDEV(AF80:AJ80) -> 0 | AM80: 0 | AN80: 0 | AO80: 0 | AP80: 0 | AQ80: 0 | AR80: =AVERAGE(AM80:AQ80) -> 0 | AS80: =STDEV(AM80:AQ80) -> 0 | AT80: 0 | AU80: 0 | AV80: 0 | AW80: 0 | AX80: 0 | AY80: =AVERAGE(AT80:AX80) -> 0 | AZ80: =STDEV(AT80:AX80) -> 0 | BA80: 0 | BB80: 0 | BC80: 0 | BD80: 0 | BE80: 0 | BF80: =AVERAGE(BA80:BE80) -> 0 | BG80: =STDEV(BA80:BE80) -> 0
B81: 3 | D81: NA | E81: NA | F81: NA | G81: NA | H81: NA | I81: =AVERAGE(D81:H81) ->  | J81: =STDEV(D81:H81) ->  | K81: NA | L81: NA | M81: NA | N81: NA | O81: NA | P81: =AVERAGE(K81:O81) ->  | Q81: =STDEV(K81:O81) ->  | R81: 43 | S81: 52 | T81: 40 | U81: 46 | V81: 43 | W81: =AVERAGE(R81:V81) -> 45 | X81: =STDEV(R81:V81) -> 5 | Y81: 6 | Z81: 8 | AA81: 5 | AB81: 6 | AC81: 13 | AD81: =AVERAGE(Y81:AC81) -> 8 | AE81: =STDEV(Y81:AC81) -> 3 | AF81: 1 | AG81: 2 | AH81: 1 | AI81: 0 | AJ81: 2 | AK81: =AVERAGE(AF81:AJ81) -> 1 | AL81: =STDEV(AF81:AJ81) -> 1 | AM81: 0 | AN81: 0 | AO81: 0 | AP81: 0 | AQ81: 0 | AR81: =AVERAGE(AM81:AQ81) -> 0 | AS81: =STDEV(AM81:AQ81) -> 0 | AT81: 0 | AU81: 0 | AV81: 0 | AW81: 0 | AX81: 0 | AY81: =AVERAGE(AT81:AX81) -> 0 | AZ81: =STDEV(AT81:AX81) -> 0 | BA81: 0 | BB81: 0 | BC81: 0 | BD81: 0 | BE81: 0 | BF81: =AVERAGE(BA81:BE81) -> 0 | BG81: =STDEV(BA81:BE81) -> 0
A82: average | I82: =AVERAGE(I79:I81) ->  | P82: =AVERAGE(P79:P81) ->  | W82: =AVERAGE(W79:W81) -> 29 | AD82: =AVERAGE(AD79:AD81) -> 4 | AK82: =AVERAGE(AK79:AK81) -> 1 | AR82: =AVERAGE(AR79:AR81) -> 0 | AY82: =AVERAGE(AY79:AY81) -> 0 | BF82: =AVERAGE(BF79:BF81) -> 0
A83: stdev | I83: =SUM(J79:J81) ->  | P83: =SUM(Q79:Q81) ->  | W83: =SUM(X79:X81) -> 12 | AD83: =SUM(AE79:AE81) -> 6 | AK83: =SUM(AL79:AL81) -> 2 | AR83: =SUM(AS79:AS81) -> 0 | AY83: =SUM(AZ79:AZ81) -> 0 | BF83: =SUM(BG79:BG81) -> 0
A84: 2213F A | B84: 1 | D84: 98 | E84: 111 | F84: 98 | G84: 104 | H84: 94 | I84: =AVERAGE(D84:H84) -> 101 | J84: =STDEV(D84:H84) -> 7 | K84: 12 | L84: 12 | M84: 17 | N84: 133 | O84: 15 | P84: =AVERAGE(K84:O84) -> 38 | Q84: =STDEV(K84:O84) -> 53 | R84: 0 | S84: 1 | T84: 2 | U84: 0 | V84: 1 | W84: =AVERAGE(R84:V84) -> 1 | X84: =STDEV(R84:V84) -> 1 | Y84: 0 | Z84: 0 | AA84: 0 | AB84: 0 | AC84: 0 | AD84: =AVERAGE(Y84:AC84) -> 0 | AE84: =STDEV(Y84:AC84) -> 0 | AF84: 0 | AG84: 0 | AH84: 0 | AI84: 0 | AJ84: 0 | AK84: =AVERAGE(AF84:AJ84) -> 0 | AL84: =STDEV(AF84:AJ84) -> 0 | AM84: 0 | AN84: 0 | AO84: 0 | AP84: 0 | AQ84: 0 | AR84: =AVERAGE(AM84:AQ84) -> 0 | AS84: =STDEV(AM84:AQ84) -> 0 | AT84: 0 | AU84: 0 | AV84: 0 | AW84: 0 | AX84: 0 | AY84: =AVERAGE(AT84:AX84) -> 0 | AZ84: =STDEV(AT84:AX84) -> 0 | BA84: 0 | BB84: 0 | BC84: 0 | BD84: 0 | BE84: 0 | BF84: =AVERAGE(BA84:BE84) -> 0 | BG84: =STDEV(BA84:BE84) -> 0
A85: p+0 | B85: 2 | D85: NA | E85: NA | F85: NA | G85: NA | H85: NA | I85: =AVERAGE(D85:H85) ->  | J85: =STDEV(D85:H85) ->  | K85: 72 | L85: 79 | M85: 64 | N85: 55 | O85: 60 | P85: =AVERAGE(K85:O85) -> 66 | Q85: =STDEV(K85:O85) -> 10 | R85: 5 | S85: 7 | T85: 14 | U85: 8 | V85: 12 | W85: =AVERAGE(R85:V85) -> 9 | X85: =STDEV(R85:V85) -> 4 | Y85: 4 | Z85: 0 | AA85: 1 | AB85: 0 | AC85: 1 | AD85: =AVERAGE(Y85:AC85) -> 1 | AE85: =STDEV(Y85:AC85) -> 2 | AF85: 0 | AG85: 0 | AH85: 0 | AI85: 0 | AJ85: 0 | AK85: =AVERAGE(AF85:AJ85) -> 0 | AL85: =STDEV(AF85:AJ85) -> 0 | AM85: 0 | AN85: 0 | AO85: 0 | AP85: 0 | AQ85: 0 | AR85: =AVERAGE(AM85:AQ85) -> 0 | AS85: =STDEV(AM85:AQ85) -> 0 | AT85: 0 | AU85: 0 | AV85: 0 | AW85: 0 | AX85: 0 | AY85: =AVERAGE(AT85:AX85) -> 0 | AZ85: =STDEV(AT85:AX85) -> 0 | BA85: 0 | BB85: 0 | BC85: 0 | BD85: 0 | BE85: 0 | BF85: =AVERAGE(BA85:BE85) -> 0 | BG85: =STDEV(BA85:BE85) -> 0
B86: 3 | D86: NA | E86: NA | F86: NA | G86: NA | H86: NA | I86: =AVERAGE(D86:H86) ->  | J86: =STDEV(D86:H86) ->  | K86: 46 | L86: 54 | M86: 45 | N86: 49 | O86: 44 | P86: =AVERAGE(K86:O86) -> 48 | Q86: =STDEV(K86:O86) -> 4 | R86: 5 | S86: 9 | T86: 5 | U86: 5 | V86: 4 | W86: =AVERAGE(R86:V86) -> 6 | X86: =STDEV(R86:V86) -> 2 | Y86: 0 | Z86: 0 | AA86: 0 | AB86: 0 | AC86: 0 | AD86: =AVERAGE(Y86:AC86) -> 0 | AE86: =STDEV(Y86:AC86) -> 0 | AF86: 0 | AG86: 0 | AH86: 0 | AI86: 0 | AJ86: 0 | AK86: =AVERAGE(AF86:AJ86) -> 0 | AL86: =STDEV(AF86:AJ86) -> 0 | AM86: 0 | AN86: 0 | AO86: 0 | AP86: 0 | AQ86: 0 | AR86: =AVERAGE(AM86:AQ86) -> 0 | AS86: =STDEV(AM86:AQ86) -> 0 | AT86: 0 | AU86: 0 | AV86: 0 | AW86: 0 | AX86: 0 | AY86: =AVERAGE(AT86:AX86) -> 0 | AZ86: =STDEV(AT86:AX86) -> 0 | BA86: 0 | BB86: 0 | BC86: 0 | BD86: 0 | BE86: 0 | BF86: =AVERAGE(BA86:BE86) -> 0 | BG86: =STDEV(BA86:BE86) -> 0
A87: average | I87: =AVERAGE(I84:I86) ->  | P87: =AVERAGE(P84:P86) -> 50 | W87: =AVERAGE(W84:W86) -> 5 | AD87: =AVERAGE(AD84:AD86) -> 0 | AK87: =AVERAGE(AK84:AK86) -> 0 | AR87: =AVERAGE(AR84:AR86) -> 0 | AY87: =AVERAGE(AY84:AY86) -> 0 | BF87: =AVERAGE(BF84:BF86) -> 0
A88: stdev | I88: =SUM(J84:J86) ->  | P88: =SUM(Q84:Q86) -> 67 | W88: =SUM(X84:X86) -> 6 | AD88: =SUM(AE84:AE86) -> 2 | AK88: =SUM(AL84:AL86) -> 0 | AR88: =SUM(AS84:AS86) -> 0 | AY88: =SUM(AZ84:AZ86) -> 0 | BF88: =SUM(BG84:BG86) -> 0
A89: p+3 | B89: 1 | D89: NA | E89: NA | F89: NA | G89: NA | H89: NA | I89: =AVERAGE(D89:H89) ->  | J89: =STDEV(D89:H89) ->  | K89: 93 | L89: 103 | M89: 108 | N89: 105 | O89: 105 | P89: =AVERAGE(K89:O89) -> 103 | Q89: =STDEV(K89:O89) -> 6 | R89: 11 | S89: 22 | T89: 13 | U89: 16 | V89: 7 | W89: =AVERAGE(R89:V89) -> 14 | X89: =STDEV(R89:V89) -> 6 | Y89: 0 | Z89: 4 | AA89: 3 | AB89: 2 | AC89: 1 | AD89: =AVERAGE(Y89:AC89) -> 2 | AE89: =STDEV(Y89:AC89) -> 2 | AF89: 0 | AG89: 0 | AH89: 0 | AI89: 0 | AJ89: 0 | AK89: =AVERAGE(AF89:AJ89) -> 0 | AL89: =STDEV(AF89:AJ89) -> 0 | AM89: 0 | AN89: 0 | AO89: 0 | AP89: 0 | AQ89: 0 | AR89: =AVERAGE(AM89:AQ89) -> 0 | AS89: =STDEV(AM89:AQ89) -> 0 | AT89: 0 | AU89: 0 | AV89: 0 | AW89: 0 | AX89: 0 | AY89: =AVERAGE(AT89:AX89) -> 0 | AZ89: =STDEV(AT89:AX89) -> 0 | BA89: 0 | BB89: 0 | BC89: 0 | BD89: 0 | BE89: 0 | BF89: =AVERAGE(BA89:BE89) -> 0 | BG89: =STDEV(BA89:BE89) -> 0
B90: 2 | D90: NA | E90: NA | F90: NA | G90: NA | H90: NA | I90: =AVERAGE(D90:H90) ->  | J90: =STDEV(D90:H90) ->  | K90: 66 | L90: 55 | M90: 73 | N90: 67 | O90: 70 | P90: =AVERAGE(K90:O90) -> 66 | Q90: =STDEV(K90:O90) -> 7 | R90: 14 | S90: 10 | T90: 8 | U90: 8 | V90: 15 | W90: =AVERAGE(R90:V90) -> 11 | X90: =STDEV(R90:V90) -> 3 | Y90: 1 | Z90: 1 | AA90: 2 | AB90: 3 | AC90: 1 | AD90: =AVERAGE(Y90:AC90) -> 2 | AE90: =STDEV(Y90:AC90) -> 1 | AF90: 0 | AG90: 0 | AH90: 0 | AI90: 0 | AJ90: 0 | AK90: =AVERAGE(AF90:AJ90) -> 0 | AL90: =STDEV(AF90:AJ90) -> 0 | AM90: 0 | AN90: 0 | AO90: 0 | AP90: 0 | AQ90: 0 | AR90: =AVERAGE(AM90:AQ90) -> 0 | AS90: =STDEV(AM90:AQ90) -> 0 | AT90: 0 | AU90: 0 | AV90: 0 | AW90: 0 | AX90: 0 | AY90: =AVERAGE(AT90:AX90) -> 0 | AZ90: =STDEV(AT90:AX90) -> 0 | BA90: 0 | BB90: 0 | BC90: 0 | BD90: 0 | BE90: 0 | BF90: =AVERAGE(BA90:BE90) -> 0 | BG90: =STDEV(BA90:BE90) -> 0
B91: 3 | D91: NA | E91: NA | F91: NA | G91: NA | H91: NA | I91: =AVERAGE(D91:H91) ->  | J91: =STDEV(D91:H91) ->  | K91: 54 | L91: 52 | M91: 52 | N91: 56 | O91: 47 | P91: =AVERAGE(K91:O91) -> 52 | Q91: =STDEV(K91:O91) -> 3 | R91: 6 | S91: 6 | T91: 1 | U91: 4 | V91: 6 | W91: =AVERAGE(R91:V91) -> 5 | X91: =STDEV(R91:V91) -> 2 | Y91: 1 | Z91: 0 | AA91: 1 | AB91: 2 | AC91: 0 | AD91: =AVERAGE(Y91:AC91) -> 1 | AE91: =STDEV(Y91:AC91) -> 1 | AF91: 0 | AG91: 0 | AH91: 0 | AI91: 0 | AJ91: 0 | AK91: =AVERAGE(AF91:AJ91) -> 0 | AL91: =STDEV(AF91:AJ91) -> 0 | AM91: 0 | AN91: 0 | AO91: 0 | AP91: 0 | AQ91: 0 | AR91: =AVERAGE(AM91:AQ91) -> 0 | AS91: =STDEV(AM91:AQ91) -> 0 | AT91: 0 | AU91: 0 | AV91: 0 | AW91: 0 | AX91: 0 | AY91: =AVERAGE(AT91:AX91) -> 0 | AZ91: =STDEV(AT91:AX91) -> 0 | BA91: 0 | BB91: 0 | BC91: 0 | BD91: 0 | BE91: 0 | BF91: =AVERAGE(BA91:BE91) -> 0 | BG91: =STDEV(BA91:BE91) -> 0
A92: average | I92: =AVERAGE(I89:I91) ->  | P92: =AVERAGE(P89:P91) -> 74 | W92: =AVERAGE(W89:W91) -> 10 | AD92: =AVERAGE(AD89:AD91) -> 1 | AK92: =AVERAGE(AK89:AK91) -> 0 | AR92: =AVERAGE(AR89:AR91) -> 0 | AY92: =AVERAGE(AY89:AY91) -> 0 | BF92: =AVERAGE(BF89:BF91) -> 0
A93: stdev | I93: =SUM(J89:J91) ->  | P93: =SUM(Q89:Q91) -> 16 | W93: =SUM(X89:X91) -> 11 | AD93: =SUM(AE89:AE91) -> 3 | AK93: =SUM(AL89:AL91) -> 0 | AR93: =SUM(AS89:AS91) -> 0 | AY93: =SUM(AZ89:AZ91) -> 0 | BF93: =SUM(BG89:BG91) -> 0
A94: 2213F APR | B94: 1 | D94: NA | E94: NA | F94: NA | G94: NA | H94: NA | I94: =AVERAGE(D94:H94) ->  | J94: =STDEV(D94:H94) ->  | K94: 34 | L94: 49 | M94: 33 | N94: 49 | O94: 38 | P94: =AVERAGE(K94:O94) -> 41 | Q94: =STDEV(K94:O94) -> 8 | R94: 3 | S94: 15 | T94: 14 | U94: 7 | V94: 9 | W94: =AVERAGE(R94:V94) -> 10 | X94: =STDEV(R94:V94) -> 5 | Y94: 0 | Z94: 0 | AA94: 2 | AB94: 1 | AC94: 1 | AD94: =AVERAGE(Y94:AC94) -> 1 | AE94: =STDEV(Y94:AC94) -> 1 | AF94: 0 | AG94: 0 | AH94: 0 | AI94: 0 | AJ94: 0 | AK94: =AVERAGE(AF94:AJ94) -> 0 | AL94: =STDEV(AF94:AJ94) -> 0 | AM94: 0 | AN94: 0 | AO94: 0 | AP94: 0 | AQ94: 0 | AR94: =AVERAGE(AM94:AQ94) -> 0 | AS94: =STDEV(AM94:AQ94) -> 0 | AT94: 0 | AU94: 0 | AV94: 0 | AW94: 0 | AX94: 0 | AY94: =AVERAGE(AT94:AX94) -> 0 | AZ94: =STDEV(AT94:AX94) -> 0 | BA94: 0 | BB94: 0 | BC94: 0 | BD94: 0 | BE94: 0 | BF94: =AVERAGE(BA94:BE94) -> 0 | BG94: =STDEV(BA94:BE94) -> 0
A95: p+0 | B95: 2 | D95: NA | E95: NA | F95: NA | G95: NA | H95: NA | I95: =AVERAGE(D95:H95) ->  | J95: =STDEV(D95:H95) ->  | K95: 74 | L95: 57 | M95: 63 | N95: 75 | O95: 64 | P95: =AVERAGE(K95:O95) -> 67 | Q95: =STDEV(K95:O95) -> 8 | R95: 5 | S95: 7 | T95: 7 | U95: 8 | V95: 9 | W95: =AVERAGE(R95:V95) -> 7 | X95: =STDEV(R95:V95) -> 1 | Y95: 1 | Z95: 0 | AA95: 1 | AB95: 1 | AC95: 1 | AD95: =AVERAGE(Y95:AC95) -> 1 | AE95: =STDEV(Y95:AC95) -> 0 | AF95: 0 | AG95: 0 | AH95: 0 | AI95: 0 | AJ95: 2 | AK95: =AVERAGE(AF95:AJ95) -> 0 | AL95: =STDEV(AF95:AJ95) -> 1 | AM95: 0 | AN95: 0 | AO95: 0 | AP95: 0 | AQ95: 0 | AR95: =AVERAGE(AM95:AQ95) -> 0 | AS95: =STDEV(AM95:AQ95) -> 0 | AT95: 0 | AU95: 0 | AV95: 0 | AW95: 0 | AX95: 0 | AY95: =AVERAGE(AT95:AX95) -> 0 | AZ95: =STDEV(AT95:AX95) -> 0 | BA95: 0 | BB95: 0 | BC95: 0 | BD95: 0 | BE95: 0 | BF95: =AVERAGE(BA95:BE95) -> 0 | BG95: =STDEV(BA95:BE95) -> 0
B96: 3 | D96: NA | E96: NA | F96: NA | G96: NA | H96: NA | I96: =AVERAGE(D96:H96) ->  | J96: =STDEV(D96:H96) ->  | K96: 40 | L96: 50 | M96: 43 | N96: 44 | O96: 49 | P96: =AVERAGE(K96:O96) -> 45 | Q96: =STDEV(K96:O96) -> 4 | R96: 5 | S96: 8 | T96: 7 | U96: 6 | V96: 6 | W96: =AVERAGE(R96:V96) -> 6 | X96: =STDEV(R96:V96) -> 1 | Y96: 0 | Z96: 1 | AA96: 3 | AB96: 1 | AC96: 2 | AD96: =AVERAGE(Y96:AC96) -> 1 | AE96: =STDEV(Y96:AC96) -> 1 | AF96: 0 | AG96: 1 | AH96: 0 | AI96: 0 | AJ96: 0 | AK96: =AVERAGE(AF96:AJ96) -> 0 | AL96: =STDEV(AF96:AJ96) -> 0 | AM96: 0 | AN96: 0 | AO96: 0 | AP96: 0 | AQ96: 0 | AR96: =AVERAGE(AM96:AQ96) -> 0 | AS96: =STDEV(AM96:AQ96) -> 0 | AT96: 0 | AU96: 0 | AV96: 0 | AW96: 0 | AX96: 0 | AY96: =AVERAGE(AT96:AX96) -> 0 | AZ96: =STDEV(AT96:AX96) -> 0 | BA96: 0 | BB96: 0 | BC96: 0 | BD96: 0 | BE96: 0 | BF96: =AVERAGE(BA96:BE96) -> 0 | BG96: =STDEV(BA96:BE96) -> 0
A97: average | I97: =AVERAGE(I94:I96) ->  | P97: =AVERAGE(P94:P96) -> 51 | W97: =AVERAGE(W94:W96) -> 8 | AD97: =AVERAGE(AD94:AD96) -> 1 | AK97: =AVERAGE(AK94:AK96) -> 0 | AR97: =AVERAGE(AR94:AR96) -> 0 | AY97: =AVERAGE(AY94:AY96) -> 0 | BF97: =AVERAGE(BF94:BF96) -> 0
A98: stdev | I98: =SUM(J94:J96) ->  | P98: =SUM(Q94:Q96) -> 20 | W98: =SUM(X94:X96) -> 8 | AD98: =SUM(AE94:AE96) -> 2 | AK98: =SUM(AL94:AL96) -> 1 | AR98: =SUM(AS94:AS96) -> 0 | AY98: =SUM(AZ94:AZ96) -> 0 | BF98: =SUM(BG94:BG96) -> 0
A99: p+3 | B99: 1 | D99: NA | E99: NA | F99: NA | G99: NA | H99: NA | I99: =AVERAGE(D99:H99) ->  | J99: =STDEV(D99:H99) ->  | K99: 39 | L99: 44 | M99: 57 | N99: 43 | O99: 48 | P99: =AVERAGE(K99:O99) -> 46 | Q99: =STDEV(K99:O99) -> 7 | R99: 6 | S99: 6 | T99: 9 | U99: 6 | V99: 10 | W99: =AVERAGE(R99:V99) -> 7 | X99: =STDEV(R99:V99) -> 2 | Y99: 0 | Z99: 0 | AA99: 0 | AB99: 0 | AC99: 0 | AD99: =AVERAGE(Y99:AC99) -> 0 | AE99: =STDEV(Y99:AC99) -> 0 | AF99: 0 | AG99: 1 | AH99: 0 | AI99: 1 | AJ99: 0 | AK99: =AVERAGE(AF99:AJ99) -> 0 | AL99: =STDEV(AF99:AJ99) -> 1 | AM99: 0 | AN99: 0 | AO99: 0 | AP99: 0 | AQ99: 0 | AR99: =AVERAGE(AM99:AQ99) -> 0 | AS99: =STDEV(AM99:AQ99) -> 0 | AT99: 0 | AU99: 0 | AV99: 0 | AW99: 0 | AX99: 0 | AY99: =AVERAGE(AT99:AX99) -> 0 | AZ99: =STDEV(AT99:AX99) -> 0 | BA99: 0 | BB99: 0 | BC99: 0 | BD99: 0 | BE99: 0 | BF99: =AVERAGE(BA99:BE99) -> 0 | BG99: =STDEV(BA99:BE99) -> 0
B100: 2 | D100: 60 | E100: 60 | F100: 57 | G100: 54 | H100: 64 | I100: =AVERAGE(D100:H100) -> 59 | J100: =STDEV(D100:H100) -> 4 | K100: 4 | L100: 1 | M100: 3 | N100: 8 | O100: 9 | P100: =AVERAGE(K100:O100) -> 5 | Q100: =STDEV(K100:O100) -> 3 | R100: 1 | S100: 0 | T100: 0 | U100: 0 | V100: 0 | W100: =AVERAGE(R100:V100) -> 0 | X100: =STDEV(R100:V100) -> 0 | Y100: 0 | Z100: 0 | AA100: 0 | AB100: 0 | AC100: 0 | AD100: =AVERAGE(Y100:AC100) -> 0 | AE100: =STDEV(Y100:AC100) -> 0 | AF100: 0 | AG100: 0 | AH100: 0 | AI100: 0 | AJ100: 0 | AK100: =AVERAGE(AF100:AJ100) -> 0 | AL100: =STDEV(AF100:AJ100) -> 0 | AM100: 1 | AN100: 0 | AO100: 0 | AP100: 0 | AQ100: 0 | AR100: =AVERAGE(AM100:AQ100) -> 0 | AS100: =STDEV(AM100:AQ100) -> 0 | AT100: 1 | AU100: 0 | AV100: 0 | AW100: 0 | AX100: 0 | AY100: =AVERAGE(AT100:AX100) -> 0 | AZ100: =STDEV(AT100:AX100) -> 0 | BA100: 1 | BB100: 0 | BC100: 0 | BD100: 0 | BE100: 0 | BF100: =AVERAGE(BA100:BE100) -> 0 | BG100: =STDEV(BA100:BE100) -> 0
B101: 3 | D101: NA | E101: NA | F101: NA | G101: NA | H101: NA | I101: =AVERAGE(D101:H101) ->  | J101: =STDEV(D101:H101) ->  | K101: 65 | L101: 77 | M101: 77 | N101: 68 | O101: 60 | P101: =AVERAGE(K101:O101) -> 69 | Q101: =STDEV(K101:O101) -> 8 | R101: 10 | S101: 12 | T101: 8 | U101: 5 | V101: 15 | W101: =AVERAGE(R101:V101) -> 10 | X101: =STDEV(R101:V101) -> 4 | Y101: 3 | Z101: 0 | AA101: 2 | AB101: 3 | AC101: 3 | AD101: =AVERAGE(Y101:AC101) -> 2 | AE101: =STDEV(Y101:AC101) -> 1 | AF101: 0 | AG101: 1 | AH101: 0 | AI101: 0 | AJ101: 0 | AK101: =AVERAGE(AF101:AJ101) -> 0 | AL101: =STDEV(AF101:AJ101) -> 0 | AM101: 1 | AN101: 0 | AO101: 0 | AP101: 0 | AQ101: 0 | AR101: =AVERAGE(AM101:AQ101) -> 0 | AS101: =STDEV(AM101:AQ101) -> 0 | AT101: 1 | AU101: 0 | AV101: 0 | AW101: 0 | AX101: 0 | AY101: =AVERAGE(AT101:AX101) -> 0 | AZ101: =STDEV(AT101:AX101) -> 0 | BA101: 1 | BB101: 0 | BC101: 0 | BD101: 0 | BE101: 0 | BF101: =AVERAGE(BA101:BE101) -> 0 | BG101: =STDEV(BA101:BE101) -> 0
A102: average | I102: =AVERAGE(I99:I101) ->  | P102: =AVERAGE(P99:P101) -> 40 | W102: =AVERAGE(W99:W101) -> 6 | AD102: =AVERAGE(AD99:AD101) -> 1 | AK102: =AVERAGE(AK99:AK101) -> 0 | AR102: =AVERAGE(AR99:AR101) -> 0 | AY102: =AVERAGE(AY99:AY101) -> 0 | BF102: =AVERAGE(BF99:BF101) -> 0
A103: stdev | I103: =SUM(J99:J101) ->  | P103: =SUM(Q99:Q101) -> 18 | W103: =SUM(X99:X101) -> 6 | AD103: =SUM(AE99:AE101) -> 1 | AK103: =SUM(AL99:AL101) -> 1 | AR103: =SUM(AS99:AS101) -> 1 | AY103: =SUM(AZ99:AZ101) -> 1 | BF103: =SUM(BG99:BG101) -> 1
A106: T5 | B106: 2017-10-06
A107: Sample | B107: Dilution: | D107: 1 | I107: AVERAGE | K107: =10^-1 -> 0.1 | P107: AVERAGE | R107: =10^-2 -> 0.01 | W107: AVERAGE | Y107: =10^-3 -> 1.00E-03 | AD107: AVERAGE | AF107: =10^-4 -> 1.00E-04 | AK107: AVERAGE | AM107: =10^-5 -> 1.00E-05 | AR107: AVERAGE | AT107: =10^-5 -> 1.00E-05 | AY107: AVERAGE | BA107: =10^-5 -> 1.00E-05 | BF107: AVERAGE
A108: Blank | B108: 1 | D108: 0 | E108: 0 | F108: 0 | G108: 0 | H108: 0 | I108: =AVERAGE(D108:H108) -> 0 | J108: =STDEV(D108:H108) -> 0 | K108: 0 | L108: 0 | M108: 0 | N108: 0 | O108: 0 | P108: =AVERAGE(K108:O108) -> 0 | Q108: =STDEV(K108:O108) -> 0 | R108: 0 | S108: 0 | T108: 0 | U108: 0 | V108: 0 | W108: =AVERAGE(R108:V108) -> 0 | X108: =STDEV(R108:V108) -> 0 | Y108: 0 | Z108: 0 | AA108: 0 | AB108: 0 | AC108: 0 | AD108: =AVERAGE(Y108:AC108) -> 0 | AE108: =STDEV(Y108:AC108) -> 0 | AF108: 0 | AG108: 0 | AH108: 0 | AI108: 0 | AJ108: 0 | AK108: =AVERAGE(AF108:AJ108) -> 0 | AL108: =STDEV(AF108:AJ108) -> 0 | AM108: 0 | AN108: 0 | AO108: 0 | AP108: 0 | AQ108: 0 | AR108: =AVERAGE(AM108:AQ108) -> 0 | AS108: =STDEV(AM108:AQ108) -> 0 | AT108: 0 | AU108: 0 | AV108: 0 | AW108: 0 | AX108: 0 | AY108: =AVERAGE(AT108:AX108) -> 0 | AZ108: =STDEV(AT108:AX108) -> 0 | BA108: 0 | BB108: 0 | BC108: 0 | BD108: 0 | BE108: 0 | BF108: =AVERAGE(BA108:BE108) -> 0 | BG108: =STDEV(BA108:BE108) -> 0
B109: 2 | D109: 0 | E109: 0 | F109: 0 | G109: 0 | H109: 0 | I109: =AVERAGE(D109:H109) -> 0 | J109: =STDEV(D109:H109) -> 0 | K109: 0 | L109: 0 | M109: 0 | N109: 0 | O109: 0 | P109: =AVERAGE(K109:O109) -> 0 | Q109: =STDEV(K109:O109) -> 0 | R109: 0 | S109: 0 | T109: 0 | U109: 0 | V109: 0 | W109: =AVERAGE(R109:V109) -> 0 | X109: =STDEV(R109:V109) -> 0 | Y109: 0 | Z109: 0 | AA109: 0 | AB109: 0 | AC109: 0 | AD109: =AVERAGE(Y109:AC109) -> 0 | AE109: =STDEV(Y109:AC109) -> 0 | AF109: 0 | AG109: 0 | AH109: 0 | AI109: 0 | AJ109: 0 | AK109: =AVERAGE(AF109:AJ109) -> 0 | AL109: =STDEV(AF109:AJ109) -> 0 | AM109: 0 | AN109: 0 | AO109: 0 | AP109: 0 | AQ109: 0 | AR109: =AVERAGE(AM109:AQ109) -> 0 | AS109: =STDEV(AM109:AQ109) -> 0 | AT109: 0 | AU109: 0 | AV109: 0 | AW109: 0 | AX109: 0 | AY109: =AVERAGE(AT109:AX109) -> 0 | AZ109: =STDEV(AT109:AX109) -> 0 | BA109: 0 | BB109: 0 | BC109: 0 | BD109: 0 | BE109: 0 | BF109: =AVERAGE(BA109:BE109) -> 0 | BG109: =STDEV(BA109:BE109) -> 0
B110: 3 | D110: 0 | E110: 0 | F110: 0 | G110: 0 | H110: 0 | I110: =AVERAGE(D110:H110) -> 0 | J110: =STDEV(D110:H110) -> 0 | K110: 0 | L110: 0 | M110: 0 | N110: 0 | O110: 0 | P110: =AVERAGE(K110:O110) -> 0 | Q110: =STDEV(K110:O110) -> 0 | R110: 0 | S110: 0 | T110: 0 | U110: 0 | V110: 0 | W110: =AVERAGE(R110:V110) -> 0 | X110: =STDEV(R110:V110) -> 0 | Y110: 0 | Z110: 0 | AA110: 0 | AB110: 0 | AC110: 0 | AD110: =AVERAGE(Y110:AC110) -> 0 | AE110: =STDEV(Y110:AC110) -> 0 | AF110: 0 | AG110: 0 | AH110: 0 | AI110: 0 | AJ110: 0 | AK110: =AVERAGE(AF110:AJ110) -> 0 | AL110: =STDEV(AF110:AJ110) -> 0 | AM110: 0 | AN110: 0 | AO110: 0 | AP110: 0 | AQ110: 0 | AR110: =AVERAGE(AM110:AQ110) -> 0 | AS110: =STDEV(AM110:AQ110) -> 0 | AT110: 0 | AU110: 0 | AV110: 0 | AW110: 0 | AX110: 0 | AY110: =AVERAGE(AT110:AX110) -> 0 | AZ110: =STDEV(AT110:AX110) -> 0 | BA110: 0 | BB110: 0 | BC110: 0 | BD110: 0 | BE110: 0 | BF110: =AVERAGE(BA110:BE110) -> 0 | BG110: =STDEV(BA110:BE110) -> 0
I111: =AVERAGE(I108:I110) -> 0 | P111: =AVERAGE(P108:P110) -> 0 | W111: =AVERAGE(W108:W110) -> 0 | AD111: =AVERAGE(AD108:AD110) -> 0 | AK111: =AVERAGE(AK108:AK110) -> 0 | AR111: =AVERAGE(AR108:AR110) -> 0 | AY111: =AVERAGE(AY108:AY110) -> 0 | BF111: =AVERAGE(BF108:BF110) -> 0
I112: =SUM(J108:J110) -> 0 | P112: =SUM(Q108:Q110) -> 0 | W112: =SUM(X108:X110) -> 0 | AD112: =SUM(AE108:AE110) -> 0 | AK112: =SUM(AL108:AL110) -> 0 | AR112: =SUM(AS108:AS110) -> 0 | AY112: =SUM(AZ108:AZ110) -> 0 | BF112: =SUM(BG108:BG110) -> 0
A113: DH5α - | B113: 1 | D113: 73 | E113: 76 | F113: 66 | G113: 61 | H113: 66 | I113: =AVERAGE(D113:H113) -> 68 | J113: =STDEV(D113:H113) -> 6 | K113: 0 | L113: 0 | M113: 0 | N113: 0 | O113: 0 | P113: =AVERAGE(K113:O113) -> 0 | Q113: =STDEV(K113:O113) -> 0 | R113: 0 | S113: 0 | T113: 0 | U113: 0 | V113: 0 | W113: =AVERAGE(R113:V113) -> 0 | X113: =STDEV(R113:V113) -> 0 | Y113: 0 | Z113: 0 | AA113: 0 | AB113: 0 | AC113: 0 | AD113: =AVERAGE(Y113:AC113) -> 0 | AE113: =STDEV(Y113:AC113) -> 0 | AF113: 0 | AG113: 0 | AH113: 0 | AI113: 0 | AJ113: 0 | AK113: =AVERAGE(AF113:AJ113) -> 0 | AL113: =STDEV(AF113:AJ113) -> 0 | AM113: 0 | AN113: 0 | AO113: 0 | AP113: 0 | AQ113: 0 | AR113: =AVERAGE(AM113:AQ113) -> 0 | AS113: =STDEV(AM113:AQ113) -> 0 | AT113: 0 | AU113: 0 | AV113: 0 | AW113: 0 | AX113: 0 | AY113: =AVERAGE(AT113:AX113) -> 0 | AZ113: =STDEV(AT113:AX113) -> 0 | BA113: 0 | BB113: 0 | BC113: 0 | BD113: 0 | BE113: 0 | BF113: =AVERAGE(BA113:BE113) -> 0 | BG113: =STDEV(BA113:BE113) -> 0
B114: 2 | D114: 108 | E114: 123 | F114: 99 | G114: 94 | H114: 120 | I114: =AVERAGE(D114:H114) -> 109 | J114: =STDEV(D114:H114) -> 13 | K114: 0 | L114: 0 | M114: 0 | N114: 0 | O114: 0 | P114: =AVERAGE(K114:O114) -> 0 | Q114: =STDEV(K114:O114) -> 0 | R114: 0 | S114: 0 | T114: 0 | U114: 0 | V114: 0 | W114: =AVERAGE(R114:V114) -> 0 | X114: =STDEV(R114:V114) -> 0 | Y114: 0 | Z114: 0 | AA114: 0 | AB114: 0 | AC114: 0 | AD114: =AVERAGE(Y114:AC114) -> 0 | AE114: =STDEV(Y114:AC114) -> 0 | AF114: 0 | AG114: 0 | AH114: 0 | AI114: 0 | AJ114: 0 | AK114: =AVERAGE(AF114:AJ114) -> 0 | AL114: =STDEV(AF114:AJ114) -> 0 | AM114: 0 | AN114: 0 | AO114: 0 | AP114: 0 | AQ114: 0 | AR114: =AVERAGE(AM114:AQ114) -> 0 | AS114: =STDEV(AM114:AQ114) -> 0 | AT114: 0 | AU114: 0 | AV114: 0 | AW114: 0 | AX114: 0 | AY114: =AVERAGE(AT114:AX114) -> 0 | AZ114: =STDEV(AT114:AX114) -> 0 | BA114: 0 | BB114: 0 | BC114: 0 | BD114: 0 | BE114: 0 | BF114: =AVERAGE(BA114:BE114) -> 0 | BG114: =STDEV(BA114:BE114) -> 0
B115: 3 | D115: 94 | E115: 116 | F115: 120 | G115: 105 | H115: 110 | I115: =AVERAGE(D115:H115) -> 109 | J115: =STDEV(D115:H115) -> 10 | K115: 15 | L115: 19 | M115: 19 | N115: 15 | O115: 16 | P115: =AVERAGE(K115:O115) -> 17 | Q115: =STDEV(K115:O115) -> 2 | R115: 6 | S115: 7 | T115: 2 | U115: 2 | V115: 4 | W115: =AVERAGE(R115:V115) -> 4 | X115: =STDEV(R115:V115) -> 2 | Y115: 0 | Z115: 0 | AA115: 0 | AB115: 0 | AC115: 1 | AD115: =AVERAGE(Y115:AC115) -> 0 | AE115: =STDEV(Y115:AC115) -> 0 | AF115: 0 | AG115: 0 | AH115: 0 | AI115: 0 | AJ115: 0 | AK115: =AVERAGE(AF115:AJ115) -> 0 | AL115: =STDEV(AF115:AJ115) -> 0 | AM115: 0 | AN115: 0 | AO115: 0 | AP115: 0 | AQ115: 0 | AR115: =AVERAGE(AM115:AQ115) -> 0 | AS115: =STDEV(AM115:AQ115) -> 0 | AT115: 0 | AU115: 0 | AV115: 0 | AW115: 0 | AX115: 0 | AY115: =AVERAGE(AT115:AX115) -> 0 | AZ115: =STDEV(AT115:AX115) -> 0 | BA115: 0 | BB115: 0 | BC115: 0 | BD115: 0 | BE115: 0 | BF115: =AVERAGE(BA115:BE115) -> 0 | BG115: =STDEV(BA115:BE115) -> 0
I116: =AVERAGE(I113:I115) -> 95 | P116: =AVERAGE(P113:P115) -> 6 | W116: =AVERAGE(W113:W115) -> 1 | AD116: =AVERAGE(AD113:AD115) -> 0 | AK116: =AVERAGE(AK113:AK115) -> 0 | AR116: =AVERAGE(AR113:AR115) -> 0 | AY116: =AVERAGE(AY113:AY115) -> 0 | BF116: =AVERAGE(BF113:BF115) -> 0
I117: =SUM(J113:J115) -> 29 | P117: =SUM(Q113:Q115) -> 2 | W117: =SUM(X113:X115) -> 2 | AD117: =SUM(AE113:AE115) -> 0 | AK117: =SUM(AL113:AL115) -> 0 | AR117: =SUM(AS113:AS115) -> 0 | AY117: =SUM(AZ113:AZ115) -> 0 | BF117: =SUM(BG113:BG115) -> 0
A118: WT | B118: 1 | D118: NA | E118: NA | F118: NA | G118: NA | H118: NA | I118: =AVERAGE(D118:H118) ->  | J118: =STDEV(D118:H118) ->  | K118: 11 | L118: 23 | M118: 26 | N118: 21 | O118: 12 | P118: =AVERAGE(K118:O118) -> 19 | Q118: =STDEV(K118:O118) -> 7 | R118: 0 | S118: 2 | T118: 1 | U118: 2 | V118: 2 | W118: =AVERAGE(R118:V118) -> 1 | X118: =STDEV(R118:V118) -> 1 | Y118: 0 | Z118: 0 | AA118: 0 | AB118: 0 | AC118: 0 | AD118: =AVERAGE(Y118:AC118) -> 0 | AE118: =STDEV(Y118:AC118) -> 0 | AF118: 0 | AG118: 0 | AH118: 0 | AI118: 0 | AJ118: 0 | AK118: =AVERAGE(AF118:AJ118) -> 0 | AL118: =STDEV(AF118:AJ118) -> 0 | AM118: 0 | AN118: 0 | AO118: 0 | AP118: 0 | AQ118: 0 | AR118: =AVERAGE(AM118:AQ118) -> 0 | AS118: =STDEV(AM118:AQ118) -> 0 | AT118: 0 | AU118: 0 | AV118: 0 | AW118: 0 | AX118: 0 | AY118: =AVERAGE(AT118:AX118) -> 0 | AZ118: =STDEV(AT118:AX118) -> 0 | BA118: 0 | BB118: 0 | BC118: 0 | BD118: 0 | BE118: 0 | BF118: =AVERAGE(BA118:BE118) -> 0 | BG118: =STDEV(BA118:BE118) -> 0
B119: 2 | D119: 102 | E119: 104 | F119: 114 | G119: 108 | H119: 87 | I119: =AVERAGE(D119:H119) -> 103 | J119: =STDEV(D119:H119) -> 10 | K119: 10 | L119: 17 | M119: 15 | N119: 12 | O119: 19 | P119: =AVERAGE(K119:O119) -> 15 | Q119: =STDEV(K119:O119) -> 4 | R119: 2 | S119: 0 | T119: 2 | U119: 2 | V119: 2 | W119: =AVERAGE(R119:V119) -> 2 | X119: =STDEV(R119:V119) -> 1 | Y119: 1 | Z119: 0 | AA119: 0 | AB119: 0 | AC119: 0 | AD119: =AVERAGE(Y119:AC119) -> 0 | AE119: =STDEV(Y119:AC119) -> 0 | AF119: 0 | AG119: 0 | AH119: 0 | AI119: 0 | AJ119: 0 | AK119: =AVERAGE(AF119:AJ119) -> 0 | AL119: =STDEV(AF119:AJ119) -> 0 | AM119: 0 | AN119: 0 | AO119: 0 | AP119: 0 | AQ119: 0 | AR119: =AVERAGE(AM119:AQ119) -> 0 | AS119: =STDEV(AM119:AQ119) -> 0 | AT119: 0 | AU119: 0 | AV119: 0 | AW119: 0 | AX119: 0 | AY119: =AVERAGE(AT119:AX119) -> 0 | AZ119: =STDEV(AT119:AX119) -> 0 | BA119: 0 | BB119: 0 | BC119: 0 | BD119: 0 | BE119: 0 | BF119: =AVERAGE(BA119:BE119) -> 0 | BG119: =STDEV(BA119:BE119) -> 0
B120: 3 | D120: 699 | E120: 68 | F120: 60 | G120: 72 | H120: 70 | I120: =AVERAGE(D120:H120) -> 194 | J120: =STDEV(D120:H120) -> 282 | K120: 11 | L120: 9 | M120: 9 | N120: 12 | O120: 3 | P120: =AVERAGE(K120:O120) -> 9 | Q120: =STDEV(K120:O120) -> 3 | R120: 3 | S120: 1 | T120: 1 | U120: 1 | V120: 0 | W120: =AVERAGE(R120:V120) -> 1 | X120: =STDEV(R120:V120) -> 1 | Y120: 1 | Z120: 1 | AA120: 0 | AB120: 0 | AC120: 0 | AD120: =AVERAGE(Y120:AC120) -> 0 | AE120: =STDEV(Y120:AC120) -> 1 | AF120: 0 | AG120: 0 | AH120: 0 | AI120: 0 | AJ120: 0 | AK120: =AVERAGE(AF120:AJ120) -> 0 | AL120: =STDEV(AF120:AJ120) -> 0 | AM120: 0 | AN120: 0 | AO120: 0 | AP120: 0 | AQ120: 0 | AR120: =AVERAGE(AM120:AQ120) -> 0 | AS120: =STDEV(AM120:AQ120) -> 0 | AT120: 0 | AU120: 0 | AV120: 0 | AW120: 0 | AX120: 0 | AY120: =AVERAGE(AT120:AX120) -> 0 | AZ120: =STDEV(AT120:AX120) -> 0 | BA120: 0 | BB120: 0 | BC120: 0 | BD120: 0 | BE120: 0 | BF120: =AVERAGE(BA120:BE120) -> 0 | BG120: =STDEV(BA120:BE120) -> 0
A121: average | I121: =AVERAGE(I118:I120) ->  | P121: =AVERAGE(P118:P120) -> 14 | W121: =AVERAGE(W118:W120) -> 1 | AD121: =AVERAGE(AD118:AD120) -> 0 | AK121: =AVERAGE(AK118:AK120) -> 0 | AR121: =AVERAGE(AR118:AR120) -> 0 | AY121: =AVERAGE(AY118:AY120) -> 0 | BF121: =AVERAGE(BF118:BF120) -> 0
A122: stdev | I122: =SUM(J118:J120) ->  | P122: =SUM(Q118:Q120) -> 14 | W122: =SUM(X118:X120) -> 3 | AD122: =SUM(AE118:AE120) -> 1 | AK122: =SUM(AL118:AL120) -> 0 | AR122: =SUM(AS118:AS120) -> 0 | AY122: =SUM(AZ118:AZ120) -> 0 | BF122: =SUM(BG118:BG120) -> 0
A123: 2213F - | B123: 1 | D123: NA | E123: NA | F123: NA | G123: NA | H123: NA | I123: =AVERAGE(D123:H123) ->  | J123: =STDEV(D123:H123) ->  | K123: 35 | L123: 32 | M123: 48 | N123: 31 | O123: 36 | P123: =AVERAGE(K123:O123) -> 36 | Q123: =STDEV(K123:O123) -> 7 | R123: 2 | S123: 0 | T123: 8 | U123: 6 | V123: 7 | W123: =AVERAGE(R123:V123) -> 5 | X123: =STDEV(R123:V123) -> 3 | Y123: 1 | Z123: 1 | AA123: 0 | AB123: 0 | AC123: 0 | AD123: =AVERAGE(Y123:AC123) -> 0 | AE123: =STDEV(Y123:AC123) -> 1 | AF123: 0 | AG123: 0 | AH123: 0 | AI123: 0 | AJ123: 0 | AK123: =AVERAGE(AF123:AJ123) -> 0 | AL123: =STDEV(AF123:AJ123) -> 0 | AM123: 0 | AN123: 0 | AO123: 0 | AP123: 0 | AQ123: 0 | AR123: =AVERAGE(AM123:AQ123) -> 0 | AS123: =STDEV(AM123:AQ123) -> 0 | AT123: 0 | AU123: 0 | AV123: 0 | AW123: 0 | AX123: 0 | AY123: =AVERAGE(AT123:AX123) -> 0 | AZ123: =STDEV(AT123:AX123) -> 0 | BA123: 0 | BB123: 0 | BC123: 0 | BD123: 0 | BE123: 0 | BF123: =AVERAGE(BA123:BE123) -> 0 | BG123: =STDEV(BA123:BE123) -> 0
A124: p+0 | B124: 2 | D124: 0 | E124: 0 | F124: 0 | G124: 0 | H124: 0 | I124: =AVERAGE(D124:H124) -> 0 | J124: =STDEV(D124:H124) -> 0 | K124: 0 | L124: 0 | M124: 0 | N124: 0 | O124: 0 | P124: =AVERAGE(K124:O124) -> 0 | Q124: =STDEV(K124:O124) -> 0 | R124: 0 | S124: 0 | T124: 0 | U124: 0 | V124: 0 | W124: =AVERAGE(R124:V124) -> 0 | X124: =STDEV(R124:V124) -> 0 | Y124: 0 | Z124: 0 | AA124: 0 | AB124: 0 | AC124: 0 | AD124: =AVERAGE(Y124:AC124) -> 0 | AE124: =STDEV(Y124:AC124) -> 0 | AF124: 0 | AG124: 0 | AH124: 0 | AI124: 0 | AJ124: 0 | AK124: =AVERAGE(AF124:AJ124) -> 0 | AL124: =STDEV(AF124:AJ124) -> 0 | AM124: 0 | AN124: 0 | AO124: 0 | AP124: 0 | AQ124: 0 | AR124: =AVERAGE(AM124:AQ124) -> 0 | AS124: =STDEV(AM124:AQ124) -> 0 | AT124: 0 | AU124: 0 | AV124: 0 | AW124: 0 | AX124: 0 | AY124: =AVERAGE(AT124:AX124) -> 0 | AZ124: =STDEV(AT124:AX124) -> 0 | BA124: 0 | BB124: 0 | BC124: 0 | BD124: 0 | BE124: 0 | BF124: =AVERAGE(BA124:BE124) -> 0 | BG124: =STDEV(BA124:BE124) -> 0
B125: 3 | D125: NA | E125: NA | F125: NA | G125: NA | H125: NA | I125: =AVERAGE(D125:H125) ->  | J125: =STDEV(D125:H125) ->  | K125: 53 | L125: 51 | M125: 59 | N125: 51 | O125: 56 | P125: =AVERAGE(K125:O125) -> 54 | Q125: =STDEV(K125:O125) -> 3 | R125: 4 | S125: 6 | T125: 1 | U125: 10 | V125: 10 | W125: =AVERAGE(R125:V125) -> 6 | X125: =STDEV(R125:V125) -> 4 | Y125: 0 | Z125: 0 | AA125: 0 | AB125: 0 | AC125: 2 | AD125: =AVERAGE(Y125:AC125) -> 0 | AE125: =STDEV(Y125:AC125) -> 1 | AF125: 0 | AG125: 0 | AH125: 0 | AI125: 0 | AJ125: 0 | AK125: =AVERAGE(AF125:AJ125) -> 0 | AL125: =STDEV(AF125:AJ125) -> 0 | AM125: 0 | AN125: 0 | AO125: 0 | AP125: 0 | AQ125: 0 | AR125: =AVERAGE(AM125:AQ125) -> 0 | AS125: =STDEV(AM125:AQ125) -> 0 | AT125: 0 | AU125: 0 | AV125: 0 | AW125: 0 | AX125: 0 | AY125: =AVERAGE(AT125:AX125) -> 0 | AZ125: =STDEV(AT125:AX125) -> 0 | BA125: 0 | BB125: 0 | BC125: 0 | BD125: 0 | BE125: 0 | BF125: =AVERAGE(BA125:BE125) -> 0 | BG125: =STDEV(BA125:BE125) -> 0
A126: average | I126: =AVERAGE(I123,I125) ->  | P126: =AVERAGE(P123,P125) -> 45 | W126: =AVERAGE(W123,W125) -> 5 | AD126: =AVERAGE(AD123,AD125) -> 0 | AK126: =AVERAGE(AK123,AK125) -> 0 | AR126: =AVERAGE(AR123,AR125) -> 0 | AY126: =AVERAGE(AY123,AY125) -> 0 | BF126: =AVERAGE(BF123,BF125) -> 0
A127: stdev | I127: =SUM(J123,J125) ->  | P127: =SUM(Q123,Q125) -> 10 | W127: =SUM(X123,X125) -> 7 | AD127: =SUM(AE123,AE125) -> 1 | AK127: =SUM(AL123,AL125) -> 0 | AR127: =SUM(AS123,AS125) -> 0 | AY127: =SUM(AZ123,AZ125) -> 0 | BF127: =SUM(BG123,BG125) -> 0
A128: p+3 | B128: 1 | D128: 67 | E128: 65 | F128: 49 | G128: 45 | H128: 44 | I128: =AVERAGE(D128:H128) -> 54 | J128: =STDEV(D128:H128) -> 11 | K128: 8 | L128: 5 | M128: 4 | N128: 6 | O128: 9 | P128: =AVERAGE(K128:O128) -> 6 | Q128: =STDEV(K128:O128) -> 2 | R128: 2 | S128: 1 | T128: 0 | U128: 2 | V128: 1 | W128: =AVERAGE(R128:V128) -> 1 | X128: =STDEV(R128:V128) -> 1 | Y128: 0 | Z128: 0 | AA128: 0 | AB128: 0 | AC128: 0 | AD128: =AVERAGE(Y128:AC128) -> 0 | AE128: =STDEV(Y128:AC128) -> 0 | AF128: 0 | AG128: 0 | AH128: 0 | AI128: 0 | AJ128: 0 | AK128: =AVERAGE(AF128:AJ128) -> 0 | AL128: =STDEV(AF128:AJ128) -> 0 | AM128: 0 | AN128: 0 | AO128: 0 | AP128: 0 | AQ128: 0 | AR128: =AVERAGE(AM128:AQ128) -> 0 | AS128: =STDEV(AM128:AQ128) -> 0 | AT128: 0 | AU128: 0 | AV128: 0 | AW128: 0 | AX128: 0 | AY128: =AVERAGE(AT128:AX128) -> 0 | AZ128: =STDEV(AT128:AX128) -> 0 | BA128: 0 | BB128: 0 | BC128: 0 | BD128: 0 | BE128: 0 | BF128: =AVERAGE(BA128:BE128) -> 0 | BG128: =STDEV(BA128:BE128) -> 0
B129: 2 | D129: 10 | E129: 25 | F129: 21 | G129: 20 | H129: 16 | I129: =AVERAGE(D129:H129) -> 18 | J129: =STDEV(D129:H129) -> 6 | K129: 1 | L129: 0 | M129: 1 | N129: 2 | O129: 1 | P129: =AVERAGE(K129:O129) -> 1 | Q129: =STDEV(K129:O129) -> 1 | R129: 0 | S129: 1 | T129: 0 | U129: 0 | V129: 0 | W129: =AVERAGE(R129:V129) -> 0 | X129: =STDEV(R129:V129) -> 0 | Y129: 0 | Z129: 0 | AA129: 0 | AB129: 0 | AC129: 0 | AD129: =AVERAGE(Y129:AC129) -> 0 | AE129: =STDEV(Y129:AC129) -> 0 | AF129: 0 | AG129: 0 | AH129: 0 | AI129: 0 | AJ129: 0 | AK129: =AVERAGE(AF129:AJ129) -> 0 | AL129: =STDEV(AF129:AJ129) -> 0 | AM129: 0 | AN129: 0 | AO129: 0 | AP129: 0 | AQ129: 0 | AR129: =AVERAGE(AM129:AQ129) -> 0 | AS129: =STDEV(AM129:AQ129) -> 0 | AT129: 0 | AU129: 0 | AV129: 0 | AW129: 0 | AX129: 0 | AY129: =AVERAGE(AT129:AX129) -> 0 | AZ129: =STDEV(AT129:AX129) -> 0 | BA129: 0 | BB129: 0 | BC129: 0 | BD129: 0 | BE129: 0 | BF129: =AVERAGE(BA129:BE129) -> 0 | BG129: =STDEV(BA129:BE129) -> 0
B130: 3 | D130: 22 | E130: 30 | F130: 26 | G130: 18 | H130: 18 | I130: =AVERAGE(D130:H130) -> 23 | J130: =STDEV(D130:H130) -> 5 | K130: 4 | L130: 1 | M130: 0 | N130: 2 | O130: 0 | P130: =AVERAGE(K130:O130) -> 1 | Q130: =STDEV(K130:O130) -> 2 | R130: 0 | S130: 0 | T130: 0 | U130: 2 | V130: 1 | W130: =AVERAGE(R130:V130) -> 1 | X130: =STDEV(R130:V130) -> 1 | Y130: 0 | Z130: 0 | AA130: 0 | AB130: 0 | AC130: 0 | AD130: =AVERAGE(Y130:AC130) -> 0 | AE130: =STDEV(Y130:AC130) -> 0 | AF130: 0 | AG130: 0 | AH130: 0 | AI130: 0 | AJ130: 0 | AK130: =AVERAGE(AF130:AJ130) -> 0 | AL130: =STDEV(AF130:AJ130) -> 0 | AM130: 0 | AN130: 0 | AO130: 0 | AP130: 0 | AQ130: 0 | AR130: =AVERAGE(AM130:AQ130) -> 0 | AS130: =STDEV(AM130:AQ130) -> 0 | AT130: 0 | AU130: 0 | AV130: 0 | AW130: 0 | AX130: 0 | AY130: =AVERAGE(AT130:AX130) -> 0 | AZ130: =STDEV(AT130:AX130) -> 0 | BA130: 0 | BB130: 0 | BC130: 0 | BD130: 0 | BE130: 0 | BF130: =AVERAGE(BA130:BE130) -> 0 | BG130: =STDEV(BA130:BE130) -> 0
A131: average | I131: =AVERAGE(I128:I130) -> 32 | P131: =AVERAGE(P128:P130) -> 3 | W131: =AVERAGE(W128:W130) -> 1 | AD131: =AVERAGE(AD128:AD130) -> 0 | AK131: =AVERAGE(AK128:AK130) -> 0 | AR131: =AVERAGE(AR128:AR130) -> 0 | AY131: =AVERAGE(AY128:AY130) -> 0 | BF131: =AVERAGE(BF128:BF130) -> 0
A132: stdev | I132: =SUM(J128:J130) -> 22 | P132: =SUM(Q128:Q130) -> 4 | W132: =SUM(X128:X130) -> 2 | AD132: =SUM(AE128:AE130) -> 0 | AK132: =SUM(AL128:AL130) -> 0 | AR132: =SUM(AS128:AS130) -> 0 | AY132: =SUM(AZ128:AZ130) -> 0 | BF132: =SUM(BG128:BG130) -> 0
A133: 2213F A | B133: 1 | D133: 4 | E133: 7 | F133: 1 | G133: 4 | H133: 3 | I133: =AVERAGE(D133:H133) -> 4 | J133: =STDEV(D133:H133) -> 2 | K133: 0 | L133: 0 | M133: 0 | N133: 0 | O133: 11 | P133: =AVERAGE(K133:O133) -> 2 | Q133: =STDEV(K133:O133) -> 5 | R133: 0 | S133: 0 | T133: 0 | U133: 0 | V133: 0 | W133: =AVERAGE(R133:V133) -> 0 | X133: =STDEV(R133:V133) -> 0 | Y133: 0 | Z133: 0 | AA133: 0 | AB133: 0 | AC133: 0 | AD133: =AVERAGE(Y133:AC133) -> 0 | AE133: =STDEV(Y133:AC133) -> 0 | AF133: 0 | AG133: 0 | AH133: 0 | AI133: 0 | AJ133: 0 | AK133: =AVERAGE(AF133:AJ133) -> 0 | AL133: =STDEV(AF133:AJ133) -> 0 | AM133: 0 | AN133: 0 | AO133: 0 | AP133: 0 | AQ133: 0 | AR133: =AVERAGE(AM133:AQ133) -> 0 | AS133: =STDEV(AM133:AQ133) -> 0 | AT133: 0 | AU133: 0 | AV133: 0 | AW133: 0 | AX133: 0 | AY133: =AVERAGE(AT133:AX133) -> 0 | AZ133: =STDEV(AT133:AX133) -> 0 | BA133: 0 | BB133: 0 | BC133: 0 | BD133: 0 | BE133: 0 | BF133: =AVERAGE(BA133:BE133) -> 0 | BG133: =STDEV(BA133:BE133) -> 0
A134: p+0 | B134: 2 | D134: 35 | E134: 30 | F134: 31 | G134: 38 | H134: 27 | I134: =AVERAGE(D134:H134) -> 32 | J134: =STDEV(D134:H134) -> 4 | K134: 3 | L134: 1 | M134: 4 | N134: 1 | O134: 3 | P134: =AVERAGE(K134:O134) -> 2 | Q134: =STDEV(K134:O134) -> 1 | R134: 1 | S134: 0 | T134: 0 | U134: 0 | V134: 1 | W134: =AVERAGE(R134:V134) -> 0 | X134: =STDEV(R134:V134) -> 1 | Y134: 0 | Z134: 0 | AA134: 0 | AB134: 0 | AC134: 0 | AD134: =AVERAGE(Y134:AC134) -> 0 | AE134: =STDEV(Y134:AC134) -> 0 | AF134: 0 | AG134: 0 | AH134: 0 | AI134: 0 | AJ134: 0 | AK134: =AVERAGE(AF134:AJ134) -> 0 | AL134: =STDEV(AF134:AJ134) -> 0 | AM134: 0 | AN134: 0 | AO134: 0 | AP134: 0 | AQ134: 0 | AR134: =AVERAGE(AM134:AQ134) -> 0 | AS134: =STDEV(AM134:AQ134) -> 0 | AT134: 0 | AU134: 0 | AV134: 0 | AW134: 0 | AX134: 0 | AY134: =AVERAGE(AT134:AX134) -> 0 | AZ134: =STDEV(AT134:AX134) -> 0 | BA134: 0 | BB134: 0 | BC134: 0 | BD134: 0 | BE134: 0 | BF134: =AVERAGE(BA134:BE134) -> 0 | BG134: =STDEV(BA134:BE134) -> 0
B135: 3 | D135: 14 | E135: 18 | F135: 14 | G135: 14 | H135: 17 | I135: =AVERAGE(D135:H135) -> 15 | J135: =STDEV(D135:H135) -> 2 | K135: 1 | L135: 0 | M135: 0 | N135: 0 | O135: 2 | P135: =AVERAGE(K135:O135) -> 1 | Q135: =STDEV(K135:O135) -> 1 | R135: 0 | S135: 0 | T135: 0 | U135: 0 | V135: 0 | W135: =AVERAGE(R135:V135) -> 0 | X135: =STDEV(R135:V135) -> 0 | Y135: 0 | Z135: 0 | AA135: 0 | AB135: 0 | AC135: 1 | AD135: =AVERAGE(Y135:AC135) -> 0 | AE135: =STDEV(Y135:AC135) -> 0 | AF135: 0 | AG135: 0 | AH135: 0 | AI135: 0 | AJ135: 0 | AK135: =AVERAGE(AF135:AJ135) -> 0 | AL135: =STDEV(AF135:AJ135) -> 0 | AM135: 0 | AN135: 0 | AO135: 0 | AP135: 0 | AQ135: 0 | AR135: =AVERAGE(AM135:AQ135) -> 0 | AS135: =STDEV(AM135:AQ135) -> 0 | AT135: 0 | AU135: 0 | AV135: 0 | AW135: 0 | AX135: 0 | AY135: =AVERAGE(AT135:AX135) -> 0 | AZ135: =STDEV(AT135:AX135) -> 0 | BA135: 0 | BB135: 0 | BC135: 0 | BD135: 0 | BE135: 0 | BF135: =AVERAGE(BA135:BE135) -> 0 | BG135: =STDEV(BA135:BE135) -> 0
A136: average | I136: =AVERAGE(I133:I135) -> 17 | P136: =AVERAGE(P133:P135) -> 2 | W136: =AVERAGE(W133:W135) -> 0 | AD136: =AVERAGE(AD133:AD135) -> 0 | AK136: =AVERAGE(AK133:AK135) -> 0 | AR136: =AVERAGE(AR133:AR135) -> 0 | AY136: =AVERAGE(AY133:AY135) -> 0 | BF136: =AVERAGE(BF133:BF135) -> 0
A137: stdev | I137: =SUM(J133:J135) -> 8 | P137: =SUM(Q133:Q135) -> 7 | W137: =SUM(X133:X135) -> 1 | AD137: =SUM(AE133:AE135) -> 0 | AK137: =SUM(AL133:AL135) -> 0 | AR137: =SUM(AS133:AS135) -> 0 | AY137: =SUM(AZ133:AZ135) -> 0 | BF137: =SUM(BG133:BG135) -> 0
A138: p+3 | B138: 1 | D138: 28 | E138: 39 | F138: 29 | G138: 31 | H138: 28 | I138: =AVERAGE(D138:H138) -> 31 | J138: =STDEV(D138:H138) -> 5 | K138: 14 | L138: 16 | M138: 7 | N138: 10 | O138: 9 | P138: =AVERAGE(K138:O138) -> 11 | Q138: =STDEV(K138:O138) -> 4 | R138: 1 | S138: 2 | T138: 2 | U138: 2 | V138: 2 | W138: =AVERAGE(R138:V138) -> 2 | X138: =STDEV(R138:V138) -> 0 | Y138: 0 | Z138: 0 | AA138: 0 | AB138: 0 | AC138: 0 | AD138: =AVERAGE(Y138:AC138) -> 0 | AE138: =STDEV(Y138:AC138) -> 0 | AF138: 0 | AG138: 0 | AH138: 0 | AI138: 0 | AJ138: 0 | AK138: =AVERAGE(AF138:AJ138) -> 0 | AL138: =STDEV(AF138:AJ138) -> 0 | AM138: 0 | AN138: 0 | AO138: 0 | AP138: 0 | AQ138: 0 | AR138: =AVERAGE(AM138:AQ138) -> 0 | AS138: =STDEV(AM138:AQ138) -> 0 | AT138: 0 | AU138: 0 | AV138: 0 | AW138: 0 | AX138: 0 | AY138: =AVERAGE(AT138:AX138) -> 0 | AZ138: =STDEV(AT138:AX138) -> 0 | BA138: 0 | BB138: 0 | BC138: 0 | BD138: 0 | BE138: 0 | BF138: =AVERAGE(BA138:BE138) -> 0 | BG138: =STDEV(BA138:BE138) -> 0
B139: 2 | D139: 39 | E139: 48 | F139: 34 | G139: 41 | H139: 42 | I139: =AVERAGE(D139:H139) -> 41 | J139: =STDEV(D139:H139) -> 5 | K139: 4 | L139: 6 | M139: 4 | N139: 9 | O139: 6 | P139: =AVERAGE(K139:O139) -> 6 | Q139: =STDEV(K139:O139) -> 2 | R139: 1 | S139: 0 | T139: 1 | U139: 0 | V139: 0 | W139: =AVERAGE(R139:V139) -> 0 | X139: =STDEV(R139:V139) -> 1 | Y139: 0 | Z139: 0 | AA139: 0 | AB139: 0 | AC139: 0 | AD139: =AVERAGE(Y139:AC139) -> 0 | AE139: =STDEV(Y139:AC139) -> 0 | AF139: 0 | AG139: 0 | AH139: 0 | AI139: 0 | AJ139: 0 | AK139: =AVERAGE(AF139:AJ139) -> 0 | AL139: =STDEV(AF139:AJ139) -> 0 | AM139: 0 | AN139: 0 | AO139: 0 | AP139: 0 | AQ139: 0 | AR139: =AVERAGE(AM139:AQ139) -> 0 | AS139: =STDEV(AM139:AQ139) -> 0 | AT139: 0 | AU139: 0 | AV139: 0 | AW139: 0 | AX139: 0 | AY139: =AVERAGE(AT139:AX139) -> 0 | AZ139: =STDEV(AT139:AX139) -> 0 | BA139: 0 | BB139: 0 | BC139: 0 | BD139: 0 | BE139: 0 | BF139: =AVERAGE(BA139:BE139) -> 0 | BG139: =STDEV(BA139:BE139) -> 0
B140: 3 | D140: 27 | E140: 26 | F140: 30 | G140: 32 | H140: 34 | I140: =AVERAGE(D140:H140) -> 30 | J140: =STDEV(D140:H140) -> 3 | K140: 4 | L140: 5 | M140: 3 | N140: 3 | O140: 3 | P140: =AVERAGE(K140:O140) -> 4 | Q140: =STDEV(K140:O140) -> 1 | R140: 0 | S140: 0 | T140: 0 | U140: 0 | V140: 0 | W140: =AVERAGE(R140:V140) -> 0 | X140: =STDEV(R140:V140) -> 0 | Y140: 0 | Z140: 0 | AA140: 0 | AB140: 0 | AC140: 0 | AD140: =AVERAGE(Y140:AC140) -> 0 | AE140: =STDEV(Y140:AC140) -> 0 | AF140: 0 | AG140: 0 | AH140: 0 | AI140: 0 | AJ140: 0 | AK140: =AVERAGE(AF140:AJ140) -> 0 | AL140: =STDEV(AF140:AJ140) -> 0 | AM140: 0 | AN140: 0 | AO140: 0 | AP140: 0 | AQ140: 0 | AR140: =AVERAGE(AM140:AQ140) -> 0 | AS140: =STDEV(AM140:AQ140) -> 0 | AT140: 0 | AU140: 0 | AV140: 0 | AW140: 0 | AX140: 0 | AY140: =AVERAGE(AT140:AX140) -> 0 | AZ140: =STDEV(AT140:AX140) -> 0 | BA140: 0 | BB140: 0 | BC140: 0 | BD140: 0 | BE140: 0 | BF140: =AVERAGE(BA140:BE140) -> 0 | BG140: =STDEV(BA140:BE140) -> 0
A141: average | I141: =AVERAGE(I138:I140) -> 34 | P141: =AVERAGE(P138:P140) -> 7 | W141: =AVERAGE(W138:W140) -> 1 | AD141: =AVERAGE(AD138:AD140) -> 0 | AK141: =AVERAGE(AK138:AK140) -> 0 | AR141: =AVERAGE(AR138:AR140) -> 0 | AY141: =AVERAGE(AY138:AY140) -> 0 | BF141: =AVERAGE(BF138:BF140) -> 0
A142: stdev | I142: =SUM(J138:J140) -> 13 | P142: =SUM(Q138:Q140) -> 7 | W142: =SUM(X138:X140) -> 1 | AD142: =SUM(AE138:AE140) -> 0 | AK142: =SUM(AL138:AL140) -> 0 | AR142: =SUM(AS138:AS140) -> 0 | AY142: =SUM(AZ138:AZ140) -> 0 | BF142: =SUM(BG138:BG140) -> 0
A143: 2213F APR | B143: 1 | D143: 8 | E143: 7 | F143: 9 | G143: 5 | H143: 11 | I143: =AVERAGE(D143:H143) -> 8 | J143: =STDEV(D143:H143) -> 2 | K143: 1 | L143: 0 | M143: 1 | N143: 0 | O143: 1 | P143: =AVERAGE(K143:O143) -> 1 | Q143: =STDEV(K143:O143) -> 1 | R143: 0 | S143: 0 | T143: 0 | U143: 0 | V143: 1 | W143: =AVERAGE(R143:V143) -> 0 | X143: =STDEV(R143:V143) -> 0 | Y143: 0 | Z143: 0 | AA143: 0 | AB143: 0 | AC143: 0 | AD143: =AVERAGE(Y143:AC143) -> 0 | AE143: =STDEV(Y143:AC143) -> 0 | AF143: 0 | AG143: 0 | AH143: 0 | AI143: 0 | AJ143: 0 | AK143: =AVERAGE(AF143:AJ143) -> 0 | AL143: =STDEV(AF143:AJ143) -> 0 | AM143: 0 | AN143: 0 | AO143: 0 | AP143: 0 | AQ143: 0 | AR143: =AVERAGE(AM143:AQ143) -> 0 | AS143: =STDEV(AM143:AQ143) -> 0 | AT143: 0 | AU143: 0 | AV143: 0 | AW143: 0 | AX143: 0 | AY143: =AVERAGE(AT143:AX143) -> 0 | AZ143: =STDEV(AT143:AX143) -> 0 | BA143: 0 | BB143: 0 | BC143: 0 | BD143: 0 | BE143: 0 | BF143: =AVERAGE(BA143:BE143) -> 0 | BG143: =STDEV(BA143:BE143) -> 0
A144: p+0 | B144: 2 | D144: 0 | E144: 2 | F144: 2 | G144: 3 | H144: 2 | I144: =AVERAGE(D144:H144) -> 2 | J144: =STDEV(D144:H144) -> 1 | K144: 0 | L144: 0 | M144: 0 | N144: 0 | O144: 0 | P144: =AVERAGE(K144:O144) -> 0 | Q144: =STDEV(K144:O144) -> 0 | R144: 0 | S144: 0 | T144: 0 | U144: 0 | V144: 0 | W144: =AVERAGE(R144:V144) -> 0 | X144: =STDEV(R144:V144) -> 0 | Y144: 0 | Z144: 0 | AA144: 0 | AB144: 0 | AC144: 0 | AD144: =AVERAGE(Y144:AC144) -> 0 | AE144: =STDEV(Y144:AC144) -> 0 | AF144: 0 | AG144: 0 | AH144: 0 | AI144: 0 | AJ144: 0 | AK144: =AVERAGE(AF144:AJ144) -> 0 | AL144: =STDEV(AF144:AJ144) -> 0 | AM144: 0 | AN144: 0 | AO144: 0 | AP144: 0 | AQ144: 0 | AR144: =AVERAGE(AM144:AQ144) -> 0 | AS144: =STDEV(AM144:AQ144) -> 0 | AT144: 0 | AU144: 0 | AV144: 0 | AW144: 0 | AX144: 0 | AY144: =AVERAGE(AT144:AX144) -> 0 | AZ144: =STDEV(AT144:AX144) -> 0 | BA144: 0 | BB144: 0 | BC144: 0 | BD144: 0 | BE144: 0 | BF144: =AVERAGE(BA144:BE144) -> 0 | BG144: =STDEV(BA144:BE144) -> 0
B145: 3 | D145: 18 | E145: 17 | F145: 14 | G145: 18 | H145: 25 | I145: =AVERAGE(D145:H145) -> 18 | J145: =STDEV(D145:H145) -> 4 | K145: 0 | L145: 3 | M145: 4 | N145: 1 | O145: 2 | P145: =AVERAGE(K145:O145) -> 2 | Q145: =STDEV(K145:O145) -> 2 | R145: 0 | S145: 0 | T145: 0 | U145: 0 | V145: 1 | W145: =AVERAGE(R145:V145) -> 0 | X145: =STDEV(R145:V145) -> 0 | Y145: 0 | Z145: 0 | AA145: 0 | AB145: 1 | AC145: 0 | AD145: =AVERAGE(Y145:AC145) -> 0 | AE145: =STDEV(Y145:AC145) -> 0 | AF145: 0 | AG145: 0 | AH145: 0 | AI145: 0 | AJ145: 0 | AK145: =AVERAGE(AF145:AJ145) -> 0 | AL145: =STDEV(AF145:AJ145) -> 0 | AM145: 0 | AN145: 0 | AO145: 0 | AP145: 0 | AQ145: 0 | AR145: =AVERAGE(AM145:AQ145) -> 0 | AS145: =STDEV(AM145:AQ145) -> 0 | AT145: 0 | AU145: 0 | AV145: 0 | AW145: 0 | AX145: 0 | AY145: =AVERAGE(AT145:AX145) -> 0 | AZ145: =STDEV(AT145:AX145) -> 0 | BA145: 0 | BB145: 0 | BC145: 0 | BD145: 0 | BE145: 0 | BF145: =AVERAGE(BA145:BE145) -> 0 | BG145: =STDEV(BA145:BE145) -> 0
A146: average | I146: =AVERAGE(I143:I145) -> 9 | P146: =AVERAGE(P143:P145) -> 1 | W146: =AVERAGE(W143:W145) -> 0 | AD146: =AVERAGE(AD143:AD145) -> 0 | AK146: =AVERAGE(AK143:AK145) -> 0 | AR146: =AVERAGE(AR143:AR145) -> 0 | AY146: =AVERAGE(AY143:AY145) -> 0 | BF146: =AVERAGE(BF143:BF145) -> 0
A147: stdev | I147: =SUM(J143:J145) -> 7 | P147: =SUM(Q143:Q145) -> 2 | W147: =SUM(X143:X145) -> 1 | AD147: =SUM(AE143:AE145) -> 0 | AK147: =SUM(AL143:AL145) -> 0 | AR147: =SUM(AS143:AS145) -> 0 | AY147: =SUM(AZ143:AZ145) -> 0 | BF147: =SUM(BG143:BG145) -> 0
A148: p+3 | B148: 1 | D148: 12 | E148: 14 | F148: 9 | G148: 8 | H148: 10 | I148: =AVERAGE(D148:H148) -> 11 | J148: =STDEV(D148:H148) -> 2 | K148: 2 | L148: 2 | M148: 0 | N148: 2 | O148: 0 | P148: =AVERAGE(K148:O148) -> 1 | Q148: =STDEV(K148:O148) -> 1 | R148: 0 | S148: 0 | T148: 0 | U148: 0 | V148: 0 | W148: =AVERAGE(R148:V148) -> 0 | X148: =STDEV(R148:V148) -> 0 | Y148: 0 | Z148: 0 | AA148: 0 | AB148: 0 | AC148: 0 | AD148: =AVERAGE(Y148:AC148) -> 0 | AE148: =STDEV(Y148:AC148) -> 0 | AF148: 0 | AG148: 0 | AH148: 0 | AI148: 0 | AJ148: 0 | AK148: =AVERAGE(AF148:AJ148) -> 0 | AL148: =STDEV(AF148:AJ148) -> 0 | AM148: 0 | AN148: 0 | AO148: 0 | AP148: 0 | AQ148: 0 | AR148: =AVERAGE(AM148:AQ148) -> 0 | AS148: =STDEV(AM148:AQ148) -> 0 | AT148: 0 | AU148: 0 | AV148: 0 | AW148: 0 | AX148: 0 | AY148: =AVERAGE(AT148:AX148) -> 0 | AZ148: =STDEV(AT148:AX148) -> 0 | BA148: 0 | BB148: 0 | BC148: 0 | BD148: 0 | BE148: 0 | BF148: =AVERAGE(BA148:BE148) -> 0 | BG148: =STDEV(BA148:BE148) -> 0
B149: 2 | D149: 1 | E149: 0 | F149: 2 | G149: 0 | H149: 2 | I149: =AVERAGE(D149:H149) -> 1 | J149: =STDEV(D149:H149) -> 1 | K149: 0 | L149: 2 | M149: 0 | N149: 0 | O149: 0 | P149: =AVERAGE(K149:O149) -> 0 | Q149: =STDEV(K149:O149) -> 1 | R149: 0 | S149: 0 | T149: 0 | U149: 0 | V149: 0 | W149: =AVERAGE(R149:V149) -> 0 | X149: =STDEV(R149:V149) -> 0 | Y149: 0 | Z149: 0 | AA149: 0 | AB149: 0 | AC149: 0 | AD149: =AVERAGE(Y149:AC149) -> 0 | AE149: =STDEV(Y149:AC149) -> 0 | AF149: 0 | AG149: 0 | AH149: 0 | AI149: 0 | AJ149: 0 | AK149: =AVERAGE(AF149:AJ149) -> 0 | AL149: =STDEV(AF149:AJ149) -> 0 | AM149: 0 | AN149: 0 | AO149: 0 | AP149: 0 | AQ149: 0 | AR149: =AVERAGE(AM149:AQ149) -> 0 | AS149: =STDEV(AM149:AQ149) -> 0 | AT149: 0 | AU149: 0 | AV149: 0 | AW149: 0 | AX149: 0 | AY149: =AVERAGE(AT149:AX149) -> 0 | AZ149: =STDEV(AT149:AX149) -> 0 | BA149: 0 | BB149: 0 | BC149: 0 | BD149: 0 | BE149: 0 | BF149: =AVERAGE(BA149:BE149) -> 0 | BG149: =STDEV(BA149:BE149) -> 0
B150: 3 | D150: 13 | E150: 13 | F150: 14 | G150: 14 | H150: 12 | I150: =AVERAGE(D150:H150) -> 13 | J150: =STDEV(D150:H150) -> 1 | K150: 2 | L150: 4 | M150: 1 | N150: 2 | O150: 1 | P150: =AVERAGE(K150:O150) -> 2 | Q150: =STDEV(K150:O150) -> 1 | R150: 0 | S150: 0 | T150: 0 | U150: 0 | V150: 0 | W150: =AVERAGE(R150:V150) -> 0 | X150: =STDEV(R150:V150) -> 0 | Y150: 0 | Z150: 0 | AA150: 0 | AB150: 0 | AC150: 0 | AD150: =AVERAGE(Y150:AC150) -> 0 | AE150: =STDEV(Y150:AC150) -> 0 | AF150: 0 | AG150: 0 | AH150: 0 | AI150: 0 | AJ150: 0 | AK150: =AVERAGE(AF150:AJ150) -> 0 | AL150: =STDEV(AF150:AJ150) -> 0 | AM150: 0 | AN150: 0 | AO150: 0 | AP150: 0 | AQ150: 0 | AR150: =AVERAGE(AM150:AQ150) -> 0 | AS150: =STDEV(AM150:AQ150) -> 0 | AT150: 0 | AU150: 0 | AV150: 0 | AW150: 0 | AX150: 0 | AY150: =AVERAGE(AT150:AX150) -> 0 | AZ150: =STDEV(AT150:AX150) -> 0 | BA150: 0 | BB150: 0 | BC150: 0 | BD150: 0 | BE150: 0 | BF150: =AVERAGE(BA150:BE150) -> 0 | BG150: =STDEV(BA150:BE150) -> 0
A151: average | I151: =AVERAGE(I148:I150) -> 8 | P151: =AVERAGE(P148:P150) -> 1 | W151: =AVERAGE(W148:W150) -> 0 | AD151: =AVERAGE(AD148:AD150) -> 0 | AK151: =AVERAGE(AK148:AK150) -> 0 | AR151: =AVERAGE(AR148:AR150) -> 0 | AY151: =AVERAGE(AY148:AY150) -> 0 | BF151: =AVERAGE(BF148:BF150) -> 0
A152: stdev | I152: =SUM(J148:J150) -> 4 | P152: =SUM(Q148:Q150) -> 3 | W152: =SUM(X148:X150) -> 0 | AD152: =SUM(AE148:AE150) -> 0 | AK152: =SUM(AL148:AL150) -> 0 | AR152: =SUM(AS148:AS150) -> 0 | AY152: =SUM(AZ148:AZ150) -> 0 | BF152: =SUM(BG148:BG150) -> 0
A155: T7 | B155: 08okt17
A156: Sample | B156: Dilution: | D156: 1 | I156: AVERAGE | K156: =10^-1 -> 0.1 | P156: AVERAGE | R156: =10^-2 -> 0.01 | W156: AVERAGE | Y156: =10^-3 -> 1.00E-03 | AD156: AVERAGE | AF156: =10^-4 -> 1.00E-04 | AK156: AVERAGE | AM156: =10^-5 -> 1.00E-05 | AR156: AVERAGE | AT156: =10^-5 -> 1.00E-05 | AY156: AVERAGE | BA156: =10^-5 -> 1.00E-05 | BF156: AVERAGE
A157: Blank | B157: 1 | D157: 0 | E157: 0 | F157: 0 | G157: 0 | H157: 0 | I157: =AVERAGE(D157:H157) -> 0 | J157: =STDEV(D157:H157) -> 0 | K157: 0 | L157: 0 | M157: 0 | N157: 0 | O157: 0 | P157: =AVERAGE(K157:O157) -> 0 | Q157: =STDEV(K157:O157) -> 0 | R157: 0 | S157: 0 | T157: 0 | U157: 0 | V157: 0 | W157: =AVERAGE(R157:V157) -> 0 | X157: =STDEV(R157:V157) -> 0 | Y157: 0 | Z157: 0 | AA157: 0 | AB157: 0 | AC157: 0 | AD157: =AVERAGE(Y157:AC157) -> 0 | AE157: =STDEV(Y157:AC157) -> 0 | AF157: 0 | AG157: 0 | AH157: 0 | AI157: 0 | AJ157: 0 | AK157: =AVERAGE(AF157:AJ157) -> 0 | AL157: =STDEV(AF157:AJ157) -> 0 | AM157: 0 | AN157: 0 | AO157: 0 | AP157: 0 | AQ157: 0 | AR157: =AVERAGE(AM157:AQ157) -> 0 | AS157: =STDEV(AM157:AQ157) -> 0 | AT157: 0 | AU157: 0 | AV157: 0 | AW157: 0 | AX157: 0 | AY157: =AVERAGE(AT157:AX157) -> 0 | AZ157: =STDEV(AT157:AX157) -> 0 | BA157: 0 | BB157: 0 | BC157: 0 | BD157: 0 | BE157: 0 | BF157: =AVERAGE(BA157:BE157) -> 0 | BG157: =STDEV(BA157:BE157) -> 0
B158: 2 | D158: 0 | E158: 0 | F158: 0 | G158: 0 | H158: 0 | I158: =AVERAGE(D158:H158) -> 0 | J158: =STDEV(D158:H158) -> 0 | K158: 0 | L158: 0 | M158: 0 | N158: 0 | O158: 0 | P158: =AVERAGE(K158:O158) -> 0 | Q158: =STDEV(K158:O158) -> 0 | R158: 0 | S158: 0 | T158: 0 | U158: 0 | V158: 0 | W158: =AVERAGE(R158:V158) -> 0 | X158: =STDEV(R158:V158) -> 0 | Y158: 0 | Z158: 0 | AA158: 0 | AB158: 0 | AC158: 0 | AD158: =AVERAGE(Y158:AC158) -> 0 | AE158: =STDEV(Y158:AC158) -> 0 | AF158: 0 | AG158: 0 | AH158: 0 | AI158: 0 | AJ158: 0 | AK158: =AVERAGE(AF158:AJ158) -> 0 | AL158: =STDEV(AF158:AJ158) -> 0 | AM158: 0 | AN158: 0 | AO158: 0 | AP158: 0 | AQ158: 0 | AR158: =AVERAGE(AM158:AQ158) -> 0 | AS158: =STDEV(AM158:AQ158) -> 0 | AT158: 0 | AU158: 0 | AV158: 0 | AW158: 0 | AX158: 0 | AY158: =AVERAGE(AT158:AX158) -> 0 | AZ158: =STDEV(AT158:AX158) -> 0 | BA158: 0 | BB158: 0 | BC158: 0 | BD158: 0 | BE158: 0 | BF158: =AVERAGE(BA158:BE158) -> 0 | BG158: =STDEV(BA158:BE158) -> 0
B159: 3 | D159: 0 | E159: 0 | F159: 0 | G159: 0 | H159: 0 | I159: =AVERAGE(D159:H159) -> 0 | J159: =STDEV(D159:H159) -> 0 | K159: 0 | L159: 0 | M159: 0 | N159: 0 | O159: 0 | P159: =AVERAGE(K159:O159) -> 0 | Q159: =STDEV(K159:O159) -> 0 | R159: 0 | S159: 0 | T159: 0 | U159: 0 | V159: 0 | W159: =AVERAGE(R159:V159) -> 0 | X159: =STDEV(R159:V159) -> 0 | Y159: 0 | Z159: 0 | AA159: 0 | AB159: 0 | AC159: 0 | AD159: =AVERAGE(Y159:AC159) -> 0 | AE159: =STDEV(Y159:AC159) -> 0 | AF159: 0 | AG159: 0 | AH159: 0 | AI159: 0 | AJ159: 0 | AK159: =AVERAGE(AF159:AJ159) -> 0 | AL159: =STDEV(AF159:AJ159) -> 0 | AM159: 0 | AN159: 0 | AO159: 0 | AP159: 0 | AQ159: 0 | AR159: =AVERAGE(AM159:AQ159) -> 0 | AS159: =STDEV(AM159:AQ159) -> 0 | AT159: 0 | AU159: 0 | AV159: 0 | AW159: 0 | AX159: 0 | AY159: =AVERAGE(AT159:AX159) -> 0 | AZ159: =STDEV(AT159:AX159) -> 0 | BA159: 0 | BB159: 0 | BC159: 0 | BD159: 0 | BE159: 0 | BF159: 0 | BG159: 0
I160: =AVERAGE(I157:I159) -> 0 | P160: =AVERAGE(P157:P159) -> 0 | W160: =AVERAGE(W157:W159) -> 0 | AD160: =AVERAGE(AD157:AD159) -> 0 | AK160: =AVERAGE(AK157:AK159) -> 0 | AR160: =AVERAGE(AR157:AR159) -> 0 | AY160: =AVERAGE(AY157:AY159) -> 0 | BF160: =AVERAGE(BF157:BF159) -> 0
I161: =SUM(J157:J159) -> 0 | P161: =SUM(Q157:Q159) -> 0 | W161: =SUM(X157:X159) -> 0 | AD161: =SUM(AE157:AE159) -> 0 | AK161: =SUM(AL157:AL159) -> 0 | AR161: =SUM(AS157:AS159) -> 0 | AY161: =SUM(AZ157:AZ159) -> 0 | BF161: =SUM(BG157:BG159) -> 0
A162: DH5α - | B162: 1 | D162: 49 | E162: 56 | F162: 43 | G162: 47 | H162: 52 | I162: =AVERAGE(D162:H162) -> 49 | J162: =STDEV(D162:H162) -> 5 | K162: 4 | L162: 6 | M162: 8 | N162: 14 | O162: 12 | P162: =AVERAGE(K162:O162) -> 9 | Q162: =STDEV(K162:O162) -> 4 | R162: 0 | S162: 0 | T162: 0 | U162: 0 | V162: 0 | W162: =AVERAGE(R162:V162) -> 0 | X162: =STDEV(R162:V162) -> 0 | Y162: 0 | Z162: 0 | AA162: 0 | AB162: 0 | AC162: 0 | AD162: =AVERAGE(Y162:AC162) -> 0 | AE162: =STDEV(Y162:AC162) -> 0 | AF162: 0 | AG162: 0 | AH162: 0 | AI162: 0 | AJ162: 0 | AK162: =AVERAGE(AF162:AJ162) -> 0 | AL162: =STDEV(AF162:AJ162) -> 0 | AM162: 0 | AN162: 0 | AO162: 0 | AP162: 0 | AQ162: 0 | AR162: =AVERAGE(AM162:AQ162) -> 0 | AS162: =STDEV(AM162:AQ162) -> 0 | AT162: 0 | AU162: 0 | AV162: 0 | AW162: 0 | AX162: 0 | AY162: =AVERAGE(AT162:AX162) -> 0 | AZ162: =STDEV(AT162:AX162) -> 0 | BA162: 0 | BB162: 0 | BC162: 0 | BD162: 0 | BE162: 0 | BF162: =AVERAGE(BA162:BE162) -> 0 | BG162: =STDEV(BA162:BE162) -> 0
B163: 2 | D163: 34 | E163: 29 | F163: 48 | G163: 38 | H163: 35 | I163: =AVERAGE(D163:H163) -> 37 | J163: =STDEV(D163:H163) -> 7 | K163: 4 | L163: 3 | M163: 6 | N163: 2 | O163: 6 | P163: =AVERAGE(K163:O163) -> 4 | Q163: =STDEV(K163:O163) -> 2 | R163: 0 | S163: 0 | T163: 0 | U163: 0 | V163: 0 | W163: =AVERAGE(R163:V163) -> 0 | X163: =STDEV(R163:V163) -> 0 | Y163: 0 | Z163: 0 | AA163: 0 | AB163: 0 | AC163: 0 | AD163: =AVERAGE(Y163:AC163) -> 0 | AE163: =STDEV(Y163:AC163) -> 0 | AF163: 0 | AG163: 0 | AH163: 0 | AI163: 0 | AJ163: 0 | AK163: =AVERAGE(AF163:AJ163) -> 0 | AL163: =STDEV(AF163:AJ163) -> 0 | AM163: 0 | AN163: 0 | AO163: 0 | AP163: 0 | AQ163: 0 | AR163: =AVERAGE(AM163:AQ163) -> 0 | AS163: =STDEV(AM163:AQ163) -> 0 | AT163: 0 | AU163: 0 | AV163: 0 | AW163: 0 | AX163: 0 | AY163: =AVERAGE(AT163:AX163) -> 0 | AZ163: =STDEV(AT163:AX163) -> 0 | BA163: 0 | BB163: 0 | BC163: 0 | BD163: 0 | BE163: 0 | BF163: =AVERAGE(BA163:BE163) -> 0 | BG163: =STDEV(BA163:BE163) -> 0
B164: 3 | D164: 104 | E164: 96 | F164: 98 | G164: 102 | H164: 89 | I164: =AVERAGE(D164:H164) -> 98 | J164: =STDEV(D164:H164) -> 6 | K164: 14 | L164: 9 | M164: 12 | N164: 24 | O164: 12 | P164: =AVERAGE(K164:O164) -> 14 | Q164: =STDEV(K164:O164) -> 6 | R164: 0 | S164: 0 | T164: 0 | U164: 0 | V164: 0 | W164: =AVERAGE(R164:V164) -> 0 | X164: =STDEV(R164:V164) -> 0 | Y164: 0 | Z164: 0 | AA164: 0 | AB164: 0 | AC164: 0 | AD164: =AVERAGE(Y164:AC164) -> 0 | AE164: =STDEV(Y164:AC164) -> 0 | AF164: 0 | AG164: 0 | AH164: 0 | AI164: 0 | AJ164: 0 | AK164: =AVERAGE(AF164:AJ164) -> 0 | AL164: =STDEV(AF164:AJ164) -> 0 | AM164: 0 | AN164: 0 | AO164: 0 | AP164: 0 | AQ164: 0 | AR164: =AVERAGE(AM164:AQ164) -> 0 | AS164: =STDEV(AM164:AQ164) -> 0 | AT164: 0 | AU164: 0 | AV164: 0 | AW164: 0 | AX164: 0 | AY164: =AVERAGE(AT164:AX164) -> 0 | AZ164: =STDEV(AT164:AX164) -> 0 | BA164: 0 | BB164: 0 | BC164: 0 | BD164: 0 | BE164: 0 | BF164: =AVERAGE(BA164:BE164) -> 0 | BG164: =STDEV(BA164:BE164) -> 0
I165: =AVERAGE(I162:I164) -> 61 | P165: =AVERAGE(P162:P164) -> 9 | W165: =AVERAGE(W162:W164) -> 0 | AD165: =AVERAGE(AD162:AD164) -> 0 | AK165: =AVERAGE(AK162:AK164) -> 0 | AR165: =AVERAGE(AR162:AR164) -> 0 | AY165: =AVERAGE(AY162:AY164) -> 0 | BF165: =AVERAGE(BF162:BF164) -> 0
I166: =SUM(J162:J164) -> 18 | P166: =SUM(Q162:Q164) -> 12 | W166: =SUM(X162:X164) -> 0 | AD166: =SUM(AE162:AE164) -> 0 | AK166: =SUM(AL162:AL164) -> 0 | AR166: =SUM(AS162:AS164) -> 0 | AY166: =SUM(AZ162:AZ164) -> 0 | BF166: =SUM(BG162:BG164) -> 0
A167: WT | B167: 1 | D167: 1 | E167: 0 | F167: 1 | G167: 0 | H167: 2 | I167: =AVERAGE(D167:H167) -> 1 | J167: =STDEV(D167:H167) -> 1 | K167: 0 | L167: 0 | M167: 0 | N167: 0 | O167: 0 | P167: =AVERAGE(K167:O167) -> 0 | Q167: =STDEV(K167:O167) -> 0 | R167: 0 | S167: 0 | T167: 0 | U167: 0 | V167: 0 | W167: =AVERAGE(R167:V167) -> 0 | X167: =STDEV(R167:V167) -> 0 | Y167: 0 | Z167: 0 | AA167: 0 | AB167: 0 | AC167: 0 | AD167: =AVERAGE(Y167:AC167) -> 0 | AE167: =STDEV(Y167:AC167) -> 0 | AF167: 0 | AG167: 0 | AH167: 0 | AI167: 0 | AJ167: 0 | AK167: =AVERAGE(AF167:AJ167) -> 0 | AL167: =STDEV(AF167:AJ167) -> 0 | AM167: 0 | AN167: 0 | AO167: 0 | AP167: 0 | AQ167: 0 | AR167: =AVERAGE(AM167:AQ167) -> 0 | AS167: =STDEV(AM167:AQ167) -> 0 | AT167: 0 | AU167: 0 | AV167: 0 | AW167: 0 | AX167: 0 | AY167: =AVERAGE(AT167:AX167) -> 0 | AZ167: =STDEV(AT167:AX167) -> 0 | BA167: 0 | BB167: 0 | BC167: 0 | BD167: 0 | BE167: 0 | BF167: =AVERAGE(BA167:BE167) -> 0 | BG167: =STDEV(BA167:BE167) -> 0
B168: 2 | D168: 10 | E168: 8 | F168: 9 | G168: 15 | H168: 12 | I168: =AVERAGE(D168:H168) -> 11 | J168: =STDEV(D168:H168) -> 3 | K168: 1 | L168: 0 | M168: 0 | N168: 3 | O168: 2 | P168: =AVERAGE(K168:O168) -> 1 | Q168: =STDEV(K168:O168) -> 1 | R168: 1 | S168: 0 | T168: 0 | U168: 0 | V168: 0 | W168: =AVERAGE(R168:V168) -> 0 | X168: =STDEV(R168:V168) -> 0 | Y168: 0 | Z168: 0 | AA168: 0 | AB168: 0 | AC168: 0 | AD168: =AVERAGE(Y168:AC168) -> 0 | AE168: =STDEV(Y168:AC168) -> 0 | AF168: 0 | AG168: 0 | AH168: 0 | AI168: 0 | AJ168: 0 | AK168: =AVERAGE(AF168:AJ168) -> 0 | AL168: =STDEV(AF168:AJ168) -> 0 | AM168: 0 | AN168: 0 | AO168: 0 | AP168: 0 | AQ168: 0 | AR168: =AVERAGE(AM168:AQ168) -> 0 | AS168: =STDEV(AM168:AQ168) -> 0 | AT168: 0 | AU168: 0 | AV168: 0 | AW168: 0 | AX168: 0 | AY168: =AVERAGE(AT168:AX168) -> 0 | AZ168: =STDEV(AT168:AX168) -> 0 | BA168: 0 | BB168: 0 | BC168: 0 | BD168: 0 | BE168: 0 | BF168: 0 | BG168: =STDEV(BA168:BE168) -> 0
B169: 3 | D169: 10 | E169: 15 | F169: 9 | G169: 9 | H169: 5 | I169: =AVERAGE(D169:H169) -> 10 | J169: =STDEV(D169:H169) -> 4 | K169: 0 | L169: 0 | M169: 0 | N169: 0 | O169: 2 | P169: =AVERAGE(K169:O169) -> 0 | Q169: =STDEV(K169:O169) -> 1 | R169: 0 | S169: 0 | T169: 0 | U169: 0 | V169: 0 | W169: =AVERAGE(R169:V169) -> 0 | X169: =STDEV(R169:V169) -> 0 | Y169: 0 | Z169: 0 | AA169: 0 | AB169: 0 | AC169: 0 | AD169: =AVERAGE(Y169:AC169) -> 0 | AE169: =STDEV(Y169:AC169) -> 0 | AF169: 0 | AG169: 0 | AH169: 0 | AI169: 0 | AJ169: 0 | AK169: =AVERAGE(AF169:AJ169) -> 0 | AL169: =STDEV(AF169:AJ169) -> 0 | AM169: 0 | AN169: 0 | AO169: 0 | AP169: 0 | AQ169: 0 | AR169: =AVERAGE(AM169:AQ169) -> 0 | AS169: =STDEV(AM169:AQ169) -> 0 | AT169: 0 | AU169: 0 | AV169: 0 | AW169: 0 | AX169: 0 | AY169: =AVERAGE(AT169:AX169) -> 0 | AZ169: =STDEV(AT169:AX169) -> 0 | BA169: 0 | BB169: 0 | BC169: 0 | BD169: 0 | BE169: 0 | BF169: 0 | BG169: 0
A170: average | I170: =AVERAGE(I167:I169) -> 7 | P170: =AVERAGE(P167:P169) -> 1 | W170: =AVERAGE(W167:W169) -> 0 | AD170: =AVERAGE(AD167:AD169) -> 0 | AK170: =AVERAGE(AK167:AK169) -> 0 | AR170: =AVERAGE(AR167:AR169) -> 0 | AY170: =AVERAGE(AY167:AY169) -> 0 | BF170: =AVERAGE(BF168:BF169) -> 0
A171: stdev | I171: =SUM(J167:J169) -> 7 | P171: =SUM(Q167:Q169) -> 2 | W171: =SUM(X167:X169) -> 0 | AD171: =SUM(AE167:AE169) -> 0 | AK171: =SUM(AL167:AL169) -> 0 | AR171: =SUM(AS167:AS169) -> 0 | AY171: =SUM(AZ167:AZ169) -> 0 | BF171: =SUM(BG167:BG169) -> 0
A172: 2213F - | B172: 1 | D172: 71 | E172: 64 | F172: 54 | G172: 73 | H172: 74 | I172: =AVERAGE(D172:H172) -> 67 | J172: =STDEV(D172:H172) -> 8 | K172: 0 | L172: 0 | M172: 0 | N172: 0 | O172: 0 | P172: =AVERAGE(K172:O172) -> 0 | Q172: =STDEV(K172:O172) -> 0 | R172: 0 | S172: 0 | T172: 0 | U172: 0 | V172: 0 | W172: =AVERAGE(R172:V172) -> 0 | X172: =STDEV(R172:V172) -> 0 | Y172: 0 | Z172: 0 | AA172: 0 | AB172: 0 | AC172: 0 | AD172: =AVERAGE(Y172:AC172) -> 0 | AE172: =STDEV(Y172:AC172) -> 0 | AF172: 0 | AG172: 0 | AH172: 0 | AI172: 0 | AJ172: 0 | AK172: =AVERAGE(AF172:AJ172) -> 0 | AL172: =STDEV(AF172:AJ172) -> 0 | AM172: 0 | AN172: 0 | AO172: 0 | AP172: 0 | AQ172: 0 | AR172: =AVERAGE(AM172:AQ172) -> 0 | AS172: =STDEV(AM172:AQ172) -> 0 | AT172: 0 | AU172: 0 | AV172: 0 | AW172: 0 | AX172: 0 | AY172: =AVERAGE(AT172:AX172) -> 0 | AZ172: =STDEV(AT172:AX172) -> 0 | BA172: 0 | BB172: 0 | BC172: 0 | BD172: 0 | BE172: 0 | BF172: =AVERAGE(BA172:BE172) -> 0 | BG172: =STDEV(BA172:BE172) -> 0
A173: p+0 | B173: 2 | D173: 0 | E173: 0 | F173: 0 | G173: 0 | H173: 0 | I173: =AVERAGE(D173:H173) -> 0 | J173: =STDEV(D173:H173) -> 0 | K173: 0 | L173: 0 | M173: 0 | N173: 0 | O173: 0 | P173: =AVERAGE(K173:O173) -> 0 | Q173: =STDEV(K173:O173) -> 0 | R173: 0 | S173: 0 | T173: 0 | U173: 0 | V173: 0 | W173: =AVERAGE(R173:V173) -> 0 | X173: =STDEV(R173:V173) -> 0 | Y173: 0 | Z173: 0 | AA173: 0 | AB173: 0 | AC173: 0 | AD173: =AVERAGE(Y173:AC173) -> 0 | AE173: =STDEV(Y173:AC173) -> 0 | AF173: 0 | AG173: 0 | AH173: 0 | AI173: 0 | AJ173: 0 | AK173: =AVERAGE(AF173:AJ173) -> 0 | AL173: =STDEV(AF173:AJ173) -> 0 | AM173: 0 | AN173: 0 | AO173: 0 | AP173: 0 | AQ173: 0 | AR173: =AVERAGE(AM173:AQ173) -> 0 | AS173: =STDEV(AM173:AQ173) -> 0 | AT173: 0 | AU173: 0 | AV173: 0 | AW173: 0 | AX173: 0 | AY173: =AVERAGE(AT173:AX173) -> 0 | AZ173: =STDEV(AT173:AX173) -> 0 | BA173: 0 | BB173: 0 | BC173: 0 | BD173: 0 | BE173: 0 | BF173: 0 | BG173: =STDEV(BA173:BE173) -> 0
B174: 3 | D174: 0 | E174: 0 | F174: 2 | G174: 1 | H174: 0 | I174: =AVERAGE(D174:H174) -> 1 | J174: =STDEV(D174:H174) -> 1 | K174: 0 | L174: 0 | M174: 0 | N174: 0 | O174: 0 | P174: =AVERAGE(K174:O174) -> 0 | Q174: =STDEV(K174:O174) -> 0 | R174: 0 | S174: 0 | T174: 0 | U174: 0 | V174: 0 | W174: =AVERAGE(R174:V174) -> 0 | X174: =STDEV(R174:V174) -> 0 | Y174: 0 | Z174: 0 | AA174: 0 | AB174: 0 | AC174: 0 | AD174: =AVERAGE(Y174:AC174) -> 0 | AE174: =STDEV(Y174:AC174) -> 0 | AF174: 0 | AG174: 0 | AH174: 0 | AI174: 0 | AJ174: 0 | AK174: =AVERAGE(AF174:AJ174) -> 0 | AL174: =STDEV(AF174:AJ174) -> 0 | AM174: 0 | AN174: 0 | AO174: 0 | AP174: 0 | AQ174: 0 | AR174: =AVERAGE(AM174:AQ174) -> 0 | AS174: =STDEV(AM174:AQ174) -> 0 | AT174: 0 | AU174: 0 | AV174: 0 | AW174: 0 | AX174: 0 | AY174: =AVERAGE(AT174:AX174) -> 0 | AZ174: =STDEV(AT174:AX174) -> 0 | BA174: 0 | BB174: 0 | BC174: 0 | BD174: 0 | BE174: 0 | BF174: 0 | BG174: 0
A175: average | I175: =AVERAGE(I172,I174) -> 34 | P175: =AVERAGE(P172,P174) -> 0 | W175: =AVERAGE(W172,W174) -> 0 | AD175: =AVERAGE(AD172,AD174) -> 0 | AK175: =AVERAGE(AK172,AK174) -> 0 | AR175: =AVERAGE(AR172,AR174) -> 0 | AY175: =AVERAGE(AY172,AY174) -> 0 | BF175: =AVERAGE(BF172,BF174) -> 0
A176: stdev | I176: =SUM(J172,J174) -> 9 | P176: =SUM(Q172,Q174) -> 0 | W176: =SUM(X172,X174) -> 0 | AD176: =SUM(AE172,AE174) -> 0 | AK176: =SUM(AL172,AL174) -> 0 | AR176: =SUM(AS172,AS174) -> 0 | AY176: =SUM(AZ172,AZ174) -> 0 | BF176: =SUM(BG172,BG174) -> 0
A177: p+3 | B177: 1 | D177: 2 | E177: 1 | F177: 2 | G177: 4 | H177: 1 | I177: =AVERAGE(D177:H177) -> 2 | J177: =STDEV(D177:H177) -> 1 | K177: 0 | L177: 0 | M177: 0 | N177: 0 | O177: 1 | P177: =AVERAGE(K177:O177) -> 0 | Q177: =STDEV(K177:O177) -> 0 | R177: 0 | S177: 0 | T177: 0 | U177: 0 | V177: 0 | W177: =AVERAGE(R177:V177) -> 0 | X177: =STDEV(R177:V177) -> 0 | Y177: 0 | Z177: 0 | AA177: 0 | AB177: 0 | AC177: 0 | AD177: =AVERAGE(Y177:AC177) -> 0 | AE177: =STDEV(Y177:AC177) -> 0 | AF177: 0 | AG177: 0 | AH177: 0 | AI177: 0 | AJ177: 0 | AK177: =AVERAGE(AF177:AJ177) -> 0 | AL177: =STDEV(AF177:AJ177) -> 0 | AM177: 0 | AN177: 0 | AO177: 0 | AP177: 0 | AQ177: 0 | AR177: =AVERAGE(AM177:AQ177) -> 0 | AS177: =STDEV(AM177:AQ177) -> 0 | AT177: 0 | AU177: 0 | AV177: 0 | AW177: 0 | AX177: 0 | AY177: =AVERAGE(AT177:AX177) -> 0 | AZ177: =STDEV(AT177:AX177) -> 0 | BA177: 0 | BB177: 0 | BC177: 0 | BD177: 0 | BE177: 0 | BF177: =AVERAGE(BA177:BE177) -> 0 | BG177: =STDEV(BA177:BE177) -> 0
B178: 2 | D178: 4 | E178: 1 | F178: 1 | G178: 2 | H178: 1 | I178: =AVERAGE(D178:H178) -> 2 | J178: =STDEV(D178:H178) -> 1 | K178: 0 | L178: 0 | M178: 0 | N178: 1 | O178: 0 | P178: =AVERAGE(K178:O178) -> 0 | Q178: =STDEV(K178:O178) -> 0 | R178: 0 | S178: 0 | T178: 0 | U178: 0 | V178: 0 | W178: =AVERAGE(R178:V178) -> 0 | X178: =STDEV(R178:V178) -> 0 | Y178: 0 | Z178: 0 | AA178: 0 | AB178: 0 | AC178: 0 | AD178: =AVERAGE(Y178:AC178) -> 0 | AE178: =STDEV(Y178:AC178) -> 0 | AF178: 0 | AG178: 0 | AH178: 0 | AI178: 0 | AJ178: 0 | AK178: =AVERAGE(AF178:AJ178) -> 0 | AL178: =STDEV(AF178:AJ178) -> 0 | AM178: 0 | AN178: 0 | AO178: 0 | AP178: 0 | AQ178: 0 | AR178: =AVERAGE(AM178:AQ178) -> 0 | AS178: =STDEV(AM178:AQ178) -> 0 | AT178: 0 | AU178: 0 | AV178: 0 | AW178: 0 | AX178: 0 | AY178: =AVERAGE(AT178:AX178) -> 0 | AZ178: =STDEV(AT178:AX178) -> 0 | BA178: 0 | BB178: 0 | BC178: 0 | BD178: 0 | BE178: 0 | BF178: 0 | BG178: =STDEV(BA178:BE178) -> 0
B179: 3 | D179: 40 | E179: 46 | F179: 51 | G179: 40 | H179: 46 | I179: =AVERAGE(D179:H179) -> 45 | J179: =STDEV(D179:H179) -> 5 | K179: 7 | L179: 0 | M179: 0 | N179: 3 | O179: 9 | P179: =AVERAGE(K179:O179) -> 4 | Q179: =STDEV(K179:O179) -> 4 | R179: 0 | S179: 0 | T179: 0 | U179: 1 | V179: 0 | W179: =AVERAGE(R179:V179) -> 0 | X179: =STDEV(R179:V179) -> 0 | Y179: 0 | Z179: 0 | AA179: 0 | AB179: 0 | AC179: 0 | AD179: =AVERAGE(Y179:AC179) -> 0 | AE179: =STDEV(Y179:AC179) -> 0 | AF179: 0 | AG179: 0 | AH179: 0 | AI179: 0 | AJ179: 0 | AK179: =AVERAGE(AF179:AJ179) -> 0 | AL179: =STDEV(AF179:AJ179) -> 0 | AM179: 0 | AN179: 0 | AO179: 0 | AP179: 0 | AQ179: 0 | AR179: =AVERAGE(AM179:AQ179) -> 0 | AS179: =STDEV(AM179:AQ179) -> 0 | AT179: 0 | AU179: 0 | AV179: 0 | AW179: 0 | AX179: 0 | AY179: =AVERAGE(AT179:AX179) -> 0 | AZ179: =STDEV(AT179:AX179) -> 0 | BA179: 0 | BB179: 0 | BC179: 0 | BD179: 0 | BE179: 0 | BF179: 0 | BG179: 0
A180: average | I180: =AVERAGE(I177:I179) -> 16 | P180: =AVERAGE(P177:P179) -> 1 | W180: =AVERAGE(W177:W179) -> 0 | AD180: =AVERAGE(AD177:AD179) -> 0 | AK180: =AVERAGE(AK177:AK179) -> 0 | AR180: =AVERAGE(AR177:AR179) -> 0 | AY180: =AVERAGE(AY177:AY179) -> 0 | BF180: =AVERAGE(BF177:BF179) -> 0
A181: stdev | I181: =SUM(J177:J179) -> 7 | P181: =SUM(Q177:Q179) -> 5 | W181: =SUM(X177:X179) -> 0 | AD181: =SUM(AE177:AE179) -> 0 | AK181: =SUM(AL177:AL179) -> 0 | AR181: =SUM(AS177:AS179) -> 0 | AY181: =SUM(AZ177:AZ179) -> 0 | BF181: =SUM(BG177:BG179) -> 0
A182: 2213F A | B182: 1 | D182: 0 | E182: 0 | F182: 0 | G182: 0 | H182: 0 | I182: =AVERAGE(D182:H182) -> 0 | J182: =STDEV(D182:H182) -> 0 | K182: 0 | L182: 0 | M182: 0 | N182: 0 | O182: 0 | P182: =AVERAGE(K182:O182) -> 0 | Q182: =STDEV(K182:O182) -> 0 | R182: 0 | S182: 0 | T182: 0 | U182: 0 | V182: 0 | W182: =AVERAGE(R182:V182) -> 0 | X182: =STDEV(R182:V182) -> 0 | Y182: 0 | Z182: 0 | AA182: 0 | AB182: 0 | AC182: 0 | AD182: =AVERAGE(Y182:AC182) -> 0 | AE182: =STDEV(Y182:AC182) -> 0 | AF182: 0 | AG182: 0 | AH182: 0 | AI182: 0 | AJ182: 0 | AK182: =AVERAGE(AF182:AJ182) -> 0 | AL182: =STDEV(AF182:AJ182) -> 0 | AM182: 0 | AN182: 0 | AO182: 0 | AP182: 0 | AQ182: 0 | AR182: =AVERAGE(AM182:AQ182) -> 0 | AS182: =STDEV(AM182:AQ182) -> 0 | AT182: 0 | AU182: 0 | AV182: 0 | AW182: 0 | AX182: 0 | AY182: =AVERAGE(AT182:AX182) -> 0 | AZ182: =STDEV(AT182:AX182) -> 0 | BA182: 0 | BB182: 0 | BC182: 0 | BD182: 0 | BE182: 0 | BF182: =AVERAGE(BA182:BE182) -> 0 | BG182: =STDEV(BA182:BE182) -> 0
A183: p+0 | B183: 2 | D183: 0 | E183: 0 | F183: 1 | G183: 1 | H183: 2 | I183: =AVERAGE(D183:H183) -> 1 | J183: =STDEV(D183:H183) -> 1 | K183: 1 | L183: 2 | M183: 0 | N183: 0 | O183: 0 | P183: =AVERAGE(K183:O183) -> 1 | Q183: =STDEV(K183:O183) -> 1 | R183: 0 | S183: 0 | T183: 0 | U183: 0 | V183: 0 | W183: =AVERAGE(R183:V183) -> 0 | X183: =STDEV(R183:V183) -> 0 | Y183: 0 | Z183: 0 | AA183: 0 | AB183: 0 | AC183: 0 | AD183: =AVERAGE(Y183:AC183) -> 0 | AE183: =STDEV(Y183:AC183) -> 0 | AF183: 0 | AG183: 0 | AH183: 0 | AI183: 0 | AJ183: 0 | AK183: =AVERAGE(AF183:AJ183) -> 0 | AL183: =STDEV(AF183:AJ183) -> 0 | AM183: 0 | AN183: 0 | AO183: 0 | AP183: 0 | AQ183: 0 | AR183: =AVERAGE(AM183:AQ183) -> 0 | AS183: =STDEV(AM183:AQ183) -> 0 | AT183: 0 | AU183: 0 | AV183: 0 | AW183: 0 | AX183: 0 | AY183: =AVERAGE(AT183:AX183) -> 0 | AZ183: =STDEV(AT183:AX183) -> 0 | BA183: 0 | BB183: 0 | BC183: 0 | BD183: 0 | BE183: 0 | BF183: 0 | BG183: =STDEV(BA183:BE183) -> 0
B184: 3 | D184: 4 | E184: 2 | F184: 2 | G184: 3 | H184: 1 | I184: =AVERAGE(D184:H184) -> 2 | J184: =STDEV(D184:H184) -> 1 | K184: 0 | L184: 0 | M184: 0 | N184: 1 | O184: 1 | P184: =AVERAGE(K184:O184) -> 0 | Q184: =STDEV(K184:O184) -> 1 | R184: 1 | S184: 0 | T184: 0 | U184: 0 | V184: 0 | W184: =AVERAGE(R184:V184) -> 0 | X184: =STDEV(R184:V184) -> 0 | Y184: 0 | Z184: 0 | AA184: 0 | AB184: 0 | AC184: 0 | AD184: =AVERAGE(Y184:AC184) -> 0 | AE184: =STDEV(Y184:AC184) -> 0 | AF184: 0 | AG184: 0 | AH184: 0 | AI184: 0 | AJ184: 0 | AK184: =AVERAGE(AF184:AJ184) -> 0 | AL184: =STDEV(AF184:AJ184) -> 0 | AM184: 0 | AN184: 0 | AO184: 0 | AP184: 0 | AQ184: 0 | AR184: =AVERAGE(AM184:AQ184) -> 0 | AS184: =STDEV(AM184:AQ184) -> 0 | AT184: 0 | AU184: 0 | AV184: 0 | AW184: 0 | AX184: 0 | AY184: =AVERAGE(AT184:AX184) -> 0 | AZ184: =STDEV(AT184:AX184) -> 0 | BA184: 0 | BB184: 0 | BC184: 0 | BD184: 0 | BE184: 0 | BF184: =AVERAGE(BA184:BE184) -> 0 | BG184: 0
A185: average | I185: =AVERAGE(I182:I184) -> 1 | P185: =AVERAGE(P182:P184) -> 0 | W185: =AVERAGE(W182:W184) -> 0 | AD185: =AVERAGE(AD182:AD184) -> 0 | AK185: =AVERAGE(AK182:AK184) -> 0 | AR185: =AVERAGE(AR182:AR184) -> 0 | AY185: =AVERAGE(AY182:AY184) -> 0 | BF185: =AVERAGE(BF182:BF184) -> 0
A186: stdev | I186: =SUM(J182:J184) -> 2 | P186: =SUM(Q182:Q184) -> 1 | W186: =SUM(X182:X184) -> 0 | AD186: =SUM(AE182:AE184) -> 0 | AK186: =SUM(AL182:AL184) -> 0 | AR186: =SUM(AS182:AS184) -> 0 | AY186: =SUM(AZ182:AZ184) -> 0 | BF186: =SUM(BG182:BG184) -> 0
A187: p+3 | B187: 1 | D187: 4 | E187: 1 | F187: 2 | G187: 3 | H187: 1 | I187: =AVERAGE(D187:H187) -> 2 | J187: =STDEV(D187:H187) -> 1 | K187: 3 | L187: 1 | M187: 2 | N187: 0 | O187: 0 | P187: =AVERAGE(K187:O187) -> 1 | Q187: =STDEV(K187:O187) -> 1 | R187: 0 | S187: 0 | T187: 0 | U187: 0 | V187: 1 | W187: =AVERAGE(R187:V187) -> 0 | X187: =STDEV(R187:V187) -> 0 | Y187: 0 | Z187: 0 | AA187: 0 | AB187: 0 | AC187: 0 | AD187: =AVERAGE(Y187:AC187) -> 0 | AE187: =STDEV(Y187:AC187) -> 0 | AF187: 0 | AG187: 0 | AH187: 0 | AI187: 0 | AJ187: 0 | AK187: =AVERAGE(AF187:AJ187) -> 0 | AL187: =STDEV(AF187:AJ187) -> 0 | AM187: 0 | AN187: 0 | AO187: 0 | AP187: 0 | AQ187: 0 | AR187: =AVERAGE(AM187:AQ187) -> 0 | AS187: =STDEV(AM187:AQ187) -> 0 | AT187: 0 | AU187: 0 | AV187: 0 | AW187: 0 | AX187: 0 | AY187: =AVERAGE(AT187:AX187) -> 0 | AZ187: =STDEV(AT187:AX187) -> 0 | BA187: 0 | BB187: 0 | BC187: 0 | BD187: 0 | BE187: 0 | BF187: =AVERAGE(BA187:BE187) -> 0 | BG187: =STDEV(BA187:BE187) -> 0
B188: 2 | D188: 1 | E188: 4 | F188: 1 | G188: 1 | H188: 2 | I188: =AVERAGE(D188:H188) -> 2 | J188: =STDEV(D188:H188) -> 1 | K188: 1 | L188: 1 | M188: 0 | N188: 0 | O188: 0 | P188: =AVERAGE(K188:O188) -> 0 | Q188: =STDEV(K188:O188) -> 1 | R188: 0 | S188: 0 | T188: 0 | U188: 0 | V188: 0 | W188: =AVERAGE(R188:V188) -> 0 | X188: =STDEV(R188:V188) -> 0 | Y188: 0 | Z188: 0 | AA188: 0 | AB188: 0 | AC188: 0 | AD188: =AVERAGE(Y188:AC188) -> 0 | AE188: =STDEV(Y188:AC188) -> 0 | AF188: 0 | AG188: 0 | AH188: 0 | AI188: 0 | AJ188: 0 | AK188: =AVERAGE(AF188:AJ188) -> 0 | AL188: =STDEV(AF188:AJ188) -> 0 | AM188: 0 | AN188: 0 | AO188: 0 | AP188: 0 | AQ188: 0 | AR188: =AVERAGE(AM188:AQ188) -> 0 | AS188: =STDEV(AM188:AQ188) -> 0 | AT188: 0 | AU188: 0 | AV188: 0 | AW188: 0 | AX188: 0 | AY188: =AVERAGE(AT188:AX188) -> 0 | AZ188: =STDEV(AT188:AX188) -> 0 | BA188: 0 | BB188: 0 | BC188: 0 | BD188: 0 | BE188: 0 | BF188: 0 | BG188: =STDEV(BA188:BE188) -> 0
B189: 3 | D189: 1 | E189: 6 | F189: 2 | G189: 4 | H189: 4 | I189: =AVERAGE(D189:H189) -> 3 | J189: =STDEV(D189:H189) -> 2 | K189: 0 | L189: 2 | M189: 0 | N189: 0 | O189: 1 | P189: =AVERAGE(K189:O189) -> 1 | Q189: =STDEV(K189:O189) -> 1 | R189: 0 | S189: 0 | T189: 0 | U189: 0 | V189: 0 | W189: =AVERAGE(R189:V189) -> 0 | X189: =STDEV(R189:V189) -> 0 | Y189: 0 | Z189: 0 | AA189: 0 | AB189: 0 | AC189: 0 | AD189: =AVERAGE(Y189:AC189) -> 0 | AE189: =STDEV(Y189:AC189) -> 0 | AF189: 0 | AG189: 0 | AH189: 0 | AI189: 0 | AJ189: 0 | AK189: =AVERAGE(AF189:AJ189) -> 0 | AL189: =STDEV(AF189:AJ189) -> 0 | AM189: 0 | AN189: 0 | AO189: 0 | AP189: 0 | AQ189: 0 | AR189: =AVERAGE(AM189:AQ189) -> 0 | AS189: =STDEV(AM189:AQ189) -> 0 | AT189: 0 | AU189: 0 | AV189: 0 | AW189: 0 | AX189: 0 | AY189: =AVERAGE(AT189:AX189) -> 0 | AZ189: =STDEV(AT189:AX189) -> 0 | BA189: 0 | BB189: 0 | BC189: 0 | BD189: 0 | BE189: 0 | BF189: 0 | BG189: 0
A190: average | I190: =AVERAGE(I187:I189) -> 2 | P190: =AVERAGE(P187:P189) -> 1 | W190: =AVERAGE(W187:W189) -> 0 | AD190: =AVERAGE(AD187:AD189) -> 0 | AK190: =AVERAGE(AK187:AK189) -> 0 | AR190: =AVERAGE(AR187:AR189) -> 0 | AY190: =AVERAGE(AY187:AY189) -> 0 | BF190: =AVERAGE(BF187:BF189) -> 0
A191: stdev | I191: =SUM(J187:J189) -> 5 | P191: =SUM(Q187:Q189) -> 3 | W191: =SUM(X187:X189) -> 0 | AD191: =SUM(AE187:AE189) -> 0 | AK191: =SUM(AL187:AL189) -> 0 | AR191: =SUM(AS187:AS189) -> 0 | AY191: =SUM(AZ187:AZ189) -> 0 | BF191: =SUM(BG187:BG189) -> 0
A192: 2213F APR | B192: 1 | D192: 1 | E192: 1 | F192: 0 | G192: 0 | H192: 0 | I192: =AVERAGE(D192:H192) -> 0 | J192: =STDEV(D192:H192) -> 1 | K192: 0 | L192: 0 | M192: 0 | N192: 0 | O192: 0 | P192: =AVERAGE(K192:O192) -> 0 | Q192: =STDEV(K192:O192) -> 0 | R192: 0 | S192: 0 | T192: 0 | U192: 0 | V192: 0 | W192: =AVERAGE(R192:V192) -> 0 | X192: =STDEV(R192:V192) -> 0 | Y192: 0 | Z192: 0 | AA192: 0 | AB192: 0 | AC192: 0 | AD192: =AVERAGE(Y192:AC192) -> 0 | AE192: =STDEV(Y192:AC192) -> 0 | AF192: 0 | AG192: 0 | AH192: 0 | AI192: 0 | AJ192: 0 | AK192: =AVERAGE(AF192:AJ192) -> 0 | AL192: =STDEV(AF192:AJ192) -> 0 | AM192: 0 | AN192: 0 | AO192: 0 | AP192: 0 | AQ192: 0 | AR192: =AVERAGE(AM192:AQ192) -> 0 | AS192: =STDEV(AM192:AQ192) -> 0 | AT192: 0 | AU192: 0 | AV192: 0 | AW192: 0 | AX192: 0 | AY192: =AVERAGE(AT192:AX192) -> 0 | AZ192: =STDEV(AT192:AX192) -> 0 | BA192: 0 | BB192: 0 | BC192: 0 | BD192: 0 | BE192: 0 | BF192: =AVERAGE(BA192:BE192) -> 0 | BG192: =STDEV(BA192:BE192) -> 0
A193: p+0 | B193: 2 | D193: 0 | E193: 0 | F193: 0 | G193: 0 | H193: 0 | I193: =AVERAGE(D193:H193) -> 0 | J193: =STDEV(D193:H193) -> 0 | K193: 0 | L193: 0 | M193: 0 | N193: 0 | O193: 0 | P193: =AVERAGE(K193:O193) -> 0 | Q193: =STDEV(K193:O193) -> 0 | R193: 0 | S193: 0 | T193: 0 | U193: 0 | V193: 0 | W193: =AVERAGE(R193:V193) -> 0 | X193: =STDEV(R193:V193) -> 0 | Y193: 0 | Z193: 0 | AA193: 0 | AB193: 0 | AC193: 0 | AD193: =AVERAGE(Y193:AC193) -> 0 | AE193: =STDEV(Y193:AC193) -> 0 | AF193: 0 | AG193: 0 | AH193: 0 | AI193: 0 | AJ193: 0 | AK193: =AVERAGE(AF193:AJ193) -> 0 | AL193: =STDEV(AF193:AJ193) -> 0 | AM193: 0 | AN193: 0 | AO193: 0 | AP193: 0 | AQ193: 0 | AR193: =AVERAGE(AM193:AQ193) -> 0 | AS193: =STDEV(AM193:AQ193) -> 0 | AT193: 0 | AU193: 0 | AV193: 0 | AW193: 0 | AX193: 0 | AY193: =AVERAGE(AT193:AX193) -> 0 | AZ193: =STDEV(AT193:AX193) -> 0 | BA193: 0 | BB193: 0 | BC193: 0 | BD193: 0 | BE193: 0 | BF193: 0 | BG193: =STDEV(BA193:BE193) -> 0
B194: 3 | D194: 0 | E194: 0 | F194: 1 | G194: 0 | H194: 0 | I194: =AVERAGE(D194:H194) -> 0 | J194: =STDEV(D194:H194) -> 0 | K194: 0 | L194: 0 | M194: 0 | N194: 0 | O194: 0 | P194: =AVERAGE(K194:O194) -> 0 | Q194: =STDEV(K194:O194) -> 0 | R194: 0 | S194: 0 | T194: 0 | U194: 0 | V194: 0 | W194: =AVERAGE(R194:V194) -> 0 | X194: =STDEV(R194:V194) -> 0 | Y194: 0 | Z194: 0 | AA194: 0 | AB194: 0 | AC194: 0 | AD194: =AVERAGE(Y194:AC194) -> 0 | AE194: =STDEV(Y194:AC194) -> 0 | AF194: 0 | AG194: 0 | AH194: 0 | AI194: 0 | AJ194: 0 | AK194: =AVERAGE(AF194:AJ194) -> 0 | AL194: =STDEV(AF194:AJ194) -> 0 | AM194: 0 | AN194: 0 | AO194: 0 | AP194: 0 | AQ194: 0 | AR194: =AVERAGE(AM194:AQ194) -> 0 | AS194: =STDEV(AM194:AQ194) -> 0 | AT194: 0 | AU194: 0 | AV194: 0 | AW194: 0 | AX194: 0 | AY194: =AVERAGE(AT194:AX194) -> 0 | AZ194: =STDEV(AT194:AX194) -> 0 | BA194: 0 | BB194: 0 | BC194: 0 | BD194: 0 | BE194: 0 | BF194: 0 | BG194: 0
A195: average | I195: =AVERAGE(I192:I194) -> 0 | P195: =AVERAGE(P192:P194) -> 0 | W195: =AVERAGE(W192:W194) -> 0 | AD195: =AVERAGE(AD192:AD194) -> 0 | AK195: =AVERAGE(AK192:AK194) -> 0 | AR195: =AVERAGE(AR192:AR194) -> 0 | AY195: =AVERAGE(AY192:AY194) -> 0 | BF195: =AVERAGE(BF192:BF194) -> 0
A196: stdev | I196: =SUM(J192:J194) -> 1 | P196: =SUM(Q192:Q194) -> 0 | W196: =SUM(X192:X194) -> 0 | AD196: =SUM(AE192:AE194) -> 0 | AK196: =SUM(AL192:AL194) -> 0 | AR196: =SUM(AS192:AS194) -> 0 | AY196: =SUM(AZ192:AZ194) -> 0 | BF196: =SUM(BG192:BG194) -> 0
A197: p+3 | B197: 1 | D197: 0 | E197: 0 | F197: 1 | G197: 0 | H197: 0 | I197: =AVERAGE(D197:H197) -> 0 | J197: =STDEV(D197:H197) -> 0 | K197: 0 | L197: 0 | M197: 0 | N197: 0 | O197: 0 | P197: =AVERAGE(K197:O197) -> 0 | Q197: =STDEV(K197:O197) -> 0 | R197: 0 | S197: 0 | T197: 0 | U197: 0 | V197: 0 | W197: =AVERAGE(R197:V197) -> 0 | X197: =STDEV(R197:V197) -> 0 | Y197: 0 | Z197: 0 | AA197: 0 | AB197: 0 | AC197: 0 | AD197: =AVERAGE(Y197:AC197) -> 0 | AE197: =STDEV(Y197:AC197) -> 0 | AF197: 0 | AG197: 0 | AH197: 0 | AI197: 0 | AJ197: 0 | AK197: =AVERAGE(AF197:AJ197) -> 0 | AL197: =STDEV(AF197:AJ197) -> 0 | AM197: 0 | AN197: 0 | AO197: 0 | AP197: 0 | AQ197: 0 | AR197: =AVERAGE(AM197:AQ197) -> 0 | AS197: =STDEV(AM197:AQ197) -> 0 | AT197: 0 | AU197: 0 | AV197: 0 | AW197: 0 | AX197: 0 | AY197: =AVERAGE(AT197:AX197) -> 0 | AZ197: =STDEV(AT197:AX197) -> 0 | BA197: 0 | BB197: 0 | BC197: 0 | BD197: 0 | BE197: 0 | BF197: =AVERAGE(BA197:BE197) -> 0 | BG197: =STDEV(BA197:BE197) -> 0
B198: 2 | D198: 0 | E198: 0 | F198: 0 | G198: 0 | H198: 0 | I198: =AVERAGE(D198:H198) -> 0 | J198: =STDEV(D198:H198) -> 0 | K198: 0 | L198: 0 | M198: 0 | N198: 0 | O198: 0 | P198: =AVERAGE(K198:O198) -> 0 | Q198: =STDEV(K198:O198) -> 0 | R198: 0 | S198: 0 | T198: 0 | U198: 0 | V198: 0 | W198: =AVERAGE(R198:V198) -> 0 | X198: =STDEV(R198:V198) -> 0 | Y198: 0 | Z198: 0 | AA198: 0 | AB198: 0 | AC198: 0 | AD198: =AVERAGE(Y198:AC198) -> 0 | AE198: =STDEV(Y198:AC198) -> 0 | AF198: 0 | AG198: 0 | AH198: 0 | AI198: 0 | AJ198: 0 | AK198: =AVERAGE(AF198:AJ198) -> 0 | AL198: =STDEV(AF198:AJ198) -> 0 | AM198: 0 | AN198: 0 | AO198: 0 | AP198: 0 | AQ198: 0 | AR198: =AVERAGE(AM198:AQ198) -> 0 | AS198: =STDEV(AM198:AQ198) -> 0 | AT198: 0 | AU198: 0 | AV198: 0 | AW198: 0 | AX198: 0 | AY198: =AVERAGE(AT198:AX198) -> 0 | AZ198: =STDEV(AT198:AX198) -> 0 | BA198: 0 | BB198: 0 | BC198: 0 | BD198: 0 | BE198: 0 | BF198: 0 | BG198: =STDEV(BA198:BE198) -> 0
B199: 3 | D199: 2 | E199: 0 | F199: 0 | G199: 1 | H199: 0 | I199: =AVERAGE(D199:H199) -> 1 | J199: =STDEV(D199:H199) -> 1 | K199: 0 | L199: 0 | M199: 0 | N199: 0 | O199: 0 | P199: =AVERAGE(K199:O199) -> 0 | Q199: =STDEV(K199:O199) -> 0 | R199: 0 | S199: 0 | T199: 0 | U199: 0 | V199: 0 | W199: =AVERAGE(R199:V199) -> 0 | X199: =STDEV(R199:V199) -> 0 | Y199: 0 | Z199: 0 | AA199: 0 | AB199: 0 | AC199: 0 | AD199: =AVERAGE(Y199:AC199) -> 0 | AE199: =STDEV(Y199:AC199) -> 0 | AF199: 0 | AG199: 0 | AH199: 0 | AI199: 0 | AJ199: 0 | AK199: =AVERAGE(AF199:AJ199) -> 0 | AL199: =STDEV(AF199:AJ199) -> 0 | AM199: 0 | AN199: 0 | AO199: 0 | AP199: 0 | AQ199: 0 | AR199: =AVERAGE(AM199:AQ199) -> 0 | AS199: =STDEV(AM199:AQ199) -> 0 | AT199: 0 | AU199: 0 | AV199: 0 | AW199: 0 | AX199: 0 | AY199: =AVERAGE(AT199:AX199) -> 0 | AZ199: =STDEV(AT199:AX199) -> 0 | BA199: 0 | BB199: 0 | BC199: 0 | BD199: 0 | BE199: 0 | BF199: 0 | BG199: 0
A200: average | I200: =AVERAGE(I197:I199) -> 0 | P200: =AVERAGE(P197:P199) -> 0 | W200: =AVERAGE(W197:W199) -> 0 | AD200: =AVERAGE(AD197:AD199) -> 0 | AK200: =AVERAGE(AK197:AK199) -> 0 | AR200: =AVERAGE(AR197:AR199) -> 0 | AY200: =AVERAGE(AY197:AY199) -> 0 | BF200: =AVERAGE(BF197:BF199) -> 0
A201: stdev | I201: =SUM(J197:J199) -> 1 | P201: =SUM(Q197:Q199) -> 0 | W201: =SUM(X197:X199) -> 0 | AD201: =SUM(AE197:AE199) -> 0 | AK201: =SUM(AL197:AL199) -> 0 | AR201: =SUM(AS197:AS199) -> 0 | AY201: =SUM(AZ197:AZ199) -> 0 | BF201: =SUM(BG197:BG199) -> 0
A204: T9 | B204: 2017-10-10
A205: Sample | B205: Dilution: | D205: 1 | I205: AVERAGE | K205: =10^-1 -> 0.1 | P205: AVERAGE | R205: =10^-2 -> 0.01 | W205: AVERAGE | Y205: =10^-3 -> 1.00E-03 | AD205: AVERAGE | AF205: =10^-4 -> 1.00E-04 | AK205: AVERAGE | AM205: =10^-5 -> 1.00E-05 | AR205: AVERAGE | AT205: =10^-6 -> 1.00E-06 | AY205: AVERAGE | BA205: =10^-7 -> 1.00E-07 | BF205: AVERAGE
A206: Blank | B206: 1 | D206: 0 | E206: 0 | F206: 0 | G206: 0 | H206: 0 | I206: =AVERAGE(D206:H206) -> 0 | J206: =STDEV(D206:H206) -> 0 | K206: 0 | L206: 0 | M206: 0 | N206: 0 | O206: 0 | P206: =AVERAGE(K206:O206) -> 0 | Q206: =STDEV(K206:O206) -> 0 | R206: 0 | S206: 0 | T206: 0 | U206: 0 | V206: 0 | W206: =AVERAGE(R206:V206) -> 0 | X206: =STDEV(R206:V206) -> 0 | Y206: 0 | Z206: 0 | AA206: 0 | AB206: 0 | AC206: 0 | AD206: =AVERAGE(Y206:AC206) -> 0 | AE206: =STDEV(Y206:AC206) -> 0 | AF206: 0 | AG206: 0 | AH206: 0 | AI206: 0 | AJ206: 0 | AK206: =AVERAGE(AF206:AJ206) -> 0 | AL206: =STDEV(AF206:AJ206) -> 0 | AM206: 0 | AN206: 0 | AO206: 0 | AP206: 0 | AQ206: 0 | AR206: =AVERAGE(AM206:AQ206) -> 0 | AS206: =STDEV(AM206:AQ206) -> 0 | AT206: 0 | AU206: 0 | AV206: 0 | AW206: 0 | AX206: 0 | AY206: =AVERAGE(AT206:AX206) -> 0 | AZ206: =STDEV(AT206:AX206) -> 0 | BA206: 0 | BB206: 0 | BC206: 0 | BD206: 0 | BE206: 0 | BF206: =AVERAGE(BA206:BE206) -> 0 | BG206: =STDEV(BA206:BE206) -> 0
B207: 2 | D207: 0 | E207: 0 | F207: 0 | G207: 0 | H207: 0 | I207: =AVERAGE(D207:H207) -> 0 | J207: =STDEV(D207:H207) -> 0 | K207: 0 | L207: 0 | M207: 0 | N207: 0 | O207: 0 | P207: =AVERAGE(K207:O207) -> 0 | Q207: =STDEV(K207:O207) -> 0 | R207: 0 | S207: 0 | T207: 0 | U207: 0 | V207: 0 | W207: =AVERAGE(R207:V207) -> 0 | X207: =STDEV(R207:V207) -> 0 | Y207: 0 | Z207: 0 | AA207: 0 | AB207: 0 | AC207: 0 | AD207: =AVERAGE(Y207:AC207) -> 0 | AE207: =STDEV(Y207:AC207) -> 0 | AF207: 0 | AG207: 0 | AH207: 0 | AI207: 0 | AJ207: 0 | AK207: =AVERAGE(AF207:AJ207) -> 0 | AL207: =STDEV(AF207:AJ207) -> 0 | AM207: 0 | AN207: 0 | AO207: 0 | AP207: 0 | AQ207: 0 | AR207: =AVERAGE(AM207:AQ207) -> 0 | AS207: =STDEV(AM207:AQ207) -> 0 | AT207: 0 | AU207: 0 | AV207: 0 | AW207: 0 | AX207: 0 | AY207: =AVERAGE(AT207:AX207) -> 0 | AZ207: =STDEV(AT207:AX207) -> 0 | BA207: 0 | BB207: 0 | BC207: 0 | BD207: 0 | BE207: 0 | BF207: =AVERAGE(BA207:BE207) -> 0 | BG207: =STDEV(BA207:BE207) -> 0
B208: 3 | D208: 0 | E208: 0 | F208: 0 | G208: 0 | H208: 0 | I208: =AVERAGE(D208:H208) -> 0 | J208: =STDEV(D208:H208) -> 0 | K208: 0 | L208: 0 | M208: 0 | N208: 0 | O208: 0 | P208: =AVERAGE(K208:O208) -> 0 | Q208: =STDEV(K208:O208) -> 0 | R208: 0 | S208: 0 | T208: 0 | U208: 0 | V208: 0 | W208: =AVERAGE(R208:V208) -> 0 | X208: =STDEV(R208:V208) -> 0 | Y208: 0 | Z208: 0 | AA208: 0 | AB208: 0 | AC208: 0 | AD208: =AVERAGE(Y208:AC208) -> 0 | AE208: =STDEV(Y208:AC208) -> 0 | AF208: 0 | AG208: 0 | AH208: 0 | AI208: 0 | AJ208: 0 | AK208: =AVERAGE(AF208:AJ208) -> 0 | AL208: =STDEV(AF208:AJ208) -> 0 | AM208: 0 | AN208: 0 | AO208: 0 | AP208: 0 | AQ208: 0 | AR208: =AVERAGE(AM208:AQ208) -> 0 | AS208: =STDEV(AM208:AQ208) -> 0 | AT208: 0 | AU208: 0 | AV208: 0 | AW208: 0 | AX208: 0 | AY208: =AVERAGE(AT208:AX208) -> 0 | AZ208: =STDEV(AT208:AX208) -> 0 | BA208: 0 | BB208: 0 | BC208: 0 | BD208: 0 | BE208: 0 | BF208: =AVERAGE(BA208:BE208) -> 0 | BG208: =STDEV(BA208:BE208) -> 0
... 42 more rows

Sheet Survivalexp results
A1: Survival experiment
A2: Subject: | C2: Anaerobic survival after aerobic inoculation of recombinant strains
C3: DeBont+Gluconic Acid - Kanamycin only in 2213-/A/APR
A4: Inoculation date | C4: 2017-06-25
A5: Inoculated | C5: Blank | D5: KT2440 WT | E5: 2213F - | G5: 2213F A | I5: 2213F APR
D6: dilution
D7: T1 | N7: T3 | X7: T5 | AH7: T7 | AR7: T9
C8: Sample | D8: =10^0 -> 1E+00 | E8: =10^-1 -> 1E-01 | F8: =10^-2 -> 1E-02 | G8: =10^-3 -> 1E-03 | H8: =10^-4 -> 1E-04 | I8: =10^-5 -> 1E-05 | J8: =10^-6 -> 1E-06 | K8: =10^-7 -> 1E-07 | L8: Average nr of bacteria | M8: stdev | N8: =10^0 -> 1E+00 | O8: =10^-1 -> 1E-01 | P8: =10^-2 -> 1E-02 | Q8: =10^-3 -> 1E-03 | R8: =10^-4 -> 1E-04 | S8: =10^-5 -> 1E-05 | T8: =10^-6 -> 1E-06 | U8: =10^-7 -> 1E-07 | V8: Average nr of bacteria | W8: stdev | X8: =10^0 -> 1E+00 | Y8: =10^-1 -> 1E-01 | Z8: =10^-2 -> 1E-02 | AA8: =10^-3 -> 1E-03 | AB8: =10^-4 -> 1E-04 | AC8: =10^-5 -> 1E-05 | AD8: =10^-6 -> 1E-06 | AE8: =10^-7 -> 1E-07 | AF8: Average nr of bacteria | AG8: stdev | AH8: =10^0 -> 1E+00 | AI8: =10^-1 -> 1E-01 | AJ8: =10^-2 -> 1E-02 | AK8: =10^-3 -> 1E-03 | AL8: =10^-4 -> 1E-04 | AM8: =10^-5 -> 1E-05 | AN8: =10^-6 -> 1E-06 | AO8: =10^-7 -> 1E-07 | AP8: Average nr of bacteria | AQ8: stdev | AR8: =10^0 -> 1E+00 | AS8: =10^-1 -> 1E-01 | AT8: =10^-2 -> 1E-02 | AU8: =10^-3 -> 1E-03 | AV8: =10^-4 -> 1E-04 | AW8: =10^-5 -> 1E-05 | AX8: =10^-6 -> 1E-06 | AY8: =10^-7 -> 1E-07 | AZ8: Average nr of bacteria | BA8: stdev
C9: Blank | D9: ='Survivalexp RAW October 2017'!I13 -> 0 | E9: ='Survivalexp RAW October 2017'!P13 -> 0 | F9: ='Survivalexp RAW October 2017'!W13 -> 0 | G9: ='Survivalexp RAW October 2017'!AD13 -> 0 | H9: ='Survivalexp RAW October 2017'!AK13 -> 0 | I9: ='Survivalexp RAW October 2017'!AR13 -> 0 | J9: ='Survivalexp RAW October 2017'!AY13 -> 0 | K9: ='Survivalexp RAW October 2017'!BF13 -> 0 | N9: ='Survivalexp RAW October 2017'!I62 -> 0 | O9: ='Survivalexp RAW October 2017'!P62 -> 0 | P9: ='Survivalexp RAW October 2017'!W62 -> 0 | Q9: ='Survivalexp RAW October 2017'!AD62 -> 0 | R9: ='Survivalexp RAW October 2017'!AK62 -> 0 | S9: ='Survivalexp RAW October 2017'!AR62 -> 0 | T9: ='Survivalexp RAW October 2017'!AY62 -> 0 | U9: ='Survivalexp RAW October 2017'!BF62 -> 0 | X9: ='Survivalexp RAW October 2017'!I111 -> 0 | Y9: ='Survivalexp RAW October 2017'!P111 -> 0 | Z9: ='Survivalexp RAW October 2017'!W111 -> 0 | AA9: ='Survivalexp RAW October 2017'!AD111 -> 0 | AB9: ='Survivalexp RAW October 2017'!AK111 -> 0 | AC9: ='Survivalexp RAW October 2017'!AR111 -> 0 | AD9: ='Survivalexp RAW October 2017'!AY111 -> 0 | AE9: ='Survivalexp RAW October 2017'!BF111 -> 0 | AH9: ='Survivalexp RAW October 2017'!I160 -> 0 | AI9: ='Survivalexp RAW October 2017'!P160 -> 0 | AJ9: ='Survivalexp RAW October 2017'!W160 -> 0 | AK9: ='Survivalexp RAW October 2017'!AD160 -> 0 | AL9: ='Survivalexp RAW October 2017'!AK160 -> 0 | AM9: ='Survivalexp RAW October 2017'!AR160 -> 0 | AN9: ='Survivalexp RAW October 2017'!AY160 -> 0 | AO9: ='Survivalexp RAW October 2017'!BF160 -> 0 | AR9: ='Survivalexp RAW October 2017'!I209 -> 0 | AS9: ='Survivalexp RAW October 2017'!P209 -> 0 | AT9: ='Survivalexp RAW October 2017'!W209 -> 0 | AU9: ='Survivalexp RAW October 2017'!AD209 -> 0 | AV9: ='Survivalexp RAW October 2017'!AK209 -> 0 | AW9: ='Survivalexp RAW October 2017'!AR209 -> 0 | AX9: ='Survivalexp RAW October 2017'!AY209 -> 0 | AY9: ='Survivalexp RAW October 2017'!BF209 -> 0
C10: stdev | D10: ='Survivalexp RAW October 2017'!I14 -> 0 | E10: ='Survivalexp RAW October 2017'!P14 -> 0 | F10: ='Survivalexp RAW October 2017'!W14 -> 0 | G10: ='Survivalexp RAW October 2017'!AD14 -> 0 | H10: ='Survivalexp RAW October 2017'!AK14 -> 0 | I10: ='Survivalexp RAW October 2017'!AR14 -> 0 | J10: ='Survivalexp RAW October 2017'!AY14 -> 0 | K10: ='Survivalexp RAW October 2017'!BF14 -> 0 | N10: ='Survivalexp RAW October 2017'!I63 -> 0 | O10: ='Survivalexp RAW October 2017'!P63 -> 0 | P10: ='Survivalexp RAW October 2017'!W63 -> 0 | Q10: ='Survivalexp RAW October 2017'!AD63 -> 0 | R10: ='Survivalexp RAW October 2017'!AK63 -> 0 | S10: ='Survivalexp RAW October 2017'!AR63 -> 0 | T10: ='Survivalexp RAW October 2017'!AY63 -> 0 | U10: ='Survivalexp RAW October 2017'!BF63 -> 0 | X10: ='Survivalexp RAW October 2017'!I112 -> 0 | Y10: ='Survivalexp RAW October 2017'!P112 -> 0 | Z10: ='Survivalexp RAW October 2017'!W112 -> 0 | AA10: ='Survivalexp RAW October 2017'!AD112 -> 0 | AB10: ='Survivalexp RAW October 2017'!AK112 -> 0 | AC10: ='Survivalexp RAW October 2017'!AR112 -> 0 | AD10: ='Survivalexp RAW October 2017'!AY112 -> 0 | AE10: ='Survivalexp RAW October 2017'!BF112 -> 0 | AH10: ='Survivalexp RAW October 2017'!I161 -> 0 | AI10: ='Survivalexp RAW October 2017'!P161 -> 0 | AJ10: ='Survivalexp RAW October 2017'!W161 -> 0 | AK10: ='Survivalexp RAW October 2017'!AD161 -> 0 | AL10: ='Survivalexp RAW October 2017'!AK161 -> 0 | AM10: ='Survivalexp RAW October 2017'!AR161 -> 0 | AN10: ='Survivalexp RAW October 2017'!AY161 -> 0 | AO10: ='Survivalexp RAW October 2017'!BF161 -> 0 | AR10: ='Survivalexp RAW October 2017'!I210 -> 0 | AS10: ='Survivalexp RAW October 2017'!P210 -> 0 | AT10: ='Survivalexp RAW October 2017'!W210 -> 0 | AU10: ='Survivalexp RAW October 2017'!AD210 -> 0 | AV10: ='Survivalexp RAW October 2017'!AK210 -> 0 | AW10: ='Survivalexp RAW October 2017'!AR210 -> 0 | AX10: ='Survivalexp RAW October 2017'!AY210 -> 0 | AY10: ='Survivalexp RAW October 2017'!BF210 -> 0
B11: est. nr of bacteria | D11: =D9/$D$8 -> 0 | E11: =E9/$E$8 -> 0 | F11: =F9/$F$8 -> 0 | G11: =G9/$G$8 -> 0 | H11: =H9/$H$8 -> 0 | I11: =I9/$I$8 -> 0 | J11: =J9/$J$8 -> 0 | K11: =K9/$K$8 -> 0E+00 | L11: =G11 -> 0 | M11: =G12 -> 0 | N11: =N9/$D$8 -> 0 | O11: =O9/$E$8 -> 0 | P11: =P9/$F$8 -> 0 | Q11: =Q9/$G$8 -> 0 | R11: =R9/$H$8 -> 0 | S11: =S9/$I$8 -> 0 | T11: =T9/$J$8 -> 0 | U11: =U9/$K$8 -> 0 | V11: =P11 -> 0 | W11: =P12 -> 0 | X11: =X9/$D$8 -> 0 | Y11: =Y9/$E$8 -> 0 | Z11: =Z9/$F$8 -> 0 | AA11: =AA9/$G$8 -> 0 | AB11: =AB9/$H$8 -> 0 | AC11: =AC9/$I$8 -> 0 | AD11: =AD9/$J$8 -> 0 | AE11: =AE9/$K$8 -> 0 | AF11: =AE11 -> 0 | AG11: =AE12 -> 0 | AH11: =AH9/$D$8 -> 0 | AI11: =AI9/$E$8 -> 0 | AJ11: =AJ9/$F$8 -> 0 | AK11: =AK9/$G$8 -> 0 | AL11: =AL9/$H$8 -> 0 | AM11: =AM9/$I$8 -> 0 | AN11: =AN9/$J$8 -> 0 | AO11: =AO9/$K$8 -> 0 | AP11: =AL11 -> 0 | AQ11: =AL12 -> 0 | AR11: =AR9/$D$8 -> 0 | AS11: =AS9/$E$8 -> 0 | AT11: =AT9/$F$8 -> 0 | AU11: =AU9/$G$8 -> 0 | AV11: =AV9/$H$8 -> 0 | AW11: =AW9/$I$8 -> 0 | AX11: =AX9/$J$8 -> 0 | AY11: =AY9/$K$8 -> 0 | AZ11: =AV11 -> 0 | BA11: =AV12 -> 0
C12: stdev | D12: =D10/$D$8 -> 0 | E12: =E10/$E$8 -> 0 | F12: =F10/$F$8 -> 0 | G12: =G10/$G$8 -> 0 | H12: =H10/$H$8 -> 0 | I12: =I10/$I$8 -> 0 | J12: =J10/$J$8 -> 0 | K12: =K10/$K$8 -> 0 | N12: =N10/$D$8 -> 0 | O12: =O10/$E$8 -> 0 | P12: =P10/$F$8 -> 0 | Q12: =Q10/$G$8 -> 0 | R12: =R10/$H$8 -> 0 | S12: =S10/$I$8 -> 0 | T12: =T10/$J$8 -> 0 | U12: =U10/$K$8 -> 0 | X12: =X10/$D$8 -> 0 | Y12: =Y10/$E$8 -> 0 | Z12: =Z10/$F$8 -> 0 | AA12: =AA10/$G$8 -> 0 | AB12: =AB10/$H$8 -> 0 | AC12: =AC10/$I$8 -> 0 | AD12: =AD10/$J$8 -> 0 | AE12: =AE10/$K$8 -> 0 | AH12: =AH10/$D$8 -> 0 | AI12: =AI10/$E$8 -> 0 | AJ12: =AJ10/$F$8 -> 0 | AK12: =AK10/$G$8 -> 0 | AL12: =AL10/$H$8 -> 0 | AM12: =AM10/$I$8 -> 0 | AN12: =AN10/$J$8 -> 0 | AO12: =AO10/$K$8 -> 0 | AR12: =AR10/$D$8 -> 0 | AS12: =AS10/$E$8 -> 0 | AT12: =AT10/$F$8 -> 0 | AU12: =AU10/$G$8 -> 0 | AV12: =AV10/$H$8 -> 0 | AW12: =AW10/$I$8 -> 0 | AX12: =AX10/$J$8 -> 0 | AY12: =AY10/$K$8 -> 0
C13: DH5α - | D13: ='Survivalexp RAW October 2017'!I18 ->  | E13: ='Survivalexp RAW October 2017'!P18 ->  | F13: ='Survivalexp RAW October 2017'!W18 ->  | G13: ='Survivalexp RAW October 2017'!AD18 -> 69 | H13: ='Survivalexp RAW October 2017'!AK18 -> 4 | I13: ='Survivalexp RAW October 2017'!AR18 -> 0 | J13: ='Survivalexp RAW October 2017'!AY18 -> 0 | K13: ='Survivalexp RAW October 2017'!BF18 -> 0 | N13: ='Survivalexp RAW October 2017'!I67 ->  | O13: ='Survivalexp RAW October 2017'!P67 ->  | P13: ='Survivalexp RAW October 2017'!W67 -> 75 | Q13: ='Survivalexp RAW October 2017'!AD67 -> 0 | R13: ='Survivalexp RAW October 2017'!AK67 -> 0 | S13: ='Survivalexp RAW October 2017'!AR67 -> 0 | T13: ='Survivalexp RAW October 2017'!AY67 -> 0 | U13: ='Survivalexp RAW October 2017'!BF67 -> 0 | X13: ='Survivalexp RAW October 2017'!I116 -> 95 | Y13: ='Survivalexp RAW October 2017'!P116 -> 6 | Z13: ='Survivalexp RAW October 2017'!W116 -> 1 | AA13: ='Survivalexp RAW October 2017'!AD116 -> 0 | AB13: ='Survivalexp RAW October 2017'!AK116 -> 0 | AC13: ='Survivalexp RAW October 2017'!AR116 -> 0 | AD13: ='Survivalexp RAW October 2017'!AY116 -> 0 | AE13: ='Survivalexp RAW October 2017'!BF116 -> 0 | AH13: ='Survivalexp RAW October 2017'!I165 -> 61 | AI13: ='Survivalexp RAW October 2017'!P165 -> 9 | AJ13: ='Survivalexp RAW October 2017'!W165 -> 0 | AK13: ='Survivalexp RAW October 2017'!AD165 -> 0 | AL13: ='Survivalexp RAW October 2017'!AK165 -> 0 | AM13: ='Survivalexp RAW October 2017'!AR165 -> 0 | AN13: ='Survivalexp RAW October 2017'!AY165 -> 0 | AO13: ='Survivalexp RAW October 2017'!BF165 -> 0 | AR13: ='Survivalexp RAW October 2017'!I214 -> 41 | AS13: ='Survivalexp RAW October 2017'!P214 -> 0 | AT13: ='Survivalexp RAW October 2017'!W214 -> 0 | AU13: ='Survivalexp RAW October 2017'!AD214 -> 0 | AV13: ='Survivalexp RAW October 2017'!AK214 -> 0 | AW13: ='Survivalexp RAW October 2017'!AR214 -> 0 | AX13: ='Survivalexp RAW October 2017'!AY214 -> 0 | AY13: ='Survivalexp RAW October 2017'!BF214 -> 0
C14: stdev | D14: ='Survivalexp RAW October 2017'!I19 ->  | E14: ='Survivalexp RAW October 2017'!P19 ->  | F14: ='Survivalexp RAW October 2017'!W19 ->  | G14: ='Survivalexp RAW October 2017'!AD19 -> 21 | H14: ='Survivalexp RAW October 2017'!AK19 -> 2 | I14: ='Survivalexp RAW October 2017'!AR19 -> 0 | J14: ='Survivalexp RAW October 2017'!AY19 -> 0 | K14: ='Survivalexp RAW October 2017'!BF19 -> 0 | N14: ='Survivalexp RAW October 2017'!I68 ->  | O14: ='Survivalexp RAW October 2017'!P68 ->  | P14: ='Survivalexp RAW October 2017'!W68 -> 32 | Q14: ='Survivalexp RAW October 2017'!AD68 -> 0 | R14: ='Survivalexp RAW October 2017'!AK68 -> 0 | S14: ='Survivalexp RAW October 2017'!AR68 -> 0 | T14: ='Survivalexp RAW October 2017'!AY68 -> 0 | U14: ='Survivalexp RAW October 2017'!BF68 -> 0 | X14: ='Survivalexp RAW October 2017'!I117 -> 29 | Y14: ='Survivalexp RAW October 2017'!P117 -> 2 | Z14: ='Survivalexp RAW October 2017'!W117 -> 2 | AA14: ='Survivalexp RAW October 2017'!AD117 -> 0 | AB14: ='Survivalexp RAW October 2017'!AK117 -> 0 | AC14: ='Survivalexp RAW October 2017'!AR117 -> 0 | AD14: ='Survivalexp RAW October 2017'!AY117 -> 0 | AE14: ='Survivalexp RAW October 2017'!BF117 -> 0 | AH14: ='Survivalexp RAW October 2017'!I166 -> 18 | AI14: ='Survivalexp RAW October 2017'!P166 -> 12 | AJ14: ='Survivalexp RAW October 2017'!W166 -> 0 | AK14: ='Survivalexp RAW October 2017'!AD166 -> 0 | AL14: ='Survivalexp RAW October 2017'!AK166 -> 0 | AM14: ='Survivalexp RAW October 2017'!AR166 -> 0 | AN14: ='Survivalexp RAW October 2017'!AY166 -> 0 | AO14: ='Survivalexp RAW October 2017'!BF166 -> 0 | AR14: ='Survivalexp RAW October 2017'!I215 -> 29 | AS14: ='Survivalexp RAW October 2017'!P215 -> 0 | AT14: ='Survivalexp RAW October 2017'!W215 -> 0 | AU14: ='Survivalexp RAW October 2017'!AD215 -> 0 | AV14: ='Survivalexp RAW October 2017'!AK215 -> 0 | AW14: ='Survivalexp RAW October 2017'!AR215 -> 0 | AX14: ='Survivalexp RAW October 2017'!AY215 -> 0 | AY14: ='Survivalexp RAW October 2017'!BF215 -> 0
B15: est. nr of bacteria | D15: =D13/$D$8 ->  | E15: =E13/$E$8 ->  | F15: =F13/$F$8 ->  | G15: =G13/$G$8 -> 68733.33333 | H15: =H13/$H$8 -> 38666.66667 | I15: =I13/$I$8 -> 0 | J15: =J13/$J$8 -> 0 | K15: =K13/$K$8 -> 0E+00 | L15: =G15 -> 68733 | M15: =G16 -> 20960.06986 | N15: =N13/$D$8 ->  | O15: =O13/$E$8 ->  | P15: =P13/$F$8 -> 7466.666667 | Q15: =Q13/$G$8 -> 0 | R15: =R13/$H$8 -> 0 | S15: =S13/$I$8 -> 0 | T15: =T13/$J$8 -> 0 | U15: =U13/$K$8 -> 0 | V15: =P15 -> 7466.666667 | W15: =P16 -> 3202.400713 | X15: =X13/$D$8 -> 95.4 | Y15: =Y13/$E$8 -> 56 | Z15: =Z13/$F$8 -> 140 | AA15: =AA13/$G$8 -> 67 | AB15: =AB13/$H$8 -> 0 | AC15: =AC13/$I$8 -> 0 | AD15: =AD13/$J$8 -> 0 | AE15: =AE13/$K$8 -> 0 | AF15: =Y15 -> 56 | AG15: =Y16 -> 20.49390153 | AH15: =AH13/$D$8 -> 61 | AI15: =AI13/$E$8 -> 91 | AJ15: =AJ13/$F$8 -> 0 | AK15: =AK13/$G$8 -> 0 | AL15: =AL13/$H$8 -> 0 | AM15: =AM13/$I$8 -> 0 | AN15: =AN13/$J$8 -> 0 | AO15: =AO13/$K$8 -> 0 | AP15: =AH15 -> 61 | AQ15: =AH16 -> 18 | AR15: =AR13/$D$8 -> 41 | AS15: =AS13/$E$8 -> 0 | AT15: =AT13/$F$8 -> 0 | AU15: =AU13/$G$8 -> 0 | AV15: =AV13/$H$8 -> 0 | AW15: =AW13/$I$8 -> 0 | AX15: =AX13/$J$8 -> 0 | AY15: =AY13/$K$8 -> 0 | AZ15: =AR15 -> 41 | BA15: =AR16 -> 29.46829785
C16: stdev | D16: =D14/$D$8 ->  | E16: =E14/$E$8 ->  | F16: =F14/$F$8 ->  | G16: =G14/$G$8 -> 20960.06986 | H16: =H14/$H$8 -> 21908.9023 | I16: =I14/$I$8 -> 0 | J16: =J14/$J$8 -> 0 | K16: =K14/$K$8 -> 0 | N16: =N14/$D$8 ->  | O16: =O14/$E$8 ->  | P16: =P14/$F$8 -> 3202.400713 | Q16: =Q14/$G$8 -> 0 | R16: =R14/$H$8 -> 0 | S16: =S14/$I$8 -> 0 | T16: =T14/$J$8 -> 0 | U16: =U14/$K$8 -> 0 | X16: =X14/$D$8 -> 28.85059007 | Y16: =Y14/$E$8 -> 20.49390153 | Z16: =Z14/$F$8 -> 228.035085 | AA16: =AA14/$G$8 -> 447 | AB16: =AB14/$H$8 -> 0 | AC16: =AC14/$I$8 -> 0 | AD16: =AD14/$J$8 -> 0 | AE16: =AE14/$K$8 -> 0 | AH16: =AH14/$D$8 -> 18 | AI16: =AI14/$E$8 -> 117 | AJ16: =AJ14/$F$8 -> 0 | AK16: =AK14/$G$8 -> 0 | AL16: =AL14/$H$8 -> 0 | AM16: =AM14/$I$8 -> 0 | AN16: =AN14/$J$8 -> 0 | AO16: =AO14/$K$8 -> 0 | AR16: =AR14/$D$8 -> 29.46829785 | AS16: =AS14/$E$8 -> 0 | AT16: =AT14/$F$8 -> 0 | AU16: =AU14/$G$8 -> 0 | AV16: =AV14/$H$8 -> 0 | AW16: =AW14/$I$8 -> 0 | AX16: =AX14/$J$8 -> 0 | AY16: =AY14/$K$8 -> 0
C17: WT | D17: ='Survivalexp RAW October 2017'!I23 ->  | E17: ='Survivalexp RAW October 2017'!P23 ->  | F17: ='Survivalexp RAW October 2017'!W23 ->  | G17: ='Survivalexp RAW October 2017'!AD23 ->  | H17: ='Survivalexp RAW October 2017'!AK23 ->  | I17: ='Survivalexp RAW October 2017'!AR23 -> 7 | J17: ='Survivalexp RAW October 2017'!AY23 -> 1 | K17: ='Survivalexp RAW October 2017'!BF23 -> 0 | N17: ='Survivalexp RAW October 2017'!I72 ->  | O17: ='Survivalexp RAW October 2017'!P72 ->  | P17: ='Survivalexp RAW October 2017'!W72 -> 67 | Q17: ='Survivalexp RAW October 2017'!AD72 -> 11 | R17: ='Survivalexp RAW October 2017'!AK72 -> 2 | S17: ='Survivalexp RAW October 2017'!AR72 -> 0 | T17: ='Survivalexp RAW October 2017'!AY72 -> 0 | U17: ='Survivalexp RAW October 2017'!BF72 -> 0 | X17: ='Survivalexp RAW October 2017'!I121 ->  | Y17: ='Survivalexp RAW October 2017'!P121 -> 14 | Z17: ='Survivalexp RAW October 2017'!W121 -> 1 | AA17: ='Survivalexp RAW October 2017'!AD121 -> 0 | AB17: ='Survivalexp RAW October 2017'!AK121 -> 0 | AC17: ='Survivalexp RAW October 2017'!AR121 -> 0 | AD17: ='Survivalexp RAW October 2017'!AY121 -> 0 | AE17: ='Survivalexp RAW October 2017'!BF121 -> 0 | AH17: ='Survivalexp RAW October 2017'!I170 -> 7 | AI17: ='Survivalexp RAW October 2017'!P170 -> 1 | AJ17: ='Survivalexp RAW October 2017'!W170 -> 0 | AK17: ='Survivalexp RAW October 2017'!AD170 -> 0 | AL17: ='Survivalexp RAW October 2017'!AK170 -> 0 | AM17: ='Survivalexp RAW October 2017'!AR170 -> 0 | AN17: ='Survivalexp RAW October 2017'!AY170 -> 0 | AO17: ='Survivalexp RAW October 2017'!BF170 -> 0 | AR17: ='Survivalexp RAW October 2017'!I219 -> 0 | AS17: ='Survivalexp RAW October 2017'!P219 -> 0 | AT17: ='Survivalexp RAW October 2017'!W219 -> 0 | AU17: ='Survivalexp RAW October 2017'!AD219 -> 0 | AV17: ='Survivalexp RAW October 2017'!AK219 -> 0 | AW17: ='Survivalexp RAW October 2017'!AR219 -> 0 | AX17: ='Survivalexp RAW October 2017'!AY219 -> 0 | AY17: ='Survivalexp RAW October 2017'!BF219 -> 0
C18: stdev | D18: ='Survivalexp RAW October 2017'!I24 ->  | E18: ='Survivalexp RAW October 2017'!P24 ->  | F18: ='Survivalexp RAW October 2017'!W24 ->  | G18: ='Survivalexp RAW October 2017'!AD24 ->  | H18: ='Survivalexp RAW October 2017'!AK24 ->  | I18: ='Survivalexp RAW October 2017'!AR24 -> 9 | J18: ='Survivalexp RAW October 2017'!AY24 -> 2 | K18: ='Survivalexp RAW October 2017'!BF24 -> 0 | N18: ='Survivalexp RAW October 2017'!I73 ->  | O18: ='Survivalexp RAW October 2017'!P73 ->  | P18: ='Survivalexp RAW October 2017'!W73 -> 22 | Q18: ='Survivalexp RAW October 2017'!AD73 -> 8 | R18: ='Survivalexp RAW October 2017'!AK73 -> 3 | S18: ='Survivalexp RAW October 2017'!AR73 -> 0 | T18: ='Survivalexp RAW October 2017'!AY73 -> 0 | U18: ='Survivalexp RAW October 2017'!AU73 -> 0 | X18: ='Survivalexp RAW October 2017'!I122 ->  | Y18: ='Survivalexp RAW October 2017'!P122 -> 14 | Z18: ='Survivalexp RAW October 2017'!W122 -> 3 | AA18: ='Survivalexp RAW October 2017'!AD122 -> 1 | AB18: ='Survivalexp RAW October 2017'!AK122 -> 0 | AC18: ='Survivalexp RAW October 2017'!AR122 -> 0 | AD18: ='Survivalexp RAW October 2017'!AY122 -> 0 | AE18: ='Survivalexp RAW October 2017'!BF122 -> 0 | AH18: ='Survivalexp RAW October 2017'!I171 -> 7 | AI18: ='Survivalexp RAW October 2017'!P171 -> 2 | AJ18: ='Survivalexp RAW October 2017'!W171 -> 0 | AK18: ='Survivalexp RAW October 2017'!AD171 -> 0 | AL18: ='Survivalexp RAW October 2017'!AK171 -> 0 | AM18: ='Survivalexp RAW October 2017'!AR171 -> 0 | AN18: ='Survivalexp RAW October 2017'!AY171 -> 0 | AO18: ='Survivalexp RAW October 2017'!BF171 -> 0 | AR18: ='Survivalexp RAW October 2017'!I220 -> 2 | AS18: ='Survivalexp RAW October 2017'!P220 -> 0 | AT18: ='Survivalexp RAW October 2017'!W220 -> 0 | AU18: ='Survivalexp RAW October 2017'!AD220 -> 0 | AV18: ='Survivalexp RAW October 2017'!AK220 -> 0 | AW18: ='Survivalexp RAW October 2017'!AR220 -> 0 | AX18: ='Survivalexp RAW October 2017'!AY220 -> 0 | AY18: ='Survivalexp RAW October 2017'!BF220 -> 0
B19: est. nr of bacteria | D19: =D17/$D$8 ->  | E19: =E17/$E$8 ->  | F19: =F17/$F$8 ->  | G19: =G17/$G$8 ->  | H19: =H17/$H$8 ->  | I19: =I17/$I$8 -> 7E+05 | J19: =J17/$J$8 -> 600000 | K19: =K17/$K$8 -> 666666.6667 | L19: =I19 -> 7E+05 | M19: =I20 -> 9E+05 | N19: =N17/$D$8 ->  | O19: =O17/$E$8 ->  | P19: =P17/$F$8 -> 6706.666667 | Q19: =Q17/$G$8 -> 11066.66667 | R19: =R17/$H$8 -> 15333.33333 | S19: =S17/$I$8 -> 6666.666667 | T19: =T17/$J$8 -> 0 | U19: =U17/$K$8 -> 0 | V19: =P19 -> 6706.666667 | W19: =P20 -> 2167.153668 | X19: =X17/$D$8 ->  | Y19: =Y17/$E$8 -> 140 | Z19: =Z17/$F$8 -> 140 | AA19: =AA17/$G$8 -> 200 | AB19: =AB17/$H$8 -> 0 | AC19: =AC17/$I$8 -> 0 | AD19: =AD17/$J$8 -> 0 | AE19: =AE17/$K$8 -> 0 | AF19: =Y19 -> 140 | AG19: =Y20 -> 138.7029381 | AH19: =AH17/$D$8 -> 7.066666667 | AI19: =AI17/$E$8 -> 5.333333333 | AJ19: =AJ17/$F$8 -> 6.666666667 | AK19: =AK17/$G$8 -> 0 | AL19: =AL17/$H$8 -> 0 | AM19: =AM17/$I$8 -> 0 | AN19: =AN17/$J$8 -> 0 | AO19: =AO17/$K$8 -> 0 | AP19: =AH19 -> 7.066666667 | AQ19: =AH20 -> 7.189256176 | AR19: =AR17/$D$8 -> 0.4 | AS19: =AS17/$E$8 -> 0 | AT19: =AT17/$F$8 -> 0 | AU19: =AU17/$G$8 -> 0 | AV19: =AV17/$H$8 -> 0 | AW19: =AW17/$I$8 -> 0 | AX19: =AX17/$J$8 -> 0 | AY19: =AY17/$K$8 -> 0 | AZ19: =AR19 -> 0.4 | BA19: =AR20 -> 1.542658711
C20: stdev | D20: =D18/$D$8 ->  | E20: =E18/$E$8 ->  | F20: =F18/$F$8 ->  | G20: =G18/$G$8 ->  | H20: =H18/$H$8 ->  | I20: =I18/$I$8 -> 9E+05 | J20: =J18/$J$8 -> 2E+06 | K20: =K18/$K$8 -> 4.47E+06 | N20: =N18/$D$8 ->  | O20: =O18/$E$8 ->  | P20: =P18/$F$8 -> 2167.153668 | Q20: =Q18/$G$8 -> 7594.719191 | R20: =R18/$H$8 -> 26255.14409 | S20: =S18/$I$8 -> 44721.35955 | T20: =T18/$J$8 -> 0 | U20: =U18/$K$8 -> 0 | X20: =X18/$D$8 ->  | Y20: =Y18/$E$8 -> 138.7029381 | Z20: =Z18/$F$8 -> 288.4299497 | AA20: =AA18/$G$8 -> 994.936153 | AB20: =AB18/$H$8 -> 0 | AC20: =AC18/$I$8 -> 0 | AD20: =AD18/$J$8 -> 0 | AE20: =AE18/$K$8 -> 0 | AH20: =AH18/$D$8 -> 7.189256176 | AI20: =AI18/$E$8 -> 21.98267672 | AJ20: =AJ18/$F$8 -> 44.72135955 | AK20: =AK18/$G$8 -> 0 | AL20: =AL18/$H$8 -> 0 | AM20: =AM18/$I$8 -> 0 | AN20: =AN18/$J$8 -> 0 | AO20: =AO18/$K$8 -> 0 | AR20: =AR18/$D$8 -> 1.542658711 | AS20: =AS18/$E$8 -> 0 | AT20: =AT18/$F$8 -> 0 | AU20: =AU18/$G$8 -> 0 | AV20: =AV18/$H$8 -> 0 | AW20: =AW18/$I$8 -> 0 | AX20: =AX18/$J$8 -> 0 | AY20: =AY18/$K$8 -> 0
B21: 2213F - | C21: p+0 | D21: ='Survivalexp RAW October 2017'!I28 ->  | E21: ='Survivalexp RAW October 2017'!P28 ->  | F21: ='Survivalexp RAW October 2017'!W28 ->  | G21: ='Survivalexp RAW October 2017'!AD28 ->  | H21: ='Survivalexp RAW October 2017'!AK28 -> 51 | I21: ='Survivalexp RAW October 2017'!AR28 -> 9 | J21: ='Survivalexp RAW October 2017'!AY28 -> 2 | K21: ='Survivalexp RAW October 2017'!BF28 -> 0 | N21: ='Survivalexp RAW October 2017'!I77 ->  | O21: ='Survivalexp RAW October 2017'!P77 ->  | P21: ='Survivalexp RAW October 2017'!W77 -> 61 | Q21: ='Survivalexp RAW October 2017'!AD77 -> 9 | R21: ='Survivalexp RAW October 2017'!AK77 -> 1 | S21: ='Survivalexp RAW October 2017'!AR77 -> 0 | T21: ='Survivalexp RAW October 2017'!AY77 -> 0 | U21: ='Survivalexp RAW October 2017'!BF77 -> 0 | X21: ='Survivalexp RAW October 2017'!I126 ->  | Y21: ='Survivalexp RAW October 2017'!P126 -> 45 | Z21: ='Survivalexp RAW October 2017'!W126 -> 5 | AA21: ='Survivalexp RAW October 2017'!AD126 -> 0 | AB21: ='Survivalexp RAW October 2017'!AK126 -> 0 | AC21: ='Survivalexp RAW October 2017'!AR126 -> 0 | AD21: ='Survivalexp RAW October 2017'!AY126 -> 0 | AE21: ='Survivalexp RAW October 2017'!BF126 -> 0 | AH21: ='Survivalexp RAW October 2017'!I175 -> 34 | AI21: ='Survivalexp RAW October 2017'!P175 -> 0 | AJ21: ='Survivalexp RAW October 2017'!W175 -> 0 | AK21: ='Survivalexp RAW October 2017'!AD175 -> 0 | AL21: ='Survivalexp RAW October 2017'!AK175 -> 0 | AM21: ='Survivalexp RAW October 2017'!AR175 -> 0 | AN21: ='Survivalexp RAW October 2017'!AY175 -> 0 | AO21: ='Survivalexp RAW October 2017'!BF175 -> 0 | AR21: ='Survivalexp RAW October 2017'!I224 -> 7 | AS21: ='Survivalexp RAW October 2017'!P224 -> 1 | AT21: ='Survivalexp RAW October 2017'!W224 -> 0 | AU21: ='Survivalexp RAW October 2017'!AD224 -> 0 | AV21: ='Survivalexp RAW October 2017'!AK224 -> 0 | AW21: ='Survivalexp RAW October 2017'!AR224 -> 0 | AX21: ='Survivalexp RAW October 2017'!AY224 -> 0 | AY21: ='Survivalexp RAW October 2017'!BF224 -> 0
C22: stdev | D22: ='Survivalexp RAW October 2017'!I29 ->  | E22: ='Survivalexp RAW October 2017'!P29 ->  | F22: ='Survivalexp RAW October 2017'!W29 ->  | G22: ='Survivalexp RAW October 2017'!AD29 ->  | H22: ='Survivalexp RAW October 2017'!AK29 -> 21 | I22: ='Survivalexp RAW October 2017'!AR29 -> 11 | J22: ='Survivalexp RAW October 2017'!AY29 -> 5 | K22: ='Survivalexp RAW October 2017'!BF29 -> 1 | N22: ='Survivalexp RAW October 2017'!I78 ->  | O22: ='Survivalexp RAW October 2017'!P78 ->  | P22: ='Survivalexp RAW October 2017'!W78 -> 15 | Q22: ='Survivalexp RAW October 2017'!AD78 -> 10 | R22: ='Survivalexp RAW October 2017'!AK78 -> 3 | S22: ='Survivalexp RAW October 2017'!AR78 -> 0 | T22: ='Survivalexp RAW October 2017'!AY78 -> 0 | U22: ='Survivalexp RAW October 2017'!BF78 -> 0 | X22: ='Survivalexp RAW October 2017'!I127 ->  | Y22: ='Survivalexp RAW October 2017'!P127 -> 10 | Z22: ='Survivalexp RAW October 2017'!W127 -> 7 | AA22: ='Survivalexp RAW October 2017'!AD127 -> 1 | AB22: ='Survivalexp RAW October 2017'!AK127 -> 0 | AC22: ='Survivalexp RAW October 2017'!AR127 -> 0 | AD22: ='Survivalexp RAW October 2017'!AY127 -> 0 | AE22: ='Survivalexp RAW October 2017'!BF127 -> 0 | AH22: ='Survivalexp RAW October 2017'!I176 -> 9 | AI22: ='Survivalexp RAW October 2017'!P176 -> 0 | AJ22: ='Survivalexp RAW October 2017'!W176 -> 0 | AK22: ='Survivalexp RAW October 2017'!AD176 -> 0 | AL22: ='Survivalexp RAW October 2017'!AK176 -> 0 | AM22: ='Survivalexp RAW October 2017'!AR176 -> 0 | AN22: ='Survivalexp RAW October 2017'!AY176 -> 0 | AO22: ='Survivalexp RAW October 2017'!BF176 -> 0 | AR22: ='Survivalexp RAW October 2017'!I225 -> 1 | AS22: ='Survivalexp RAW October 2017'!P225 -> 2 | AT22: ='Survivalexp RAW October 2017'!W225 -> 1 | AU22: ='Survivalexp RAW October 2017'!AD225 -> 0 | AV22: ='Survivalexp RAW October 2017'!AK225 -> 0 | AW22: ='Survivalexp RAW October 2017'!AR225 -> 0 | AX22: ='Survivalexp RAW October 2017'!AY225 -> 0 | AY22: ='Survivalexp RAW October 2017'!BF225 -> 0
B23: est. nr of bacteria | D23: =D21/$D$8 ->  | E23: =E21/$E$8 ->  | F23: =F21/$F$8 ->  | G23: =G21/$G$8 ->  | H23: =H21/$H$8 -> 508000 | I23: =I21/$I$8 -> 906666.6667 | J23: =J21/$J$8 -> 1800000 | K23: =K21/$K$8 -> 2000000 | L23: =H23 -> 508000 | M23: =H24 -> 208075.642 | N23: =N21/$D$8 ->  | O23: =O21/$E$8 ->  | P23: =P21/$F$8 -> 6120 | Q23: =Q21/$G$8 -> 9200 | R23: =R21/$H$8 -> 10666.66667 | S23: =S21/$I$8 -> 0 | T23: =T21/$J$8 -> 0 | U23: =U21/$K$8 -> 0 | V23: =AVERAGE(P23) -> 6120 | W23: =P24 -> 1521.702787 | X23: =X21/$D$8 ->  | Y23: =Y21/$E$8 -> 452 | Z23: =Z21/$F$8 -> 540 | AA23: =AA21/$G$8 -> 400 | AB23: =AB21/$H$8 -> 0 | AC23: =AC21/$I$8 -> 0 | AD23: =AD21/$J$8 -> 0 | AE23: =AE21/$K$8 -> 0 | AF23: =Y23 -> 452 | AG23: =Y24 -> 102.6851195 | AH23: =AH21/$D$8 -> 33.9 | AI23: =AI21/$E$8 -> 0 | AJ23: =AJ21/$F$8 -> 0 | AK23: =AK21/$G$8 -> 0 | AL23: =AL21/$H$8 -> 0 | AM23: =AM21/$I$8 -> 0 | AN23: =AN21/$J$8 -> 0 | AO23: =AO21/$K$8 -> 0 | AP23: =AH23 -> 33.9 | AQ23: =AH24 -> 9.243079777 | AR23: =AR21/$D$8 -> 7.2 | AS23: =AS21/$E$8 -> 6 | AT23: =AT21/$F$8 -> 20 | AU23: =AU21/$G$8 -> 0 | AV23: =AV21/$H$8 -> 0 | AW23: =AW21/$I$8 -> 0 | AX23: =AX21/$J$8 -> 0 | AY23: =AY21/$K$8 -> 0 | AZ23: =AR23 -> 7.2 | BA23: =AR24 -> 1.341640786
C24: stdev | D24: =D22/$D$8 ->  | E24: =E22/$E$8 ->  | F24: =F22/$F$8 ->  | G24: =G22/$G$8 ->  | H24: =H22/$H$8 -> 208075.642 | I24: =I22/$I$8 -> 1120064.869 | J24: 5123010.79 | K24: =K22/$K$8 -> 9949361.53 | N24: =N22/$D$8 ->  | O24: =O22/$E$8 ->  | P24: =P22/$F$8 -> 1521.702787 | Q24: =Q22/$G$8 -> 10177.36528 | R24: =R22/$H$8 -> 31181.09061 | S24: =S22/$I$8 -> 0 | T24: 0 | U24: =U22/$K$8 -> 0 | X24: =X22/$D$8 ->  | Y24: =Y22/$E$8 -> 102.6851195 | Z24: =Z22/$F$8 -> 733.3830545 | AA24: =AA22/$G$8 -> 1442.149749 | AB24: =AB22/$H$8 -> 0 | AC24: =AC22/$I$8 -> 0 | AD24: 0 | AE24: =AE22/$K$8 -> 0 | AH24: =AH22/$D$8 -> 9.243079777 | AI24: =AI22/$E$8 -> 0 | AJ24: =AJ22/$F$8 -> 0 | AK24: =AK22/$G$8 -> 0 | AL24: =AL22/$H$8 -> 0 | AM24: =AM22/$I$8 -> 0 | AN24: 0 | AO24: =AO22/$K$8 -> 0 | AR24: =AR22/$D$8 -> 1.341640786 | AS24: =AS22/$E$8 -> 16.43167673 | AT24: =AT22/$F$8 -> 54.77225575 | AU24: =AU22/$G$8 -> 0 | AV24: =AV22/$H$8 -> 0 | AW24: =AW22/$I$8 -> 0 | AX24: 0 | AY24: =AY22/$K$8 -> 0
C25: p+3 | D25: ='Survivalexp RAW October 2017'!I33 ->  | E25: ='Survivalexp RAW October 2017'!P33 ->  | F25: ='Survivalexp RAW October 2017'!W33 ->  | G25: ='Survivalexp RAW October 2017'!AD33 ->  | H25: ='Survivalexp RAW October 2017'!AK33 -> 13 | I25: ='Survivalexp RAW October 2017'!AR33 -> 2 | J25: ='Survivalexp RAW October 2017'!AY33 -> 0 | K25: ='Survivalexp RAW October 2017'!BF33 -> 0 | N25: ='Survivalexp RAW October 2017'!I82 ->  | O25: ='Survivalexp RAW October 2017'!P82 ->  | P25: ='Survivalexp RAW October 2017'!W82 -> 29 | Q25: ='Survivalexp RAW October 2017'!AD82 -> 4 | R25: ='Survivalexp RAW October 2017'!AK82 -> 1 | S25: ='Survivalexp RAW October 2017'!AR82 -> 0 | T25: ='Survivalexp RAW October 2017'!AY82 -> 0 | U25: ='Survivalexp RAW October 2017'!BF82 -> 0 | X25: ='Survivalexp RAW October 2017'!I131 -> 32 | Y25: ='Survivalexp RAW October 2017'!P131 -> 3 | Z25: ='Survivalexp RAW October 2017'!W131 -> 1 | AA25: ='Survivalexp RAW October 2017'!AD131 -> 0 | AB25: ='Survivalexp RAW October 2017'!AK131 -> 0 | AC25: ='Survivalexp RAW October 2017'!AR131 -> 0 | AD25: ='Survivalexp RAW October 2017'!AY131 -> 0 | AE25: ='Survivalexp RAW October 2017'!BF131 -> 0 | AH25: ='Survivalexp RAW October 2017'!I180 -> 16 | AI25: ='Survivalexp RAW October 2017'!P180 -> 1 | AJ25: ='Survivalexp RAW October 2017'!W180 -> 0 | AK25: ='Survivalexp RAW October 2017'!AD180 -> 0 | AL25: ='Survivalexp RAW October 2017'!AK180 -> 0 | AM25: ='Survivalexp RAW October 2017'!AR180 -> 0 | AN25: ='Survivalexp RAW October 2017'!AY180 -> 0 | AO25: ='Survivalexp RAW October 2017'!BF180 -> 0 | AR25: ='Survivalexp RAW October 2017'!I229 -> 1 | AS25: ='Survivalexp RAW October 2017'!P229 -> 0 | AT25: ='Survivalexp RAW October 2017'!W229 -> 0 | AU25: ='Survivalexp RAW October 2017'!AD229 -> 0 | AV25: ='Survivalexp RAW October 2017'!AK229 -> 0 | AW25: ='Survivalexp RAW October 2017'!AR229 -> 0 | AX25: ='Survivalexp RAW October 2017'!AY229 -> 0 | AY25: ='Survivalexp RAW October 2017'!BF229 -> 0
C26: stdev | D26: ='Survivalexp RAW October 2017'!I34 ->  | E26: ='Survivalexp RAW October 2017'!P34 ->  | F26: ='Survivalexp RAW October 2017'!W34 ->  | G26: ='Survivalexp RAW October 2017'!AD34 ->  | H26: ='Survivalexp RAW October 2017'!AK34 -> 8 | I26: ='Survivalexp RAW October 2017'!AR34 -> 3 | J26: ='Survivalexp RAW October 2017'!AY34 -> 0 | K26: ='Survivalexp RAW October 2017'!BF34 -> 0 | N26: ='Survivalexp RAW October 2017'!I83 ->  | O26: ='Survivalexp RAW October 2017'!P83 ->  | P26: ='Survivalexp RAW October 2017'!W83 -> 12 | Q26: ='Survivalexp RAW October 2017'!AD83 -> 6 | R26: ='Survivalexp RAW October 2017'!AK83 -> 2 | S26: ='Survivalexp RAW October 2017'!AR83 -> 0 | T26: ='Survivalexp RAW October 2017'!AY83 -> 0 | U26: ='Survivalexp RAW October 2017'!BF83 -> 0 | X26: ='Survivalexp RAW October 2017'!I132 -> 22 | Y26: ='Survivalexp RAW October 2017'!P132 -> 4 | Z26: ='Survivalexp RAW October 2017'!W132 -> 2 | AA26: ='Survivalexp RAW October 2017'!AD132 -> 0 | AB26: ='Survivalexp RAW October 2017'!AK132 -> 0 | AC26: ='Survivalexp RAW October 2017'!AR132 -> 0 | AD26: ='Survivalexp RAW October 2017'!AY132 -> 0 | AE26: ='Survivalexp RAW October 2017'!BF132 -> 0 | AH26: ='Survivalexp RAW October 2017'!I181 -> 7 | AI26: ='Survivalexp RAW October 2017'!P181 -> 5 | AJ26: ='Survivalexp RAW October 2017'!W181 -> 0 | AK26: ='Survivalexp RAW October 2017'!AD181 -> 0 | AL26: ='Survivalexp RAW October 2017'!AK181 -> 0 | AM26: ='Survivalexp RAW October 2017'!AR181 -> 0 | AN26: ='Survivalexp RAW October 2017'!AY181 -> 0 | AO26: ='Survivalexp RAW October 2017'!BF181 -> 0 | AR26: ='Survivalexp RAW October 2017'!I230 -> 2 | AS26: ='Survivalexp RAW October 2017'!P230 -> 0 | AT26: ='Survivalexp RAW October 2017'!W230 -> 0 | AU26: ='Survivalexp RAW October 2017'!AD230 -> 0 | AV26: ='Survivalexp RAW October 2017'!AK230 -> 0 | AW26: ='Survivalexp RAW October 2017'!AR230 -> 0 | AX26: ='Survivalexp RAW October 2017'!AY230 -> 0 | AY26: ='Survivalexp RAW October 2017'!BF230 -> 0
B27: est. nr of bacteria | D27: =D25/$D$8 ->  | E27: =E25/$E$8 ->  | F27: =F25/$F$8 ->  | G27: =G25/$G$8 ->  | H27: =H25/$H$8 -> 130000 | I27: =I25/$I$8 -> 180000 | J27: 0 | K27: =K25/$K$8 -> 0 | L27: =H27 -> 130000 | M27: =H28 -> 80015.14113 | N27: =N25/$D$8 ->  | O27: =O25/$E$8 ->  | P27: =P25/$F$8 -> 2866.666667 | Q27: =Q25/$G$8 -> 4066.666667 | R27: =R25/$H$8 -> 7333.333333 | S27: =S25/$I$8 -> 0 | T27: 0 | U27: =U25/$K$8 -> 0 | V27: =P27 -> 2866.666667 | W27: =P28 -> 1176.637215 | X27: =X25/$D$8 -> 31.73333333 | Y27: =Y25/$E$8 -> 29.33333333 | Z27: =Z25/$F$8 -> 66.66666667 | AA27: =AA25/$G$8 -> 0 | AB27: =AB25/$H$8 -> 0 | AC27: =AC25/$I$8 -> 0 | AD27: 0 | AE27: =AE25/$K$8 -> 0 | AF27: =X27 -> 31.73333333 | AG27: =X28 -> 22.03419955 | AH27: =AH25/$D$8 -> 16.13333333 | AI27: =AI25/$E$8 -> 14 | AJ27: =AJ25/$F$8 -> 6.666666667 | AK27: =AK25/$G$8 -> 0 | AL27: =AL25/$H$8 -> 0 | AM27: =AM25/$I$8 -> 0 | AN27: 0 | AO27: =AO25/$K$8 -> 0 | AP27: =AH27 -> 16.13333333 | AQ27: =AH28 -> 7.197632364 | AR27: =AR25/$D$8 -> 0.6666666667 | AS27: =AS25/$E$8 -> 0.6666666667 | AT27: =AT25/$F$8 -> 0 | AU27: =AU25/$G$8 -> 0 | AV27: =AV25/$H$8 -> 0 | AW27: =AW25/$I$8 -> 0 | AX27: 0 | AY27: =AY25/$K$8 -> 0 | AZ27: =AR27 -> 0.6666666667 | BA27: =AR28 -> 1.870828693
C28: stdev | D28: =D26/$D$8 ->  | E28: =E26/$E$8 ->  | F28: =F26/$F$8 ->  | G28: =G26/$G$8 ->  | H28: =H26/$H$8 -> 80015.14113 | I28: =I26/$I$8 -> 310396.4109 | J28: 0 | K28: =K26/$K$8 -> 0 | N28: =N26/$D$8 ->  | O28: =O26/$E$8 ->  | P28: =P26/$F$8 -> 1176.637215 | Q28: =Q26/$G$8 -> 6209.176093 | R28: =R26/$H$8 -> 21205.33649 | S28: =S26/$I$8 -> 0 | T28: 0 | U28: =U26/$K$8 -> 0 | X28: =X26/$D$8 -> 22.03419955 | Y28: =Y26/$E$8 -> 44.5407097 | Z28: =Z26/$F$8 -> 217.8300813 | AA28: =AA26/$G$8 -> 0 | AB28: =AB26/$H$8 -> 0 | AC28: =AC26/$I$8 -> 0 | AD28: 0 | AE28: =AE26/$K$8 -> 0 | AH28: =AH26/$D$8 -> 7.197632364 | AI28: =AI26/$E$8 -> 49.80990539 | AJ28: =AJ26/$F$8 -> 44.72135955 | AK28: =AK26/$G$8 -> 0 | AL28: =AL26/$H$8 -> 0 | AM28: =AM26/$I$8 -> 0 | AN28: 0 | AO28: =AO26/$K$8 -> 0 | AR28: =AR26/$D$8 -> 1.870828693 | AS28: =AS26/$E$8 -> 4.472135955 | AT28: =AT26/$F$8 -> 0 | AU28: =AU26/$G$8 -> 0 | AV28: =AV26/$H$8 -> 0 | AW28: =AW26/$I$8 -> 0 | AX28: 0 | AY28: =AY26/$K$8 -> 0
B29: 2213F A | C29: p+0 | D29: ='Survivalexp RAW October 2017'!I38 ->  | E29: ='Survivalexp RAW October 2017'!P38 ->  | F29: ='Survivalexp RAW October 2017'!W38 ->  | G29: ='Survivalexp RAW October 2017'!AD38 -> 52 | H29: ='Survivalexp RAW October 2017'!AK38 -> 7 | I29: ='Survivalexp RAW October 2017'!AR38 -> 2 | J29: ='Survivalexp RAW October 2017'!AY38 -> 0 | K29: ='Survivalexp RAW October 2017'!BF38 -> 0 | N29: ='Survivalexp RAW October 2017'!I87 ->  | O29: ='Survivalexp RAW October 2017'!P87 -> 50 | P29: ='Survivalexp RAW October 2017'!W87 -> 5 | Q29: ='Survivalexp RAW October 2017'!AD87 -> 0 | R29: ='Survivalexp RAW October 2017'!AK87 -> 0 | S29: ='Survivalexp RAW October 2017'!AR87 -> 0 | T29: ='Survivalexp RAW October 2017'!AY87 -> 0 | U29: ='Survivalexp RAW October 2017'!BF87 -> 0 | X29: ='Survivalexp RAW October 2017'!I136 -> 17 | Y29: ='Survivalexp RAW October 2017'!P136 -> 2 | Z29: ='Survivalexp RAW October 2017'!W136 -> 0 | AA29: ='Survivalexp RAW October 2017'!AD136 -> 0 | AB29: ='Survivalexp RAW October 2017'!AK136 -> 0 | AC29: ='Survivalexp RAW October 2017'!AR136 -> 0 | AD29: ='Survivalexp RAW October 2017'!AY136 -> 0 | AE29: ='Survivalexp RAW October 2017'!BF136 -> 0 | AH29: ='Survivalexp RAW October 2017'!I185 -> 1 | AI29: ='Survivalexp RAW October 2017'!P185 -> 0 | AJ29: ='Survivalexp RAW October 2017'!W185 -> 0 | AK29: ='Survivalexp RAW October 2017'!AD185 -> 0 | AL29: ='Survivalexp RAW October 2017'!AK185 -> 0 | AM29: ='Survivalexp RAW October 2017'!AR185 -> 0 | AN29: ='Survivalexp RAW October 2017'!AY185 -> 0 | AO29: ='Survivalexp RAW October 2017'!BF185 -> 0 | AR29: ='Survivalexp RAW October 2017'!I234 -> 0 | AS29: ='Survivalexp RAW October 2017'!P234 -> 0 | AT29: ='Survivalexp RAW October 2017'!W234 -> 0 | AU29: ='Survivalexp RAW October 2017'!AD234 -> 0 | AV29: ='Survivalexp RAW October 2017'!AK234 -> 0 | AW29: ='Survivalexp RAW October 2017'!AR234 -> 0 | AX29: ='Survivalexp RAW October 2017'!AY234 -> 0 | AY29: ='Survivalexp RAW October 2017'!BF234 -> 0
C30: stdev | D30: ='Survivalexp RAW October 2017'!I39 ->  | E30: ='Survivalexp RAW October 2017'!P39 ->  | F30: ='Survivalexp RAW October 2017'!W39 ->  | G30: ='Survivalexp RAW October 2017'!AD39 -> 33 | H30: ='Survivalexp RAW October 2017'!AK39 -> 9 | I30: ='Survivalexp RAW October 2017'!AR39 -> 6 | J30: ='Survivalexp RAW October 2017'!AY39 -> 0 | K30: ='Survivalexp RAW October 2017'!BF39 -> 0 | N30: ='Survivalexp RAW October 2017'!I88 ->  | O30: ='Survivalexp RAW October 2017'!P88 -> 67 | P30: ='Survivalexp RAW October 2017'!W88 -> 6 | Q30: ='Survivalexp RAW October 2017'!AD88 -> 2 | R30: ='Survivalexp RAW October 2017'!AK88 -> 0 | S30: ='Survivalexp RAW October 2017'!AR88 -> 0 | T30: ='Survivalexp RAW October 2017'!AY88 -> 0 | U30: ='Survivalexp RAW October 2017'!BF88 -> 0 | X30: ='Survivalexp RAW October 2017'!I137 -> 8 | Y30: ='Survivalexp RAW October 2017'!P137 -> 7 | Z30: ='Survivalexp RAW October 2017'!W137 -> 1 | AA30: ='Survivalexp RAW October 2017'!AD137 -> 0 | AB30: ='Survivalexp RAW October 2017'!AK137 -> 0 | AC30: ='Survivalexp RAW October 2017'!AR137 -> 0 | AD30: ='Survivalexp RAW October 2017'!AY137 -> 0 | AE30: ='Survivalexp RAW October 2017'!BF137 -> 0 | AH30: ='Survivalexp RAW October 2017'!I186 -> 2 | AI30: ='Survivalexp RAW October 2017'!P186 -> 1 | AJ30: ='Survivalexp RAW October 2017'!W186 -> 0 | AK30: ='Survivalexp RAW October 2017'!AD186 -> 0 | AL30: ='Survivalexp RAW October 2017'!AK186 -> 0 | AM30: ='Survivalexp RAW October 2017'!AR186 -> 0 | AN30: ='Survivalexp RAW October 2017'!AY186 -> 0 | AO30: ='Survivalexp RAW October 2017'!BF186 -> 0 | AR30: ='Survivalexp RAW October 2017'!I235 -> 0 | AS30: ='Survivalexp RAW October 2017'!P235 -> 0 | AT30: ='Survivalexp RAW October 2017'!W235 -> 0 | AU30: ='Survivalexp RAW October 2017'!AD235 -> 0 | AV30: ='Survivalexp RAW October 2017'!AK235 -> 0 | AW30: ='Survivalexp RAW October 2017'!AR235 -> 0 | AX30: ='Survivalexp RAW October 2017'!AY235 -> 0 | AY30: ='Survivalexp RAW October 2017'!BF235 -> 0
B31: est. nr of bacteria | D31: =D29/$D$8 ->  | E31: =E29/$E$8 ->  | F31: =F29/$F$8 ->  | G31: =G29/$G$8 -> 52066.66667 | H31: =H29/$H$8 -> 73333.33333 | I31: =I29/$I$8 -> 226666.6667 | J31: 0 | K31: =K29/$K$8 -> 0 | L31: =G31 -> 52066.66667 | M31: =G32 -> 33284.77957 | N31: =N29/$D$8 ->  | O31: =O29/$E$8 -> 504.6666667 | P31: =P29/$F$8 -> 520 | Q31: =Q29/$G$8 -> 400 | R31: =R29/$H$8 -> 0 | S31: =S29/$I$8 -> 0 | T31: 0 | U31: =U29/$K$8 -> 0 | V31: =P31 -> 520 | W31: =P32 -> 648.737 | X31: =X29/$D$8 -> 17.13333333 | Y31: =Y29/$E$8 -> 17.33333333 | Z31: =Z29/$F$8 -> 13.33333333 | AA31: =AA29/$G$8 -> 66.66666667 | AB31: =AB29/$H$8 -> 0 | AC31: =AC29/$I$8 -> 0 | AD31: 0 | AE31: =AE29/$K$8 -> 0 | AF31: =X31 -> 17.13333333 | AG31: =X32 -> 8.44165687 | AH31: =AH29/$D$8 -> 1.066666667 | AI31: =AI29/$E$8 -> 3.333333333 | AJ31: =AJ29/$F$8 -> 6.666666667 | AK31: =AK29/$G$8 -> 0 | AL31: =AL29/$H$8 -> 0 | AM31: =AM29/$I$8 -> 0 | AN31: 0 | AO31: =AO29/$K$8 -> 0 | AP31: =AH31 -> 1.066666667 | AQ31: =AH32 -> 1.976835452 | AR31: =AR29/$D$8 -> 0 | AS31: =AS29/$E$8 -> 0 | AT31: =AT29/$F$8 -> 0 | AU31: =AU29/$G$8 -> 0 | AV31: =AV29/$H$8 -> 0 | AW31: =AW29/$I$8 -> 0 | AX31: 0 | AY31: =AY29/$K$8 -> 0 | AZ31: =AV31 -> 0 | BA31: =AV32 -> 0
C32: stdev | D32: =D30/$D$8 ->  | E32: =E30/$E$8 ->  | F32: =F30/$F$8 ->  | G32: =G30/$G$8 -> 33284.77957 | H32: =H30/$H$8 -> 91671.135 | I32: =I30/$I$8 -> 640225.6889 | J32: 0 | K32: =K30/$K$8 -> 0 | N32: =N30/$D$8 ->  | O32: =O30/$E$8 -> 668.6356876 | P32: =P30/$F$8 -> 648.737 | Q32: =Q30/$G$8 -> 1643.167673 | R32: =R30/$H$8 -> 0 | S32: =S30/$I$8 -> 0 | T32: 0 | U32: =U30/$K$8 -> 0 | X32: =X30/$D$8 -> 8.44165687 | Y32: =Y30/$E$8 -> 71.55417528 | Z32: =Z30/$F$8 -> 54.77225575 | AA32: =AA30/$G$8 -> 447.2135955 | AB32: =AB30/$H$8 -> 0 | AC32: =AC30/$I$8 -> 0 | AD32: 0 | AE32: =AE30/$K$8 -> 0 | AH32: =AH30/$D$8 -> 1.976835452 | AI32: =AI30/$E$8 -> 14.42149749 | AJ32: =AJ30/$F$8 -> 44.72135955 | AK32: =AK30/$G$8 -> 0 | AL32: =AL30/$H$8 -> 0 | AM32: =AM30/$I$8 -> 0 | AN32: 0 | AO32: =AO30/$K$8 -> 0 | AR32: =AR30/$D$8 -> 0 | AS32: =AS30/$E$8 -> 0 | AT32: =AT30/$F$8 -> 0 | AU32: =AU30/$G$8 -> 0 | AV32: =AV30/$H$8 -> 0 | AW32: =AW30/$I$8 -> 0 | AX32: 0 | AY32: =AY30/$K$8 -> 0
C33: p+3 | D33: ='Survivalexp RAW October 2017'!I43 ->  | E33: ='Survivalexp RAW October 2017'!P43 ->  | F33: ='Survivalexp RAW October 2017'!W43 ->  | G33: ='Survivalexp RAW October 2017'!AD43 -> 49 | H33: ='Survivalexp RAW October 2017'!AK43 -> 7 | I33: ='Survivalexp RAW October 2017'!AR43 -> 1 | J33: ='Survivalexp RAW October 2017'!AY43 -> 0 | K33: ='Survivalexp RAW October 2017'!BF43 -> 0 | N33: ='Survivalexp RAW October 2017'!I92 ->  | O33: ='Survivalexp RAW October 2017'!P92 -> 74 | P33: ='Survivalexp RAW October 2017'!W92 -> 10 | Q33: ='Survivalexp RAW October 2017'!AD92 -> 1 | R33: ='Survivalexp RAW October 2017'!AK92 -> 0 | S33: ='Survivalexp RAW October 2017'!AR92 -> 0 | T33: ='Survivalexp RAW October 2017'!AY92 -> 0 | U33: ='Survivalexp RAW October 2017'!BF92 -> 0 | X33: ='Survivalexp RAW October 2017'!I141 -> 34 | Y33: ='Survivalexp RAW October 2017'!P141 -> 7 | Z33: ='Survivalexp RAW October 2017'!W141 -> 1 | AA33: ='Survivalexp RAW October 2017'!AD141 -> 0 | AB33: ='Survivalexp RAW October 2017'!AK141 -> 0 | AC33: ='Survivalexp RAW October 2017'!AR141 -> 0 | AD33: ='Survivalexp RAW October 2017'!AY141 -> 0 | AE33: ='Survivalexp RAW October 2017'!BF141 -> 0 | AH33: ='Survivalexp RAW October 2017'!I190 -> 2 | AI33: ='Survivalexp RAW October 2017'!P190 -> 1 | AJ33: ='Survivalexp RAW October 2017'!W190 -> 0 | AK33: ='Survivalexp RAW October 2017'!AD190 -> 0 | AL33: ='Survivalexp RAW October 2017'!AK190 -> 0 | AM33: ='Survivalexp RAW October 2017'!AR190 -> 0 | AN33: ='Survivalexp RAW October 2017'!AY190 -> 0 | AO33: ='Survivalexp RAW October 2017'!BF190 -> 0 | AR33: ='Survivalexp RAW October 2017'!I239 -> 0 | AS33: ='Survivalexp RAW October 2017'!P239 -> 0 | AT33: ='Survivalexp RAW October 2017'!W239 -> 0 | AU33: ='Survivalexp RAW October 2017'!AD239 -> 0 | AV33: ='Survivalexp RAW October 2017'!AK239 -> 0 | AW33: ='Survivalexp RAW October 2017'!AR239 -> 0 | AX33: ='Survivalexp RAW October 2017'!AY239 -> 0 | AY33: ='Survivalexp RAW October 2017'!BF239 -> 0
C34: stdev | D34: ='Survivalexp RAW October 2017'!I44 ->  | E34: ='Survivalexp RAW October 2017'!P44 ->  | F34: ='Survivalexp RAW October 2017'!W44 ->  | G34: ='Survivalexp RAW October 2017'!AD44 -> 20 | H34: ='Survivalexp RAW October 2017'!AK44 -> 5 | I34: ='Survivalexp RAW October 2017'!AR44 -> 2 | J34: ='Survivalexp RAW October 2017'!AY44 -> 0 | K34: ='Survivalexp RAW October 2017'!BF44 -> 2 | N34: ='Survivalexp RAW October 2017'!I93 ->  | O34: ='Survivalexp RAW October 2017'!P93 -> 16 | P34: ='Survivalexp RAW October 2017'!W93 -> 11 | Q34: ='Survivalexp RAW October 2017'!AD93 -> 3 | R34: ='Survivalexp RAW October 2017'!AK93 -> 0 | S34: ='Survivalexp RAW October 2017'!AR93 -> 0 | T34: ='Survivalexp RAW October 2017'!AY93 -> 0 | U34: ='Survivalexp RAW October 2017'!BF93 -> 0 | X34: ='Survivalexp RAW October 2017'!I142 -> 13 | Y34: ='Survivalexp RAW October 2017'!P142 -> 7 | Z34: ='Survivalexp RAW October 2017'!W142 -> 1 | AA34: ='Survivalexp RAW October 2017'!AD142 -> 0 | AB34: ='Survivalexp RAW October 2017'!AK142 -> 0 | AC34: ='Survivalexp RAW October 2017'!AR142 -> 0 | AD34: ='Survivalexp RAW October 2017'!AY142 -> 0 | AE34: ='Survivalexp RAW October 2017'!BF142 -> 0 | AH34: ='Survivalexp RAW October 2017'!I191 -> 5 | AI34: ='Survivalexp RAW October 2017'!P191 -> 3 | AJ34: ='Survivalexp RAW October 2017'!W191 -> 0 | AK34: ='Survivalexp RAW October 2017'!AD191 -> 0 | AL34: ='Survivalexp RAW October 2017'!AK191 -> 0 | AM34: ='Survivalexp RAW October 2017'!AR191 -> 0 | AN34: ='Survivalexp RAW October 2017'!AY191 -> 0 | AO34: ='Survivalexp RAW October 2017'!BF191 -> 0 | AR34: ='Survivalexp RAW October 2017'!I240 -> 1 | AS34: ='Survivalexp RAW October 2017'!P240 -> 0 | AT34: ='Survivalexp RAW October 2017'!W240 -> 0 | AU34: ='Survivalexp RAW October 2017'!AD240 -> 0 | AV34: ='Survivalexp RAW October 2017'!AK240 -> 0 | AW34: ='Survivalexp RAW October 2017'!AR240 -> 0 | AX34: ='Survivalexp RAW October 2017'!AY240 -> 0 | AY34: ='Survivalexp RAW October 2017'!BF240 -> 0
B35: est. nr of bacteria | D35: =D33/$D$8 ->  | E35: =E33/$E$8 ->  | F35: =F33/$F$8 ->  | G35: =G33/$G$8 -> 49400 | H35: =H33/$H$8 -> 71333.33333 | I35: =I33/$I$8 -> 66666.66667 | J35: 0 | K35: =K33/$K$8 -> 4666666.667 | L35: =G35 -> 49400 | M35: =G36 -> 20231.18611 | N35: =N33/$D$8 ->  | O35: =O33/$E$8 -> 737.3333333 | P35: =P33/$F$8 -> 980 | Q35: =Q33/$G$8 -> 1466.666667 | R35: =R33/$H$8 -> 0 | S35: =S33/$I$8 -> 0 | T35: 0 | U35: =U33/$K$8 -> 0 | V35: =O35 -> 737.3333333 | W35: =O36 -> 159.4232405 | X35: =X33/$D$8 -> 33.86666667 | Y35: =Y33/$E$8 -> 68.66666667 | Z35: =Z33/$F$8 -> 73.33333333 | AA35: =AA33/$G$8 -> 0 | AB35: =AB33/$H$8 -> 0 | AC35: =AC33/$I$8 -> 0 | AD35: 0 | AE35: =AE33/$K$8 -> 0 | AF35: =X35 -> 33.86666667 | AG35: =X36 -> 13.0529661 | AH35: =AH33/$D$8 -> 2.466666667 | AI35: =AI33/$E$8 -> 7.333333333 | AJ35: =AJ33/$F$8 -> 6.666666667 | AK35: =AK33/$G$8 -> 0 | AL35: =AL33/$H$8 -> 0 | AM35: =AM33/$I$8 -> 0 | AN35: 0 | AO35: =AO33/$K$8 -> 0 | AP35: =AH35 -> 2.466666667 | AQ35: =AH36 -> 4.557039831 | AR35: =AR33/$D$8 -> 0.2 | AS35: =AS33/$E$8 -> 0 | AT35: =AT33/$F$8 -> 0 | AU35: =AU33/$G$8 -> 0 | AV35: =AV33/$H$8 -> 0 | AW35: =AW33/$I$8 -> 0 | AX35: 0 | AY35: =AY33/$K$8 -> 0 | AZ35: =AR35 -> 0.2 | BA35: =AR36 -> 0.994936153
C36: stdev | D36: =D34/$D$8 ->  | E36: =E34/$E$8 ->  | F36: =F34/$F$8 ->  | G36: =G34/$G$8 -> 20231.18611 | H36: =H34/$H$8 -> 51225.88456 | I36: =I34/$I$8 -> 243708.5902 | J36: 0 | K36: =K34/$K$8 -> 22360679.77 | N36: =N34/$D$8 ->  | O36: =O34/$E$8 -> 159.4232405 | P36: =P34/$F$8 -> 1113.779032 | Q36: =Q34/$G$8 -> 3312.226048 | R36: =R34/$H$8 -> 0 | S36: =S34/$I$8 -> 0 | T36: 0 | U36: =U34/$K$8 -> 0 | X36: =X34/$D$8 -> 13.0529661 | Y36: =Y34/$E$8 -> 66.45168449 | Z36: =Z34/$F$8 -> 99.4936153 | AA36: =AA34/$G$8 -> 0 | AB36: =AB34/$H$8 -> 0 | AC36: =AC34/$I$8 -> 0 | AD36: 0 | AE36: =AE34/$K$8 -> 0 | AH36: =AH34/$D$8 -> 4.557039831 | AI36: =AI34/$E$8 -> 27.4599023 | AJ36: =AJ34/$F$8 -> 44.72135955 | AK36: =AK34/$G$8 -> 0 | AL36: =AL34/$H$8 -> 0 | AM36: =AM34/$I$8 -> 0 | AN36: 0 | AO36: =AO34/$K$8 -> 0 | AR36: =AR34/$D$8 -> 0.994936153 | AS36: =AS34/$E$8 -> 0 | AT36: =AT34/$F$8 -> 0 | AU36: =AU34/$G$8 -> 0 | AV36: =AV34/$H$8 -> 0 | AW36: =AW34/$I$8 -> 0 | AX36: 0 | AY36: =AY34/$K$8 -> 0
B37: 2213F APR | C37: p+0 | D37: ='Survivalexp RAW October 2017'!I48 ->  | E37: ='Survivalexp RAW October 2017'!P48 ->  | F37: ='Survivalexp RAW October 2017'!W48 ->  | G37: ='Survivalexp RAW October 2017'!AD48 ->  | H37: ='Survivalexp RAW October 2017'!AK48 -> 15 | I37: ='Survivalexp RAW October 2017'!AR48 -> 2 | J37: ='Survivalexp RAW October 2017'!AY48 -> 0 | K37: ='Survivalexp RAW October 2017'!BF48 -> 0 | N37: ='Survivalexp RAW October 2017'!I97 ->  | O37: ='Survivalexp RAW October 2017'!P97 -> 51 | P37: ='Survivalexp RAW October 2017'!W97 -> 8 | Q37: ='Survivalexp RAW October 2017'!AD97 -> 1 | R37: ='Survivalexp RAW October 2017'!AK97 -> 0 | S37: ='Survivalexp RAW October 2017'!AR97 -> 0 | T37: ='Survivalexp RAW October 2017'!AY97 -> 0 | U37: ='Survivalexp RAW October 2017'!BF97 -> 0 | X37: ='Survivalexp RAW October 2017'!I146 -> 9 | Y37: ='Survivalexp RAW October 2017'!P146 -> 1 | Z37: ='Survivalexp RAW October 2017'!W146 -> 0 | AA37: ='Survivalexp RAW October 2017'!AD146 -> 0 | AB37: ='Survivalexp RAW October 2017'!AK146 -> 0 | AC37: ='Survivalexp RAW October 2017'!AR146 -> 0 | AD37: ='Survivalexp RAW October 2017'!AY146 -> 0 | AE37: ='Survivalexp RAW October 2017'!BF146 -> 0 | AH37: ='Survivalexp RAW October 2017'!I195 -> 0 | AI37: ='Survivalexp RAW October 2017'!P195 -> 0 | AJ37: ='Survivalexp RAW October 2017'!W195 -> 0 | AK37: ='Survivalexp RAW October 2017'!AD195 -> 0 | AL37: ='Survivalexp RAW October 2017'!AK195 -> 0 | AM37: ='Survivalexp RAW October 2017'!AR195 -> 0 | AN37: ='Survivalexp RAW October 2017'!AY195 -> 0 | AO37: ='Survivalexp RAW October 2017'!BF195 -> 0 | AR37: ='Survivalexp RAW October 2017'!I244 -> 0 | AS37: ='Survivalexp RAW October 2017'!P244 -> 0 | AT37: ='Survivalexp RAW October 2017'!W244 -> 0 | AU37: ='Survivalexp RAW October 2017'!AD244 -> 0 | AV37: ='Survivalexp RAW October 2017'!AK244 -> 0 | AW37: ='Survivalexp RAW October 2017'!AR244 -> 0 | AX37: ='Survivalexp RAW October 2017'!AY244 -> 0 | AY37: ='Survivalexp RAW October 2017'!BF244 -> 0
C38: stdev | D38: ='Survivalexp RAW October 2017'!I49 ->  | E38: ='Survivalexp RAW October 2017'!P49 ->  | F38: ='Survivalexp RAW October 2017'!W49 ->  | G38: ='Survivalexp RAW October 2017'!AD49 ->  | H38: ='Survivalexp RAW October 2017'!AK49 -> 9 | I38: ='Survivalexp RAW October 2017'!AR49 -> 4 | J38: ='Survivalexp RAW October 2017'!AY49 -> 0 | K38: ='Survivalexp RAW October 2017'!BF49 -> 1 | N38: ='Survivalexp RAW October 2017'!I98 ->  | O38: ='Survivalexp RAW October 2017'!P98 -> 20 | P38: ='Survivalexp RAW October 2017'!W98 -> 8 | Q38: ='Survivalexp RAW October 2017'!AD98 -> 2 | R38: ='Survivalexp RAW October 2017'!AK98 -> 1 | S38: ='Survivalexp RAW October 2017'!AR98 -> 0 | T38: ='Survivalexp RAW October 2017'!AY98 -> 0 | U38: ='Survivalexp RAW October 2017'!BF98 -> 0 | X38: ='Survivalexp RAW October 2017'!I147 -> 7 | Y38: ='Survivalexp RAW October 2017'!P147 -> 2 | Z38: ='Survivalexp RAW October 2017'!W147 -> 1 | AA38: ='Survivalexp RAW October 2017'!AD147 -> 0 | AB38: ='Survivalexp RAW October 2017'!AK147 -> 0 | AC38: ='Survivalexp RAW October 2017'!AR147 -> 0 | AD38: ='Survivalexp RAW October 2017'!AY147 -> 0 | AE38: ='Survivalexp RAW October 2017'!BF147 -> 0 | AH38: ='Survivalexp RAW October 2017'!I196 -> 1 | AI38: ='Survivalexp RAW October 2017'!P196 -> 0 | AJ38: ='Survivalexp RAW October 2017'!W196 -> 0 | AK38: ='Survivalexp RAW October 2017'!AD196 -> 0 | AL38: ='Survivalexp RAW October 2017'!AK196 -> 0 | AM38: ='Survivalexp RAW October 2017'!AR196 -> 0 | AN38: ='Survivalexp RAW October 2017'!AY196 -> 0 | AO38: ='Survivalexp RAW October 2017'!BF196 -> 0 | AR38: ='Survivalexp RAW October 2017'!I245 -> 0 | AS38: ='Survivalexp RAW October 2017'!P245 -> 0 | AT38: ='Survivalexp RAW October 2017'!W245 -> 0 | AU38: ='Survivalexp RAW October 2017'!AD245 -> 0 | AV38: ='Survivalexp RAW October 2017'!AK245 -> 0 | AW38: ='Survivalexp RAW October 2017'!AR245 -> 0 | AX38: ='Survivalexp RAW October 2017'!AY245 -> 0 | AY38: ='Survivalexp RAW October 2017'!BF245 -> 0
B39: est. nr of bacteria | D39: =D37/$D$8 ->  | E39: =E37/$E$8 ->  | F39: =F37/$F$8 ->  | G39: =G37/$G$8 ->  | H39: =H37/$H$8 -> 154666.6667 | I39: =I37/$I$8 -> 180000 | J39: 0 | K39: =K37/$K$8 -> 1333333.333 | L39: =H39 -> 154666.6667 | M39: =H40 -> 93933.2572 | N39: =N37/$D$8 ->  | O39: =O37/$E$8 -> 508 | P39: =P37/$F$8 -> 773.3333333 | Q39: =Q37/$G$8 -> 1000 | R39: =R37/$H$8 -> 2000 | S39: =S37/$I$8 -> 0 | T39: 0 | U39: =U37/$K$8 -> 0 | V39: =O39 -> 508 | W39: =O40 -> 198.0082102 | X39: =X37/$D$8 -> 9.4 | Y39: =Y37/$E$8 -> 8.666666667 | Z39: =Z37/$F$8 -> 13.33333333 | AA39: =AA37/$G$8 -> 66.66666667 | AB39: =AB37/$H$8 -> 0 | AC39: =AC37/$I$8 -> 0 | AD39: 0 | AE39: =AE37/$K$8 -> 0 | AF39: =X39 -> 9.4 | AG39: =X40 -> 7.36883894 | AH39: =AH37/$D$8 -> 0.2 | AI39: =AI37/$E$8 -> 0 | AJ39: =AJ37/$F$8 -> 0 | AK39: =AK37/$G$8 -> 0 | AL39: =AL37/$H$8 -> 0 | AM39: =AM37/$I$8 -> 0 | AN39: 0 | AO39: =AO37/$K$8 -> 0 | AP39: =AH39 -> 0.2 | AQ39: =AH40 -> 0.994936153 | AR39: =AR37/$D$8 -> 0 | AS39: =AS37/$E$8 -> 0 | AT39: =AT37/$F$8 -> 0 | AU39: =AU37/$G$8 -> 0 | AV39: =AV37/$H$8 -> 0 | AW39: =AW37/$I$8 -> 0 | AX39: 0 | AY39: =AY37/$K$8 -> 0 | AZ39: =AU39 -> 0 | BA39: =AU40 -> 0
C40: stdev | D40: =D38/$D$8 ->  | E40: =E38/$E$8 ->  | F40: =F38/$F$8 ->  | G40: =G38/$G$8 ->  | H40: =H38/$H$8 -> 93933.2572 | I40: =I38/$I$8 -> 383162.0706 | J40: 0 | K40: =K38/$K$8 -> 8944271.91 | N40: =N38/$D$8 ->  | O40: =O38/$E$8 -> 198.0082102 | P40: =P38/$F$8 -> 760.3374962 | Q40: =Q38/$G$8 -> 2424.049047 | R40: =R38/$H$8 -> 13416.40786 | S40: =S38/$I$8 -> 0 | T40: 0 | U40: =U38/$K$8 -> 0 | X40: =X38/$D$8 -> 7.36883894 | Y40: =Y38/$E$8 -> 21.28861388 | Z40: =Z38/$F$8 -> 89.4427191 | AA40: =AA38/$G$8 -> 447.2135955 | AB40: =AB38/$H$8 -> 0 | AC40: =AC38/$I$8 -> 0 | AD40: 0 | AE40: =AE38/$K$8 -> 0 | AH40: =AH38/$D$8 -> 0.994936153 | AI40: =AI38/$E$8 -> 0 | AJ40: =AJ38/$F$8 -> 0 | AK40: =AK38/$G$8 -> 0 | AL40: =AL38/$H$8 -> 0 | AM40: =AM38/$I$8 -> 0 | AN40: 0 | AO40: =AO38/$K$8 -> 0 | AR40: =AR38/$D$8 -> 0 | AS40: =AS38/$E$8 -> 0 | AT40: =AT38/$F$8 -> 0 | AU40: =AU38/$G$8 -> 0 | AV40: =AV38/$H$8 -> 0 | AW40: =AW38/$I$8 -> 0 | AX40: 0 | AY40: =AY38/$K$8 -> 0
C41: p+3 | D41: ='Survivalexp RAW October 2017'!I53 ->  | E41: ='Survivalexp RAW October 2017'!P53 ->  | F41: ='Survivalexp RAW October 2017'!W53 ->  | G41: ='Survivalexp RAW October 2017'!AD53 -> 65 | H41: ='Survivalexp RAW October 2017'!AK53 -> 11 | I41: ='Survivalexp RAW October 2017'!AR53 -> 1 | J41: ='Survivalexp RAW October 2017'!AY53 -> 0 | K41: ='Survivalexp RAW October 2017'!BF53 -> 1 | N41: ='Survivalexp RAW October 2017'!I102 ->  | O41: ='Survivalexp RAW October 2017'!P102 -> 40 | P41: ='Survivalexp RAW October 2017'!W102 -> 6 | Q41: ='Survivalexp RAW October 2017'!AD102 -> 1 | R41: ='Survivalexp RAW October 2017'!AK102 -> 0 | S41: ='Survivalexp RAW October 2017'!AR102 -> 0 | T41: ='Survivalexp RAW October 2017'!AY102 -> 0 | U41: ='Survivalexp RAW October 2017'!BF102 -> 0 | X41: ='Survivalexp RAW October 2017'!I151 -> 8 | Y41: ='Survivalexp RAW October 2017'!P151 -> 1 | Z41: ='Survivalexp RAW October 2017'!W151 -> 0 | AA41: ='Survivalexp RAW October 2017'!AD151 -> 0 | AB41: ='Survivalexp RAW October 2017'!AK151 -> 0 | AC41: ='Survivalexp RAW October 2017'!AR151 -> 0 | AD41: ='Survivalexp RAW October 2017'!AY151 -> 0 | AE41: ='Survivalexp RAW October 2017'!BF151 -> 0 | AH41: ='Survivalexp RAW October 2017'!I200 -> 0 | AI41: ='Survivalexp RAW October 2017'!P200 -> 0 | AJ41: ='Survivalexp RAW October 2017'!W200 -> 0 | AK41: ='Survivalexp RAW October 2017'!AD200 -> 0 | AL41: ='Survivalexp RAW October 2017'!AK200 -> 0 | AM41: ='Survivalexp RAW October 2017'!AR200 -> 0 | AN41: ='Survivalexp RAW October 2017'!AY200 -> 0 | AO41: ='Survivalexp RAW October 2017'!BF200 -> 0 | AR41: ='Survivalexp RAW October 2017'!I249 -> 0 | AS41: ='Survivalexp RAW October 2017'!P249 -> 0 | AT41: ='Survivalexp RAW October 2017'!W249 -> 0 | AU41: ='Survivalexp RAW October 2017'!AD249 -> 0 | AV41: ='Survivalexp RAW October 2017'!AK249 -> 0 | AW41: ='Survivalexp RAW October 2017'!AR249 -> 0 | AX41: ='Survivalexp RAW October 2017'!AY249 -> 0 | AY41: ='Survivalexp RAW October 2017'!BF249 -> 0
C42: stdev | D42: ='Survivalexp RAW October 2017'!I54 ->  | E42: ='Survivalexp RAW October 2017'!P54 ->  | F42: ='Survivalexp RAW October 2017'!W54 ->  | G42: ='Survivalexp RAW October 2017'!AD54 -> 20 | H42: ='Survivalexp RAW October 2017'!AK54 -> 7 | I42: ='Survivalexp RAW October 2017'!AR54 -> 2 | J42: ='Survivalexp RAW October 2017'!AY54 -> 1 | K42: ='Survivalexp RAW October 2017'!BF54 -> 2 | N42: ='Survivalexp RAW October 2017'!I103 ->  | O42: ='Survivalexp RAW October 2017'!P103 -> 18 | P42: ='Survivalexp RAW October 2017'!W103 -> 6 | Q42: ='Survivalexp RAW October 2017'!AD103 -> 1 | R42: ='Survivalexp RAW October 2017'!AK103 -> 1 | S42: ='Survivalexp RAW October 2017'!AR103 -> 1 | T42: ='Survivalexp RAW October 2017'!AY103 -> 1 | U42: ='Survivalexp RAW October 2017'!BF103 -> 1 | X42: ='Survivalexp RAW October 2017'!I152 -> 4 | Y42: ='Survivalexp RAW October 2017'!P152 -> 3 | Z42: ='Survivalexp RAW October 2017'!W152 -> 0 | AA42: ='Survivalexp RAW October 2017'!AD152 -> 0 | AB42: ='Survivalexp RAW October 2017'!AK152 -> 0 | AC42: ='Survivalexp RAW October 2017'!AR152 -> 0 | AD42: ='Survivalexp RAW October 2017'!AY152 -> 0 | AE42: ='Survivalexp RAW October 2017'!BF152 -> 0 | AH42: ='Survivalexp RAW October 2017'!I201 -> 1 | AI42: ='Survivalexp RAW October 2017'!P201 -> 0 | AJ42: ='Survivalexp RAW October 2017'!W201 -> 0 | AK42: ='Survivalexp RAW October 2017'!AD201 -> 0 | AL42: ='Survivalexp RAW October 2017'!AK201 -> 0 | AM42: ='Survivalexp RAW October 2017'!AR201 -> 0 | AN42: ='Survivalexp RAW October 2017'!AY201 -> 0 | AO42: ='Survivalexp RAW October 2017'!BF201 -> 0 | AR42: ='Survivalexp RAW October 2017'!I250 -> 0 | AS42: ='Survivalexp RAW October 2017'!P250 -> 0 | AT42: ='Survivalexp RAW October 2017'!W250 -> 0 | AU42: ='Survivalexp RAW October 2017'!AD250 -> 0 | AV42: ='Survivalexp RAW October 2017'!AK250 -> 0 | AW42: ='Survivalexp RAW October 2017'!AR250 -> 0 | AX42: ='Survivalexp RAW October 2017'!AY250 -> 0 | AY42: ='Survivalexp RAW October 2017'!BF250 -> 0
B43: est. nr of bacteria | D43: =D41/$D$8 ->  | E43: =E41/$E$8 ->  | F43: =F41/$F$8 ->  | G43: =G41/$G$8 -> 64800 | H43: =H41/$H$8 -> 108000 | I43: =I41/$I$8 -> 120000 | J43: 133333.3333 | K43: =K41/$K$8 -> 5333333.333 | L43: =G43 -> 64800 | M43: =G44 -> 20154.11648 | N43: =N41/$D$8 ->  | O43: =O41/$E$8 -> 402 | P43: =P41/$F$8 -> 586.6666667 | Q43: =Q41/$G$8 -> 733.3333333 | R43: =R41/$H$8 -> 2000 | S43: =S41/$I$8 -> 13333.33333 | T43: 133333.3333 | U43: =U41/$K$8 -> 1333333.333 | V43: =O43 -> 402 | W43: =O44 -> 177.2823741 | X43: =X41/$D$8 -> 8.266666667 | Y43: =Y41/$E$8 -> 12 | Z43: =Z41/$F$8 -> 0 | AA43: =AA41/$G$8 -> 0 | AB43: =AB41/$H$8 -> 0 | AC43: =AC41/$I$8 -> 0 | AD43: 0 | AE43: =AE41/$K$8 -> 0 | AF43: =X43 -> 8.266666667 | AG43: =X44 -> 4.244978942 | AH43: =AH41/$D$8 -> 0.2666666667 | AI43: =AI41/$E$8 -> 0 | AJ43: =AJ41/$F$8 -> 0 | AK43: =AK41/$G$8 -> 0 | AL43: =AL41/$H$8 -> 0 | AM43: =AM41/$I$8 -> 0 | AN43: 0 | AO43: =AO41/$K$8 -> 0 | AP43: =AH43 -> 0.2666666667 | AQ43: =AH44 -> 1.341640786 | AR43: =AR41/$D$8 -> 0 | AS43: =AS41/$E$8 -> 0 | AT43: =AT41/$F$8 -> 0 | AU43: =AU41/$G$8 -> 0 | AV43: =AV41/$H$8 -> 0 | AW43: =AW41/$I$8 -> 0 | AX43: 0 | AY43: =AY41/$K$8 -> 0 | AZ43: =AV43 -> 0 | BA43: =AV44 -> 0
C44: stdev | D44: =D42/$D$8 ->  | E44: =E42/$E$8 ->  | F44: =F42/$F$8 ->  | G44: =G42/$G$8 -> 20154.11648 | H44: =H42/$H$8 -> 69695.26448 | I44: =I42/$I$8 -> 238438.2584 | J44: 547722.5575 | K44: =K42/$K$8 -> 17724674.29 | N44: =N42/$D$8 ->  | O44: =O42/$E$8 -> 177.2823741 | P44: =P42/$F$8 -> 620.4459017 | Q44: =Q42/$G$8 -> 1303.840481 | R44: =R42/$H$8 -> 9949.36153 | S44: =S42/$I$8 -> 89442.7191 | T44: 894427.191 | U44: =U42/$K$8 -> 8944271.91 | X44: =X42/$D$8 -> 4.244978942 | Y44: =Y42/$E$8 -> 32.14617177 | Z44: =Z42/$F$8 -> 0 | AA44: =AA42/$G$8 -> 0 | AB44: =AB42/$H$8 -> 0 | AC44: =AC42/$I$8 -> 0 | AD44: 0 | AE44: =AE42/$K$8 -> 0 | AH44: =AH42/$D$8 -> 1.341640786 | AI44: =AI42/$E$8 -> 0 | AJ44: =AJ42/$F$8 -> 0 | AK44: =AK42/$G$8 -> 0 | AL44: =AL42/$H$8 -> 0 | AM44: =AM42/$I$8 -> 0 | AN44: 0 | AO44: =AO42/$K$8 -> 0 | AR44: =AR42/$D$8 -> 0 | AS44: =AS42/$E$8 -> 0 | AT44: =AT42/$F$8 -> 0 | AU44: =AU42/$G$8 -> 0 | AV44: =AV42/$H$8 -> 0 | AW44: =AW42/$I$8 -> 0 | AX44: 0 | AY44: =AY42/$K$8 -> 0
E46: 1 | F46: 3 | G46: 5 | H46: 7 | I46: 9 | O46: STDEV | Q46: 1 | R46: 3 | S46: 5 | T46: 7 | U46: 9
C47: Numbers | D47: Blank | E47: =$L$11 -> 0 | F47: =$V$11 -> 0 | G47: =$AF$11 -> 0 | H47: =$AP$11 -> 0 | I47: =$AZ$11 -> 0 | O47: Numbers | P47: Blank | Q47: =$M$11 -> 0 | R47: =$W$11 -> 0 | S47: =$AG$11 -> 0 | T47: =$AQ$11 -> 0 | U47: =$BA$11 -> 0
D48: DH5α - | E48: =$L$15 -> 68733 | F48: =$V$15 -> 7466.666667 | G48: =$AF$15 -> 56 | H48: =$AP$15 -> 61 | I48: =$AZ$15 -> 41 | P48: DH5α - | Q48: =$M$15 -> 20960.06986 | R48: =$W$15 -> 3202.400713 | S48: =$AG$15 -> 20.49390153 | T48: =$AQ$15 -> 18 | U48: =$BA$15 -> 29.46829785
D49: KT2440 WT | E49: =$L$19 -> 736666.6667 | F49: =$V$19 -> 6706.666667 | G49: =$AF$19 -> 140 | H49: =$AP$19 -> 7.066666667 | I49: =$AZ$19 -> 0 | P49: KT2440 WT | Q49: =$M$19 -> 929745.4988 | R49: =$W$19 -> 2167.153668 | S49: =$AG$19 -> 138.7029381 | T49: =$AQ$19 -> 7.189256176 | U49: =$BA$19 -> 1.542658711
D50: 2213F - p+0 | E50: =$L$23 -> 508000 | F50: =$V$23 -> 6120 | G50: =$AF$23 -> 452 | H50: =$AP$23 -> 33.9 | I50: =$AZ$23 -> 7.2 | P50: 2213F - p+0 | Q50: =$M$23 -> 208075.642 | R50: =$W$23 -> 1521.702787 | S50: =$AG$23 -> 102.6851195 | T50: =$AQ$23 -> 9.243079777 | U50: =$BA$23 -> 1.341640786
D51: 2213F - p+3 | E51: =$L$27 -> 130000 | F51: =$V$27 -> 2866.666667 | G51: =$AF$27 -> 31.73333333 | H51: =$AP$27 -> 16.13333333 | I51: =$AZ$27 -> 0.6666666667 | P51: 2213F - p+3 | Q51: =$M$27 -> 80015.14113 | R51: =$W$27 -> 1176.637215 | S51: =$AG$27 -> 22.03419955 | T51: =$AQ$27 -> 7.197632364 | U51: =$BA$27 -> 1.870828693
D52: 2213F A p+0 | E52: =$L$31 -> 52066.66667 | F52: =$V$31 -> 520 | G52: =$AF$31 -> 17.13333333 | H52: =$AP$31 -> 1.066666667 | I52: =$AZ$31 -> 0 | P52: 2213F A p+0 | Q52: =$M$31 -> 33284.77957 | R52: =$W$31 -> 648.737 | S52: =$AG$31 -> 8.44165687 | T52: =$AQ$31 -> 1.976835452 | U52: =$BA$31 -> 0
D53: 2213F A p+3 | E53: =$L$35 -> 49400 | F53: =$V$35 -> 737.3333333 | G53: =$AF$35 -> 33.86666667 | H53: =$AP$35 -> 2.466666667 | I53: =$AZ$35 -> 0.2 | P53: 2213F A p+3 | Q53: =$M$35 -> 20231.18611 | R53: =$W$35 -> 159.4232405 | S53: =$AG$35 -> 13.0529661 | T53: =$AQ$35 -> 4.557039831 | U53: =$BA$35 -> 0.994936153
D54: 2213F APR p+0 | E54: =$L$39 -> 154666.6667 | F54: =$V$39 -> 508 | G54: =$AF$39 -> 9.4 | H54: =$AP$39 -> 0.2 | I54: =$AZ$39 -> 0 | P54: 2213F APR p+0 | Q54: =$M$39 -> 93933.2572 | R54: =$W$39 -> 198.0082102 | S54: =$AG$39 -> 7.36883894 | T54: =$AQ$39 -> 0.994936153 | U54: =$BA$39 -> 0
D55: 2213F APR p+3 | E55: =$L$43 -> 64800 | F55: =$V$43 -> 402 | G55: =$AF$43 -> 8.266666667 | H55: =$AP$43 -> 0.2666666667 | I55: =$AZ$43 -> 0 | P55: 2213F APR p+3 | Q55: =$M$43 -> 20154.11648 | R55: =$W$43 -> 177.2823741 | S55: =$AG$43 -> 4.244978942 | T55: =$AQ$43 -> 1.341640786 | U55: =$BA$43 -> 0
E57: 1 | F57: 3 | G57: 5 | H57: 7 | I57: 9 | O57: STDEV | Q57: 1 | R57: 3 | S57: 5 | T57: 7 | U57: 9
C58: Percentages | D58: Blank | E58: 0 | F58: 0 | G58: 0 | H58: 0 | I58: 0 | O58: Percentages | P58: Blank | Q58: 0 | R58: 0 | S58: 0 | T58: 0 | U58: 0
D59: DH5α - | E59: =E48/$E$48*100 -> 100 | F59: =(F48/$E$48)*100 -> 10.86323957 | G59: =G48/$E$48*100 -> 0.0814742968 | H59: 0.08923375364 | I59: 0.05965082444 | P59: DH5α - | Q59: =Q48/$E$48*100 -> 30.49476701 | R59: =R48/$E$48*100 -> 4.659166895 | S59: 0.02981653957 | T59: 0.02593705478 | U59: 0.04287337224
D60: KT2440 WT | E60: =E49/$E$49*100 -> 100 | F60: =F49/$E$49*100 -> 0.9104072398 | G60: 0.01900452489 | H60: 0.0009592760181 | I60: 5.429864253e-05 | P60: KT2440 WT | Q60: =Q49/$E$49*100 -> 126.2097962 | R60: =R49/$E$49*100 -> 0.2941837559 | S60: 0.01882845314 | T60: 0.0009759171279 | U60: 0.0002094106847
D61: 2213F - p+0 | E61: =E50/$E$50*100 -> 100 | F61: =F50/$E$50*100 -> 1.204724409 | G61: 0.08897637795 | H61: 0.006673228346 | I61: 0.001417322835 | P61: 2213F - p+0 | Q61: =Q50/$E$50*100 -> 40.95977205 | R61: =R50/$E$50*100 -> 0.2995477928 | S61: 0.0202136062 | T61: 0.001819503893 | U61: 0.000264102517
D62: 2213F - p+3 | E62: =E51/$E$51*100 -> 100 | F62: =F51/$E$51*100 -> 2.205128205 | G62: 0.02441025641 | H62: 0.01241025641 | I62: 0.0005128205128 | P62: 2213F - p+3 | Q62: =Q51/$E$51*100 -> 61.55010856 | R62: =R51/$E$51*100 -> 0.9051055503 | S62: 0.01694938427 | T62: 0.00553664028 | U62: 0.001439098995
D63: 2213F A p+0 | E63: =E52/$E$52*100 -> 100 | F63: =F52/$E$52*100 -> 0.9987195903 | G63: 0.03290653009 | H63: 0.00204865557 | I63: 0 | P63: 2213F A p+0 | Q63: =Q52/$E$52*100 -> 63.92723349 | R63: =R52/$E$52*100 -> 1.245973752 | S63: 0.0162131694 | T63: 0.003796739024 | U63: 0
D64: 2213F A p+3 | E64: =E53/$E$53*100 -> 100 | F64: =F53/$E$53*100 -> 1.492577598 | G64: 0.0685560054 | H64: 0.004993252362 | I64: 0.0004048582996 | P64: 2213F A p+3 | Q64: =Q53/$E$53*100 -> 40.95381804 | R64: =R53/$E$53*100 -> 0.3227191103 | S64: 0.02642300829 | T64: 0.009224776986 | U64: 0.002014040796
D65: 2213F APR p+0 | E65: =E54/$E$54*100 -> 100 | F65: =F54/$E$54*100 -> 0.3284482759 | G65: 0.006077586207 | H65: 0.0001293103448 | I65: 0 | P65: 2213F APR p+0 | Q65: =Q54/$E$54*100 -> 60.7327094 | R65: =R54/$E$54*100 -> 0.1280225497 | S65: 0.004764335522 | T65: 0.0006432776851 | U65: 0
D66: 2213F APR p+3 | E66: =E55/$E$55*100 -> 100 | F66: =F55/$E$55*100 -> 0.6203703704 | G66: 0.01275720165 | H66: 0.0004115226337 | I66: 0 | P66: 2213F APR p+3 | Q66: =Q55/$E$55*100 -> 31.10203161 | R66: =R55/$E$55*100 -> 0.2735839106 | S66: 0.006550893429 | T66: 0.002070433312 | U66: 0
